fonte_recurso,saldo_empenho,esfera,licitacao,ano,data,plano_interno,convenio,valor_anulado,valor_cancelado,programa_trabalho_resumido,documento_associado,observacoes,cod_empenho,natureza_despesa,credor,processo,nome_unidade_gestora,valor_reforcado,valor_empenho,modalidade,id_unidade_gestora
PRÓPRIOS -  PREST.SERVICOS FUB/FUNDO,836.00,FISCAL,DL 1297/2022 - FUB,2022,01/02/2022,CRÉDITOS DISTRIBUÍDOS PARA AS UNIDADES ADMINISTRATIVAS,null,null,null,FUNCIONAMENTO DE INSTITUICOES FEDERAI - NO DF,23106.129777/2021-13,"C.CUSTO: DAF -AT- ROZANA REIGOTA NAVES - PROT:110110(836,00)MATERIAL DE CONSUMO-PEDIDO:3638/2021 -2022ND000362 MATERIAL DE PROTEÇÃO E SEGURANÇA - ROLOS DE CORRENTE PLÁSTICAS.E.I 23106.129777/2021-13 DISP: 01297/2022.",122,MAT. CONSUMO,Nespolo Jayantibhai de Aviz,null,FUNDAÇÃO UNIVERSIDADE DE BRASÍLIA,null,836.00,global,605
PRÓPRIOS -  PREST.SERVICOS FUB/FUNDO,8000.00,FISCAL,PR,2022,24/01/2022,CRÉDITOS DISTRIBUÍDOS PARA AS UNIDADES ACADÊMICAS,null,null,null,FUNCIONAMENTO DE INSTITUICOES FEDERAI - NO DF,23106.005475/2022-23,"C. CUSTO: ILD SEI: 23106.005475/2022-23PAGAMENTO DE PASSAGEM SERVIDOR NACIONAL PROT:11010119(8000,00)MEMORANDO 02 (7625347) 2022ND000186 - CONTRATO: 125/2018",47,PASSAGENS,Ferrareze Gomi Pixaque Bonecini,null,FUNDAÇÃO UNIVERSIDADE DE BRASÍLIA,null,8000.00,estimativo,605
RECURSOS ORDINÁRIOS,67953.60,FISCAL,PR 27/2021 - FUB,2022,07/02/2022,REPOSIÇÃO DE MATERIAL DO ALMOXARIFADO,null,null,null,FUNCIONAMENTO DE INSTITUICOES FEDERAI - NO DF,23106.071251/2021-29,23106.071251/2021-29,42,MAT. CONSUMO,Alenise Arosi Gnoato Falad,null,FUNDAÇÃO UNIVERSIDADE DE BRASÍLIA,null,67953.60,ordinário,605
RECURSOS DIRETAM.ARREC FUNDAÇÃO UNIV.BRASÍLIA,100.00,FISCAL,null,2022,18/01/2022,PROCESSOS SELETIVOS DA UNIVERSIDADE DE BRASÍLIA - UNB.,null,null,null,FUNCIONAMENTO DE INSTITUICOES FEDERAI - NO DF,23106.126304/2021-56,"C.CUSTO : DEG S.E.I Nº : 23106.126304/2021-56 OFÍCIO.1252/2021/DGP/UNB 2022ND000128 - DISP: 12630/2022 ATT - MARIA DO SOCORRO MENDES - PROT:110106(100,00) - PUBLICAÇÃO DE CONTRATO SERV.DE TERCEIROS - SERV.DE SELEÇÃO E TREINAMENTO - PREST. DE SERV.TÉC. ESPECIALIZADOS PUBLIC. NO D.O.U DO CONTRATO A SER CELEBRADO ENTRE A UNB E O CEBRASPE PROC. SELETIVO P/ PROVIMENTO DE CONCURSO DA CARREIRA DE TÉC. ADM. EM EDUCAÇÃO",27,SERV. PESSOA JURÍDICA,Derlei Berges Prera,null,FUNDAÇÃO UNIVERSIDADE DE BRASÍLIA,null,100.00,global,605
RECEITA DA INDUSTRIA EDITORIA E GRAFICA/FUB -,3672.00,FISCAL,null,2022,18/01/2022,ARRECADACOES DA EDITORA UNB,null,null,null,FUNCIONAMENTO DE INSTITUICOES FEDERAI - NO DF,23106.002378/2022-89,"Valor destinado cobrir despesas referente anuidade de 2022 da Editora UnB, junto à ABEU.",1,SERV. PESSOA JURÍDICA,Marat Luz Borda Valpassos,null,EDITORA UNIVERSIDADE DE BRASÍLIA,null,3672.00,ordinário,276
RECURSOS ORDINARIOS,34180.00,FISCAL,null,2021,07/06/2021,UG DAL ME,null,null,null,UG DAL/ME,23106.120829/2020-05,"SERVIDOR DELL R740 01X PROC XEON 4214 2X16GB 2X1.2TB 2X750W, INCLUI: PRO SUPORTE 3YR24X7, 4 HDS 2TB SATA, TRILHOS COM ORGANIZADOS DE CABOS está relacionada a necessidade de interface entre estes e os equipamentos que já compõem a infraestrutura computacional no Laboratório Latitude. GEPRO_TED_MP_DIPLA_GESTAO DE RISCO_2016",2020800034,EQUIP. MATERIAL PERMANENTE,Vasta Zampa,null,CENTRO DE APOIO AO DESENV TECNOLOGICO,null,34180.00,ordinário,643
TÍTULOS DE RESPONSABILIDADE DO TESOURO OUTRAS A -,293.79,FISCAL,PR 57/2020 - PROAD/UFF,2021,11/01/2021,CRÉDITOS DISTRIBUÍDOS PARA AS UNIDADES ADMINISTRATIVAS,null,null,null,CORONAVIRUS (COVID-19) - REGRA DE OURO,23106.101742/2020-21,AQUSIÇÃO DE MATERIAIS PARA ENFRENTAMENTO DA COVID-19.,802558,MAT. CONSUMO,Keyler Perinészo,null,FUNDAÇÃO UNIVERSIDADE DE BRASÍLIA,null,293.79,global,605
RECURSOS DIRETAM.ARREC FUNDAÇÃO UNIV.BRASÍLIA,14222.00,FISCAL,null,2021,03/12/2021,TAXA ADMINISTRATIVA DO CDT,null,null,null,FUNCIONAMENTO DE INSTITUICOES FEDERAI - NO DF,23106.123366/2021-14,AQUISIÇÃO DE MATERIAL PERMANENTE EM ATENDIMENTO AO PROJETO: PLANO DE DESENVOLVIMENTO INSTITUCIONAL DO CDT 2021,400016,EQUIP. MATERIAL PERMANENTE,Hedmara Denti Sisanoski Bassotelli,null,CENTRO DE APOIO AO DESENV TECNOLOGICO,null,14222.00,ordinário,643
RECURSOS DIRETAM.ARREC FUNDAÇÃO UNIV.BRASÍLIA,1455.98,FISCAL,null,2021,19/10/2021,TAXA ADMINISTRATIVA DO CDT,null,null,null,FUNCIONAMENTO DE INSTITUICOES FEDERAI - NO DF,23106.101351/2021-97,CONTRATAÇÃO DE LICENÇA DE ADOBE CORELDRAW GRAPHICS SUITE ESSENCIAL PARA O DESENVOLVIMENTO DAS AÇÕES DE MARKETING E DESIGNER DA NITCDT/CEDES. SEI: 23106.101351/2021-97,400012,SERVIÇOS TIC,ENGDTP & MULTIMIDIA COMERCIO E PRESTACAO DE SERVICOS D,null,CENTRO DE APOIO AO DESENV TECNOLOGICO,null,1455.98,ordinário,643
RECURSOS DIRETAM.ARREC FUNDAÇÃO UNIV.BRASÍLIA,1979.55,FISCAL,null,2021,19/10/2021,TAXA ADMINISTRATIVA DO CDT,null,null,null,FUNCIONAMENTO DE INSTITUICOES FEDERAI - NO DF,23106.101351/2021-97,CONTRATAÇÃO DE SOFTWARE ADOBE CREATIVE CLOUD ESSENCIAL PARA O DESENVOLVIMENTO DAS AÇÕES DEMARKETING E DESIGN DA NITCDT/CEDES. SEI: 23106.101351/2021-97,400011,SERVIÇOS TIC,Glauciania Leontina Vianini Cairis Tameln,null,CENTRO DE APOIO AO DESENV TECNOLOGICO,null,1979.55,ordinário,643
RECURSOS DIRETAM.ARREC FUNDAÇÃO UNIV.BRASÍLIA,7594.18,FISCAL,null,2021,13/10/2021,TAXA ADMINISTRATIVA DO CDT,null,null,null,FUNCIONAMENTO DE INSTITUICOES FEDERAI - NO DF,23106.107176/2021-41,AQUISIÇÃO DE MATERIAL PERMANENTE PARA ATENDER À DEMANDA DA COORDENAÇÃO DE EMPREENDEDORISMO E DESENVOLVIMENTO EMPRESARIAL E SOCIAL DA NITCDT. SEI: 23106.107176/2021-41,400010,EQUIP. MATERIAL PERMANENTE,Fillmann Gilio Dauinheimer,null,CENTRO DE APOIO AO DESENV TECNOLOGICO,null,7594.18,ordinário,643
RECURSOS ORDINARIOS,21000.00,FISCAL,null,2021,21/06/2021,SEM PLANO INTERNO,null,null,null,GEPRO_TED_CEPESC_2017,23106.067171/2021-79,"AQUISIÇÃO DE MATERIAL DE INFORMATICA. 06 UNIDADES DE HD 3 TB, 08 UNIDADES DE HD DE 2 TB E 06 UNIDADES DE MEMORIA 16GB",400004,MAT. CONSUMO,Eremilton Zenteno Boekel Cameron,null,CENTRO DE APOIO AO DESENV TECNOLOGICO,null,21000.00,ordinário,643
ARRECADACAO CDT,28428.00,FISCAL,null,2021,22/04/2021,PROJETO TOLEDO BIGDATA,null,null,null,FUNCIONAMENTO DE INSTITUICOES FEDERAI - NO DF,23106.004642/2021-38,AQUISIÇÃO DE 3 NOTEBOOKS PROJETO GEPRO_LINFO_TOLEDO_BIGDATA_2019. 23106.004642/2021-38,400002,EQUIP. MATERIAL PERMANENTE,Vasta Zampa,null,CENTRO DE APOIO AO DESENV TECNOLOGICO,null,28428.00,ordinário,643
RECURSOS ORDINÁRIOS,10580.00,FISCAL,null,2021,03/12/2021,FUNCIONAMENTO GERAL,null,null,null,FUNCIONAMENTO DE INSTITUICOES FEDERAI - NO DF,23106.115668/2021-19,"C. CUSTO DGP PROT:110134(10580,00)MEMORANDO 623 (7316841) QUISIÇÃO EVENTUAL DE PLACAS DE HOMENAGEM.SEI: 23106.115668/2021-19 2021ND004656",25341,MAT. CONSUMO,INGRID NOGUEIRA CABRAL,null,FUNDAÇÃO UNIVERSIDADE DE BRASÍLIA,null,10580.00,global,605
PRÓPRIOS -  PREST.SERVICOS FUB/FUNDO,3880.00,FISCAL,null,2021,13/10/2021,CRÉDITOS DISTRIBUÍDOS PARA AS UNIDADES ACADÊMICAS,null,null,null,FUNCIONAMENTO DE INSTITUICOES FEDERAI - NO DF,23106.109766/2021-17,"C.CUSTO:IDA//  HD EXTERNO 4TB//  REQ. 2712/2021MEMO Nº 100/2020/IDA// PROT:11010114(3880,00)",17541,EQUIP. MATERIAL PERMANENTE,Sileir Hallay Zeymer,null,FUNDAÇÃO UNIVERSIDADE DE BRASÍLIA,null,3880.00,global,605
PRÓPRIOS -  PREST.SERVICOS FUB/FUNDO,776.00,FISCAL,null,2021,20/09/2021,CRÉDITOS DISTRIBUÍDOS PARA AS UNIDADES ADMINISTRATIVAS,null,null,null,FUNCIONAMENTO DE INSTITUICOES FEDERAI - NO DF,23106.100829/2021-61,"C. CUSTO: CEAD                                  SEI:23106.100829/2021-61 ATT: FABRICIO JONATHAN PEREIRA             2021ND000000MEMO.S.N/2021/CEAD/CPF            PROT:110133{SM1894/2021(776,00)}MATERIAL DE PERMANENTE - PEDIDO:1894/2021 -   PREG:204/2021  EQUIPAMENTOS TIC - HD EXTERNO 4TB",15291,EQUIP. MATERIAL PERMANENTE,Sileir Hallay Zeymer,null,FUNDAÇÃO UNIVERSIDADE DE BRASÍLIA,null,776.00,global,605
TAXA DE ALUNO ESPECIAL -FUB,2464.00,FISCAL,PR 204/2021 - FUB,2021,16/09/2021,PROGRAMA DE POS-GRADUACAO EM DIREITO - FD,null,null,null,FUNCIONAMENTO DE INSTITUICOES FEDERAI - NO DF,23106.106750/2021-44,fdd,14021,EQUIP. MATERIAL PERMANENTE,Sileir Hallay Zeymer,null,FUNDAÇÃO UNIVERSIDADE DE BRASÍLIA,null,2464.00,global,605
PRÓPRIOS -  PREST.SERVICOS FUB/FUNDO,3104.00,FISCAL,null,2021,31/08/2021,CRÉDITOS DISTRIBUÍDOS PARA AS UNIDADES ACADÊMICAS,null,null,null,FUNCIONAMENTO DE INSTITUICOES FEDERAI - NO DF,23106.094507/2021-76,"C.CUSTO:FCI//AQUISIÇÃO DE HD EXTERNO//REQ.2160/2021SEI N.23106.094507/2021-76//PROT:110133(3104,00)",12561,EQUIP. MATERIAL PERMANENTE,Sileir Hallay Zeymer,null,FUNDAÇÃO UNIVERSIDADE DE BRASÍLIA,null,3104.00,estimativo,605
PRÓPRIOS -  PREST.SERVICOS FUB/FUNDO,1552.00,FISCAL,null,2021,23/08/2021,CRÉDITOS DISTRIBUÍDOS PARA AS UNIDADES ACADÊMICAS,null,null,null,FUNCIONAMENTO DE INSTITUICOES FEDERAI - NO DF,23106.092996/2021-21,"C.CUSTO:ICS AT- DANIEL SCHROETER - PROT:11010113{SM1832/2020(1552,00)}MATERIAL PERMANENTE - MATERIAL TIC - PEDIDO:1832/2021 - 2021ND000000HD EXTERNO - MEMO.163/2020-ICS/DAN/SEI:23106.092996/2021-21-PREG:204/2021",11841,EQUIP. MATERIAL PERMANENTE,Sileir Hallay Zeymer,null,FUNDAÇÃO UNIVERSIDADE DE BRASÍLIA,null,1552.00,global,605
PRÓPRIOS -  PREST.SERVICOS FUB/FUNDO,474.57,FISCAL,null,2021,07/12/2021,CRÉDITOS DISTRIBUÍDOS PARA AS UNIDADES ADMINISTRATIVAS,null,null,null,FUNCIONAMENTO DE INSTITUICOES FEDERAI - NO DF,23106.137523/2021-61,"C. CUSTO: DPO SEI:23106.137523/2021-61ATT: DENISE IMBROISI 2021ND005564MEMO.074/2021/DPO/SEC PROT:110135(474,57)MATERIAL DE CONSUMO - PEDIDO:0000/2021 - REGÃO ELETRÔNICO SRP N. 305/2021SEMENTES - MUDAS DE PLANTAS - INSUMOS - VASO ORNAMENTAL, BOCA QUADRADA, EM MATERIAL",2999,MAT. CONSUMO,LICITOP COMERCIO E SERVICO EIRELI - EPP,null,FUNDAÇÃO UNIVERSIDADE DE BRASÍLIA,null,474.57,global,605
RECURSOS DIRETAM.ARREC FUNDAÇÃO UNIV.BRASÍLIA,77213.55,FISCAL,PR 39/2021 - FUB,2021,29/12/2021,FUNCIONAMENTO GERAL,null,null,null,FUNCIONAMENTO DE INSTITUICOES FEDERAI - NO DF,23106.095902/2021-76,"C. CUSTO HVET PROT:1101010501(77213,55)MATERIAL DE CONSUMO. GÊNEROS ALIMENTÍCIOS PARAATENDIMENTO DA DIETA DOS ANIMAIS MANTIDOS PELOCENTRO DE PRIMATOLOGIA DO IB E PELO HOSPITAL VETERINÁRIO DA FAV.SEI: 23106.095902/2021-76 2021ND005502 PREGÃO: 39/2021",2991,MAT. CONSUMO,Dammiles Vaniede Serchiari S Lau,null,FUNDAÇÃO UNIVERSIDADE DE BRASÍLIA,null,77213.55,global,605
RECURSOS DIRETAM.ARREC FUNDAÇÃO UNIV.BRASÍLIA,960000.00,FISCAL,PR 206/2021 - FUB,2021,29/12/2021,SUPORTE DE TI,null,null,null,FUNCIONAMENTO DE INSTITUICOES FEDERAI - NO DF,23106.005383/2021-62,"C. CUSTO CPD PROT:110114(960000,00)AQUISIÇÃO DE NOVA SOLUÇÃO DE PROCESSAMENTO E SUPORTE.RENOVAÇÃO DE GARANTIA DE STORAGE NETAPP FAS 8200.SEI: 23106.005383/2021-62 2021ND005412",2989,SERVIÇOS TIC,SERVIX INFORMATICA LTDA,null,FUNDAÇÃO UNIVERSIDADE DE BRASÍLIA,null,960000.00,ordinário,605
RECURSOS DIRETAM.ARREC FUNDAÇÃO UNIV.BRASÍLIA,3885000.00,FISCAL,PR 206/2021 - FUB,2021,29/12/2021,SUPORTE DE TI,null,null,null,FUNCIONAMENTO DE INSTITUICOES FEDERAI - NO DF,23106.005383/2021-62,"C. CUSTO CPD PROT:110114(3885000,00)AQUISIÇÃO DE NOVA SOLUÇÃO DE PROCESSAMENTO E SUPORTE.FORNECIMENTO DE CHASSI E SERVIDORES DE ALTA CAPACIDADE DE PROCESSAMENTO,AQUISIÇÃO, RENOVAÇÃO DE GARANTIA E EXPANSÃO DOS STORAGESSEI: 23106.005383/2021-62 2021ND005411",2988,EQUIP. MATERIAL PERMANENTE,Guiaro Prusch,null,FUNDAÇÃO UNIVERSIDADE DE BRASÍLIA,null,3885000.00,ordinário,605
RENDIMENTO DE DISPONIBILIDADE DO TESOURO NACIONAL,4310627.92,FISCAL,RDC,2021,28/12/2021,OBRA DE CONSTRUÇÃO DE ESPAÇO DE PESQUISA PRIMEIRA INFÂNCIA,null,null,null,EMENDA DE BANCADA 71080004,23106.108451/2021-44,"C. CUSTO INFRA PROT:110137(4310627,92)CONTRATAÇÃO DE EMPRESA PARA EXECUÇÃODA OBRA ESPAÇO PARA PESQUISA EM PRIMEIRA INFÂNCIASEI: 23106.108451/2021-44 2021ND005514 RDC: 06/2021",2981,OBRAS E INSTALAÇÕES,Hipérydes Arcúrio Redivo,null,FUNDAÇÃO UNIVERSIDADE DE BRASÍLIA,null,4310627.92,global,605
RENDIMENTO DE DISPONIBILIDADE DO TESOURO NACIONAL,3007970.98,FISCAL,RDC,2021,28/12/2021,OBRA DE CONSTRUÇÃO DA CRECHE DA UNB,null,null,null,EMENDA DE BANCADA 71080004,23106.108428/2021-50,"C. CUSTO INFRA PROT:110137(3007970,98)CONTRATAÇÃO DE EMPRESA PARA EXECUÇÃODA OBRA DE CONSTRUÇÃO DA CRECHE DA UNBSEI: 23106.108428/2021-50 2021ND005511 RDC 03/2021",2980,OBRAS E INSTALAÇÕES,Rivanor Corrochel Boufleuer,null,FUNDAÇÃO UNIVERSIDADE DE BRASÍLIA,null,3007970.98,global,605
RECURSOS DIRETAM.ARREC FUNDAÇÃO UNIV.BRASÍLIA,510.00,FISCAL,null,2021,28/12/2021,FUNCIONAMENTO GERAL,null,76703.55,null,FUNCIONAMENTO DE INSTITUICOES FEDERAI - NO DF,23106.095902/2021-76,"C. CUSTO HVET PROT:1101010501(77213,55)MATERIAL DE CONSUMO. GÊNEROS ALIMENTÍCIOS PARAATENDIMENTO DA DIETA DOS ANIMAIS MANTIDOS PELOCENTRO DE PRIMATOLOGIA DO IB E PELO HOSPITAL VETERINÁRIO DA FAV.SEI: 23106.095902/2021-76 2021ND005502 PREGÃO: 39/2021",2978,MAT. CONSUMO,Dammiles Vaniede Serchiari S Lau,null,FUNDAÇÃO UNIVERSIDADE DE BRASÍLIA,null,77213.55,global,605
PRÓPRIOS -  PREST.SERVICOS FUB/FUNDO,200.00,FISCAL,null,2021,28/12/2021,CRÉDITOS DISTRIBUÍDOS PARA AS UNIDADES ADMINISTRATIVAS,null,null,null,FUNCIONAMENTO DE INSTITUICOES FEDERAI - NO DF,23106.012238/2022-19,23106.012238/2022-19,2970,MAT. CONSUMO,Gilliarde Bete,null,FUNDAÇÃO UNIVERSIDADE DE BRASÍLIA,null,200.00,ordinário,605
RECURSOS DIRETAM.ARREC FUNDAÇÃO UNIV.BRASÍLIA,14910.00,FISCAL,PR,2021,27/12/2021,FUNCIONAMENTO GERAL,null,null,null,FUNCIONAMENTO DE INSTITUICOES FEDERAI - NO DF,23106.134441/2021-64,"C.CUSTO:BCE// AQUISIÇÃO DE CARRINHOS DE TRANSPORTE DE LIVROS//  MEMORANDO Nº 78/2021/BCE2021ND005486// REQ.3938/2021// PROT:110113(14910,00)",2958,EQUIP. MATERIAL PERMANENTE,Marsilio Queblas P Coelho Langhorst,null,FUNDAÇÃO UNIVERSIDADE DE BRASÍLIA,null,14910.00,global,605
RECURSOS DIRETAM.ARREC FUNDAÇÃO UNIV.BRASÍLIA,132154.19,FISCAL,RDC,2021,24/12/2021,OBRA DE REFORMA DAS PISTAS DE ATLETISMO NO CENTRO OLÍMPICO,null,null,null,FUNCIONAMENTO DE INSTITUICOES FEDERAI - NO DF,23106.109852/2017-35,"C. CUSTO: INFRA                                                    SEI:23106.109852/2017-35ATT: AUGUSTO CÉSAR OLIVEIRA DIAS           2021ND005410  - ID-CIPI - 5406.53-89MEMO.S.N/2021/INFRA                  PROT:110137(132154,19)   -  4º TERMO ADITIVOOBRAS EM ANDAMENTO - CONSTRUÇÃO PISTA DE ATLETISMO -   CONTRATO:1119/2019REFORMA DA PISTA DE ATLETISMO OFICIAL PARA COMPETIÇÕES (PISTA 01) E DA PISTA DE TREINAMENTO (PISTA 02)",2946,OBRAS E INSTALAÇÕES,Tsikini Gioseffi Céar,null,FUNDAÇÃO UNIVERSIDADE DE BRASÍLIA,null,132154.19,global,605
RECURSOS DIRETAM.ARREC FUNDAÇÃO UNIV.BRASÍLIA,0.40,FISCAL,PR,2021,24/12/2021,ALMOXARIFADO E TRANSPORTE MOVEIS E MATERIAIS,null,null,null,FUNCIONAMENTO DE INSTITUICOES FEDERAI - NO DF,23106.134481/2021-14,"C. CUSTO DTER.      PROT:11011007(0,40)         SEI 23106.134481/2021-14    SERVIÇOS DE ALMOXARIFADO E TRANSP DE MOVEIS DE MATERIAIS.  CONTRATO 167/2017 2021ND005429.        PREGÃO: 34/2017.",2944,LOC. MÃO-DE-OBRA,Khim Llimeira,null,FUNDAÇÃO UNIVERSIDADE DE BRASÍLIA,null,0.40,global,605
RECURSOS DIRETAM.ARREC FUNDAÇÃO UNIV.BRASÍLIA,2402538.17,FISCAL,PR,2021,24/12/2021,LIMPEZA E CONSERVACAO,null,null,null,FUNCIONAMENTO DE INSTITUICOES FEDERAI - NO DF,23106.134466/2021-68,"C. CUSTO DTER PROT:11011007(655220,99)RCA (LIMPEZA E CONSERVAÇÃO) - CONTRATO 200/20152021ND005425 SEI: 23106.055421/2021-28",2942,LOC. MÃO-DE-OBRA,Possagnoli Gutiliers Marques,null,FUNDAÇÃO UNIVERSIDADE DE BRASÍLIA,1747317.18,655220.99,global,605
RECURSOS DIRETAM.ARREC FUNDAÇÃO UNIV.BRASÍLIA,49500.00,FISCAL,PR,2021,23/12/2021,"SISTEMA DE SEGURANÇA ELETRÔNICA, EQUIPAMENTOS E ETC",null,null,null,FUNCIONAMENTO DE INSTITUICOES FEDERAI - NO DF,23106.019599/2021-13,"C. CUSTO PRC PROT:11010502 REQ: 3833/2021COMPRA DE -CÂMERA TIPO BULLET E DISCO RÍGIDO PARA VIGILÂNCIA (HD)SEI: 23106.019599/2021-13  2021ND005413",2937,EQUIP. MATERIAL PERMANENTE,SEAL TELECOM COMERCIO E SERVICOS DE TELECOMUNICACOES L,null,FUNDAÇÃO UNIVERSIDADE DE BRASÍLIA,null,49500.00,ordinário,605
RECURSOS DIRETAM.ARREC FUNDAÇÃO UNIV.BRASÍLIA,6400.00,FISCAL,PR,2021,23/12/2021,"SISTEMA DE SEGURANÇA ELETRÔNICA, EQUIPAMENTOS E ETC",null,null,null,FUNCIONAMENTO DE INSTITUICOES FEDERAI - NO DF,23106.019599/2021-13,"C. CUSTO PRC PROT:11010505(6400,00) REQ: 3971/2021COMPRA DE MESA CONTROLADORASEI: 23106.019599/2021-13  2021ND005413",2936,EQUIP. MATERIAL PERMANENTE,SEAL TELECOM COMERCIO E SERVICOS DE TELECOMUNICACOES L,null,FUNDAÇÃO UNIVERSIDADE DE BRASÍLIA,null,6400.00,ordinário,605
RECURSOS DIRETAM.ARREC FUNDAÇÃO UNIV.BRASÍLIA,22966.90,FISCAL,PR,2021,23/12/2021,"SISTEMA DE SEGURANÇA ELETRÔNICA, EQUIPAMENTOS E ETC",null,null,null,FUNCIONAMENTO DE INSTITUICOES FEDERAI - NO DF,23106.019599/2021-13,"C. CUSTO PRC PROT:11010505(22966,90) REQ: 3970/2021COMPRA DE SWITCH POE 48 PORTASSEI: 23106.019599/2021-13  2021ND005413",2935,EQUIP. MATERIAL PERMANENTE,Rabeiro Eninger Kläsener Delbone,null,FUNDAÇÃO UNIVERSIDADE DE BRASÍLIA,null,22966.90,ordinário,605
RECURSOS DIRETAM.ARREC FUNDAÇÃO UNIV.BRASÍLIA,101990.42,FISCAL,PR,2021,23/12/2021,FUNCIONAMENTO GERAL,null,null,null,FUNCIONAMENTO DE INSTITUICOES FEDERAI - NO DF,23106.056674/2021-19,"C. CUSTO: BCE SEI: 23106.056674/2021-19AQUISIÇÃO DE 346 LIVROS ESTRANGEIROSATA N. 908/2021, PREGÃO 502/2021DESPACHO BCE / ADM / COM (7501896) PROT:110113(101990,42)PREGÃO: 502/2021 - 2021ND005418",2934,EQUIP. MATERIAL PERMANENTE,LIVRARIA GONCALVES MIRANDA LTDA - ME,null,FUNDAÇÃO UNIVERSIDADE DE BRASÍLIA,null,101990.42,global,605
RECURSOS DIRETAM.ARREC FUNDAÇÃO UNIV.BRASÍLIA,623689.00,FISCAL,PR,2021,22/12/2021,OPERADOR DE TRATOR,null,null,null,FUNCIONAMENTO DE INSTITUICOES FEDERAI - NO DF,23106.133395/2021-86,"C. CUSTO DTER CONTRATO 025/2016. SERVIÇOS MOTORISTA PROT:11011007(623689,00)PRESTAÇÃO CONTINUADA DE SERVIRÇOS DE MOTORISTA E OPERADOR DE TRATORDESPESAS DE MANUTENÇÃO E FUNCIONAMENTO DA UNB.2021ND005386. SEI: 23106.133395/2021-86. PROC ORIGEM: 2015PR00055",2921,LOC. MÃO-DE-OBRA,Khim Llimeira,null,FUNDAÇÃO UNIVERSIDADE DE BRASÍLIA,null,623689.00,global,605
RECURSOS DIR.ARRECADADOS(PROPRIOS)-FUB -,289.08,FISCAL,PR,2021,21/12/2021,CENTRO DE ATENDIMENTO E ESTUDOS PSICOLOG-CAEP,null,null,null,FUNCIONAMENTO DE INSTITUICOES FEDERAI - NO DF,23106.135211/2021-12,"C.CUSTO:CAEP// AQUISIÇÃO DE MATERIAIS COMBATE A COVID-19//  MEMO N.67/2021/IP/CAEPSEI N.23106.135211/2021-12//  2021ND005285//  PROT:11010120(289,08)",2918,MAT. CONSUMO,Diorgenis Margy Hoscher,null,FUNDAÇÃO UNIVERSIDADE DE BRASÍLIA,null,289.08,global,605
RECURSOS DIRETAM.ARREC FUNDAÇÃO UNIV.BRASÍLIA,29150.00,FISCAL,PR,2021,21/12/2021,FUNCIONAMENTO GERAL,null,null,null,FUNCIONAMENTO DE INSTITUICOES FEDERAI - NO DF,23106.138160/2021-81,"C.CUSTO:ALMOX//  AGUA MINERAL SEM GAS// REQ.3963/20212021ND005375//  PROT:1101100601(29150,00)//  OFÍCIO Nº 23/2021/DAF / DGM / ALM",2917,MAT. CONSUMO,Santinello Margoto Olievra,null,FUNDAÇÃO UNIVERSIDADE DE BRASÍLIA,null,29150.00,global,605
PRÓPRIOS -  PREST.SERVICOS FUB/FUNDO,18.20,FISCAL,PR,2021,21/12/2021,CRÉDITOS DISTRIBUÍDOS PARA AS UNIDADES ACADÊMICAS,null,null,null,FUNCIONAMENTO DE INSTITUICOES FEDERAI - NO DF,23106.131847/2021-95,"C. CUSTO ICE PROT:11010115(18,20)MEMORANDO 81 (7465770) MATERIAL DE CONSUMO. COVID-19SEI: 23106.131847/2021-95 2021ND005352  PR 28/2021 - FUB",2913,MAT. CONSUMO,Jorzelina Kobuchi Lenharo Quednau,null,FUNDAÇÃO UNIVERSIDADE DE BRASÍLIA,null,18.20,global,605
PRÓPRIOS -  PREST.SERVICOS FUB/FUNDO,350.00,FISCAL,PR,2021,20/12/2021,CRÉDITOS DISTRIBUÍDOS PARA AS UNIDADES ADMINISTRATIVAS,null,null,null,FUNCIONAMENTO DE INSTITUICOES FEDERAI - NO DF,23106.100824/2021-39,"C.CUSTO:CEAD// AQUISIÇÃO DE LIXEIRA REDONDA SUPORTE// REQ.1915/20212021ND005346// PROT:110124(350,00)// SEI N.23106.100824/2021-39",2910,MAT. CONSUMO,Alesando Gasnhar Bravi,null,FUNDAÇÃO UNIVERSIDADE DE BRASÍLIA,null,350.00,global,605
PRÓPRIOS -  PREST.SERVICOS FUB/FUNDO,418.58,FISCAL,PR 28/2021 - FUB,2021,20/12/2021,CRÉDITOS DISTRIBUÍDOS PARA AS UNIDADES ACADÊMICAS,null,null,null,FUNCIONAMENTO DE INSTITUICOES FEDERAI - NO DF,23106.054493/2021-58,"C.CUSTO:IDA//  AQUISIÇÃO DE ALCOOL ETILICO GEL HIDRATADO//REQ. 3739SEI N.23106.131663/2021-25// 2021ND005347//  PROT:11010114(418,58)",2908,MAT. CONSUMO,Chamarelli Uagoda Julius,null,FUNDAÇÃO UNIVERSIDADE DE BRASÍLIA,null,418.58,ordinário,605
PRÓPRIOS -  PREST.SERVICOS FUB/FUNDO,350.00,FISCAL,PR,2021,20/12/2021,CRÉDITOS DISTRIBUÍDOS PARA AS UNIDADES ADMINISTRATIVAS,null,null,null,FUNCIONAMENTO DE INSTITUICOES FEDERAI - NO DF,23106.100824/2021-39,"C.CUSTO:CEAD// AQUISIÇÃO DE LIXEIRA REDONDA SUPORTE// REQ.1882/20212021ND005346// PROT:110124(350,00)//  SEI N.23106.100824/2021-39",2907,MAT. CONSUMO,Alesando Gasnhar Bravi,null,FUNDAÇÃO UNIVERSIDADE DE BRASÍLIA,null,350.00,global,605
PRÓPRIOS -  PREST.SERVICOS FUB/FUNDO,83.72,FISCAL,PR 28/2021 - FUB,2021,20/12/2021,CRÉDITOS DISTRIBUÍDOS PARA AS UNIDADES ACADÊMICAS,null,null,null,FUNCIONAMENTO DE INSTITUICOES FEDERAI - NO DF,23106.054493/2021-58,"C.CUSTO:ICS//  AQUISIÇÃO DE MATERIAIS DE PROTEÇÃO CONTRA O COVID-19// MEMO N.052/2021/ICS2021ND004893//  PROT:11010113(83,72)//  REQ.3738",2905,MAT. CONSUMO,Chamarelli Uagoda Julius,null,FUNDAÇÃO UNIVERSIDADE DE BRASÍLIA,null,83.72,ordinário,605
PRÓPRIOS -  PREST.SERVICOS FUB/FUNDO,91.08,FISCAL,PR 28/2021 - FUB,2021,20/12/2021,CRÉDITOS DISTRIBUÍDOS PARA AS UNIDADES ACADÊMICAS,null,null,null,FUNCIONAMENTO DE INSTITUICOES FEDERAI - NO DF,23106.054493/2021-58,"C.CUSTO:ICS//  AQUISIÇÃO DE MATERIAIS DE PROTEÇÃO CONTRA O COVID-19// MEMO N.052/2021/ICS2021ND004893//  PROT:11010113(91,08)//  REQ.3741",2904,MAT. CONSUMO,Diorgenis Margy Hoscher,null,FUNDAÇÃO UNIVERSIDADE DE BRASÍLIA,null,91.08,ordinário,605
PRÓPRIOS -  PREST.SERVICOS FUB/FUNDO,21.88,FISCAL,PR,2021,20/12/2021,CRÉDITOS DISTRIBUÍDOS PARA AS UNIDADES ACADÊMICAS,null,null,null,FUNCIONAMENTO DE INSTITUICOES FEDERAI - NO DF,23106.131667/2021-11,"C.CUSTO:ICS//  AQUISIÇÃO DE MATERIAIS DE PROTEÇÃO CONTRA O COVID-19// MEMO N.052/2021/ICS2021ND004893//  PROT:11010113(21,88)//",2903,MAT. CONSUMO,Diorgenis Margy Hoscher,null,FUNDAÇÃO UNIVERSIDADE DE BRASÍLIA,null,21.88,global,605
RECURSOS DIRETAM.ARREC FUNDAÇÃO UNIV.BRASÍLIA,774992.50,FISCAL,RDC,2021,17/12/2021,OBRA DE CONSTRUÇÃO DO INSTITUTO DE ARTES,null,4225565.03,null,FUNCIONAMENTO DE INSTITUICOES FEDERAI - NO DF,23106.047470/2021-97,"C. CUSTO INFRA PROT:110137(4991834,00)OBRA EDIFÍCIO DO INSTITUTO DE ARTES - IDASEI: 23106.047470/2021-97 2021ND005315 RDC 4/2021",2902,OBRAS E INSTALAÇÕES,G.C.E S/A,null,FUNDAÇÃO UNIVERSIDADE DE BRASÍLIA,8723.53,4991834.00,global,605
RECURSOS DIR.ARRECADADOS(PROPRIOS)-FUB -,111.75,FISCAL,PR 28/2021 - FUB,2021,17/12/2021,CENTRO DE ATENDIMENTO E ESTUDOS PSICOLOG-CAEP,null,null,null,FUNCIONAMENTO DE INSTITUICOES FEDERAI - NO DF,23106.054493/2021-58,"C. CUSTO: IPD.      PROT:11010120{SM3868/2021(111,75)}     SEI 23106.132725/2021-16.AQUISIÇÃO DE LUVAS DESCARTÁVEIS.2021ND005308.      MEMO 63/2021/IP/CAEP.",2899,MAT. CONSUMO,Evanylton Shunk Katsuragama,null,FUNDAÇÃO UNIVERSIDADE DE BRASÍLIA,null,111.75,ordinário,605
RENDIMENTO DE DISPONIBILIDADE DO TESOURO NACIONAL,0.00,FISCAL,RDC,2021,17/12/2021,OBRA DE CONSTRUÇÃO DE ESPAÇO DE PESQUISA PRIMEIRA INFÂNCIA,null,4310627.92,null,EMENDA DE BANCADA 71080004,23106.108451/2021-44,"C. CUSTO INFRA PROT:110137(4310627,92)CONTRATAÇÃO DE EMPRESA PARA EXECUÇÃODA OBRA ESPAÇO PARA PESQUISA EM PRIMEIRA INFÂNCIASEI: 23106.108451/2021-44 2021ND005311 RDC: 06/2021",2898,OBRAS E INSTALAÇÕES,Hipérydes Arcúrio Redivo,null,FUNDAÇÃO UNIVERSIDADE DE BRASÍLIA,null,4310627.92,global,605
RENDIMENTO DE DISPONIBILIDADE DO TESOURO NACIONAL,0.00,FISCAL,RDC,2021,17/12/2021,OBRA DE CONSTRUÇÃO DA CRECHE DA UNB,null,3007970.98,null,EMENDA DE BANCADA 71080004,23106.108428/2021-50,"C. CUSTO INFRA PROT:110137(3007970,98)CONTRATAÇÃO DE EMPRESA PARA EXECUÇÃODA OBRA DE CONSTRUÇÃO DA CRECHE DA UNBSEI: 23106.108428/2021-50 2021ND005310 RDC 03/2021",2897,OBRAS E INSTALAÇÕES,Rivanor Corrochel Boufleuer,null,FUNDAÇÃO UNIVERSIDADE DE BRASÍLIA,null,3007970.98,global,605
RECURSOS DIRETAM.ARREC FUNDAÇÃO UNIV.BRASÍLIA,41777.94,FISCAL,PR,2021,17/12/2021,SERV TEC ESPEC MANUT DE GRUPO GERADORES UNID,null,null,null,FUNCIONAMENTO DE INSTITUICOES FEDERAI - NO DF,23106.023215/2017-72,"C.CUSTO: PRC - PROT:110105(41777,94)  CONTRATO 664/2018 COM A EMPRESA EFL SILVA MANUTENÇÃO DE NO-BREAKS E GERADORES-ME. 2021ND005305// SEI: 23106.023215/2017-72//",2896,SERV. PESSOA JURÍDICA,Marclise Asano Kovalick Rich Goggin,null,FUNDAÇÃO UNIVERSIDADE DE BRASÍLIA,null,41777.94,global,605
PRÓPRIOS -  PREST.SERVICOS FUB/FUNDO,179.84,FISCAL,PR 28/2021 - FUB,2021,17/12/2021,CRÉDITOS DISTRIBUÍDOS PARA AS UNIDADES ACADÊMICAS,null,null,null,FUNCIONAMENTO DE INSTITUICOES FEDERAI - NO DF,23106.054493/2021-58,23106.003506/2022-10,2895,MAT. CONSUMO,Raidmilson Leomar Vinholte,null,FUNDAÇÃO UNIVERSIDADE DE BRASÍLIA,null,179.84,global,605
PRÓPRIOS -  PREST.SERVICOS FUB/FUNDO,91.08,FISCAL,PR 28/2021 - FUB,2021,16/12/2021,CRÉDITOS DISTRIBUÍDOS PARA AS UNIDADES ACADÊMICAS,null,null,null,FUNCIONAMENTO DE INSTITUICOES FEDERAI - NO DF,23106.054493/2021-58,23106.003060/2022-15,2892,MAT. CONSUMO,Diorgenis Margy Hoscher,null,FUNDAÇÃO UNIVERSIDADE DE BRASÍLIA,null,91.08,global,605
RECURSOS DIRETAM.ARREC FUNDAÇÃO UNIV.BRASÍLIA,200.00,FISCAL,PR,2021,16/12/2021,TAXIGOV (MOTORISTA),null,null,null,FUNCIONAMENTO DE INSTITUICOES FEDERAI - NO DF,23106.125904/2021-05,"C.CUSTO:DTER// PRESTAÇÃO DE SERV DE TRANSPORTE TERRESTRE (TAXIGOV) CONTRATO N.036/2020// PGTO NF 5601 E FATURA 1256MEMO Nº 121/2021/PRC / DIMEQ / CTR//PROT:11011007(24,17)//  2021ND005008",2888,PASSAGENS,Aucto Cagni,null,FUNDAÇÃO UNIVERSIDADE DE BRASÍLIA,175.83,24.17,global,605
PRÓPRIOS -  PREST.SERVICOS FUB/FUNDO,607.20,FISCAL,PR 28/2021 - FUB,2021,16/12/2021,CRÉDITOS DISTRIBUÍDOS PARA AS UNIDADES ACADÊMICAS,null,null,null,FUNCIONAMENTO DE INSTITUICOES FEDERAI - NO DF,23106.054493/2021-58,"C. CUSTO: IFG.       PROT:11010116{SM3902/2021(607,20)}    SEI 23106.131434/2021-19.AQUISIÇÃO DE ÁLCOOL ETÍLICO.2021ND005275.       OFÍCIO 010/2021/IF/SEC/COMPRAS.",2887,MAT. CONSUMO,Diorgenis Margy Hoscher,null,FUNDAÇÃO UNIVERSIDADE DE BRASÍLIA,null,607.20,ordinário,605
PRÓPRIOS -  PREST.SERVICOS FUB/FUNDO,29.70,FISCAL,PR 28/2021 - FUB,2021,16/12/2021,CRÉDITOS DISTRIBUÍDOS PARA AS UNIDADES ACADÊMICAS,null,null,null,FUNCIONAMENTO DE INSTITUICOES FEDERAI - NO DF,23106.054493/2021-58,"C. CUSTO: IE.       PROT:11010115{SM3773/2021(29,70)}    SEI 23106.131880/2021-15.AQUISIÇÃO DE MÁSCARA DESCARTÁVEL.2021ND005280.       MEMO 84/2021/IE/MAT.",2886,MAT. CONSUMO,Diorgenis Margy Hoscher,null,FUNDAÇÃO UNIVERSIDADE DE BRASÍLIA,null,29.70,ordinário,605
PRÓPRIOS -  PREST.SERVICOS FUB/FUNDO,504.00,FISCAL,PR 28/2021 - FUB,2021,16/12/2021,CRÉDITOS DISTRIBUÍDOS PARA AS UNIDADES ACADÊMICAS,null,null,null,FUNCIONAMENTO DE INSTITUICOES FEDERAI - NO DF,23106.054493/2021-58,"C.CUSTO:IE//  AQUISIÇÃO DE  TOTEM IDENTIFICAÇÃO// REQ.3768 PROT:11010115(504,00)//  2021ND005287",2885,MAT. CONSUMO,Zamian Fushimi Lafeta Fuzicava,null,FUNDAÇÃO UNIVERSIDADE DE BRASÍLIA,null,504.00,ordinário,605
PRÓPRIOS -  PREST.SERVICOS FUB/FUNDO,607.20,FISCAL,PR 28/2021 - FUB,2021,16/12/2021,CRÉDITOS DISTRIBUÍDOS PARA AS UNIDADES ACADÊMICAS,null,null,null,FUNCIONAMENTO DE INSTITUICOES FEDERAI - NO DF,23106.054493/2021-58,"C.CUSTO:IFD//  AQUISIÇÃO DE ALCOOL ETILICO HIDRATADO 70%// REQ.3723/2021PROT:11010116(607,20)//  2021ND005286",2884,MAT. CONSUMO,Diorgenis Margy Hoscher,null,FUNDAÇÃO UNIVERSIDADE DE BRASÍLIA,null,607.20,ordinário,605
PRÓPRIOS -  PREST.SERVICOS FUB/FUNDO,0.00,FISCAL,PR,2021,16/12/2021,CRÉDITOS DISTRIBUÍDOS PARA AS UNIDADES ACADÊMICAS,null,37.50,null,FUNCIONAMENTO DE INSTITUICOES FEDERAI - NO DF,23106.134749/2021-18,"C.CUSTO:IPD//  AQUISIÇÃO DE DESINFETANTE LIQUIDO// REQ. 3885PROT:11010120(37,50)//  2021ND005278",2879,MAT. CONSUMO,Kreisler Weilleralves Nichnig,null,FUNDAÇÃO UNIVERSIDADE DE BRASÍLIA,null,37.50,global,605
PRÓPRIOS -  PREST.SERVICOS FUB/FUNDO,1260.62,FISCAL,PR,2021,16/12/2021,CRÉDITOS DISTRIBUÍDOS PARA AS UNIDADES ACADÊMICAS,null,null,null,FUNCIONAMENTO DE INSTITUICOES FEDERAI - NO DF,23106.134749/2021-18,"C.CUSTO:IPD//   AQUISIÇÃO DE MATERIAL DE LIMPEZA// REQ.3889PROT:11010120(1260,61)// 2021ND005278",2877,MAT. CONSUMO,Clorisval Roermund Lembo Wagton,null,FUNDAÇÃO UNIVERSIDADE DE BRASÍLIA,null,1260.62,global,605
PRÓPRIOS -  PREST.SERVICOS FUB/FUNDO,4803.24,FISCAL,PR 42/2020 - FUB,2021,16/12/2021,CRÉDITOS DISTRIBUÍDOS PARA AS UNIDADES ACADÊMICAS,null,null,null,FUNCIONAMENTO DE INSTITUICOES FEDERAI - NO DF,23106.044808/2020-78,"C.CUSTO:IPD//   AQUISIÇÃO DE MASCARA CIRURGICA DESCARTAVEL// REQ.3888PROT:11010120(4803,24)// 2021ND005278",2875,MAT. CONSUMO,Tarrão Kondas Passolongo Atsuo Truglio,null,FUNDAÇÃO UNIVERSIDADE DE BRASÍLIA,null,4803.24,ordinário,605
PRÓPRIOS -  PREST.SERVICOS FUB/FUNDO,4803.24,FISCAL,PR 42/2020 - FUB,2021,16/12/2021,CRÉDITOS DISTRIBUÍDOS PARA AS UNIDADES ACADÊMICAS,null,null,null,FUNCIONAMENTO DE INSTITUICOES FEDERAI - NO DF,23106.044808/2020-78,"C.CUSTO:IPD//   AQUISIÇÃO DE MASCARA CIRURGICA DESCARTAVEL// REQ.3887PROT:11010120(4803,24)// 2021ND005278//  PROT:11010120(4803,24)",2874,MAT. CONSUMO,Tarrão Kondas Passolongo Atsuo Truglio,null,FUNDAÇÃO UNIVERSIDADE DE BRASÍLIA,null,4803.24,ordinário,605
PRÓPRIOS -  PREST.SERVICOS FUB/FUNDO,192.00,FISCAL,PR 42/2020 - FUB,2021,16/12/2021,CRÉDITOS DISTRIBUÍDOS PARA AS UNIDADES ACADÊMICAS,null,null,null,FUNCIONAMENTO DE INSTITUICOES FEDERAI - NO DF,23106.044808/2020-78,"C.CUSTO:IPD//   AQUISIÇÃO DE PAPEL TOALHA INTERFOLHADO// REQ.3884PROT:11010120(192,00)// 2021ND005278//  PROT:11010120(192,00)",2873,MAT. CONSUMO,Marybelge Isoni,null,FUNDAÇÃO UNIVERSIDADE DE BRASÍLIA,null,192.00,ordinário,605
PRÓPRIOS -  PREST.SERVICOS FUB/FUNDO,21.10,FISCAL,PR 28/2021 - FUB,2021,16/12/2021,CRÉDITOS DISTRIBUÍDOS PARA AS UNIDADES ACADÊMICAS,null,null,null,FUNCIONAMENTO DE INSTITUICOES FEDERAI - NO DF,23106.054493/2021-58,"C.CUSTO:IREL//  AQUISIÇÃO DE PAPEL TOALHA INTERFOLHAS// REQ.3914/2021SEI N.23106.135123/2021-11// 2021ND005279//  PROT:11010125(21,10)",2872,MAT. CONSUMO,Muzzolon Iti Patutti Paschoalotto,null,FUNDAÇÃO UNIVERSIDADE DE BRASÍLIA,null,21.10,ordinário,605
PRÓPRIOS -  PREST.SERVICOS FUB/FUNDO,504.00,FISCAL,PR 28/2021 - FUB,2021,16/12/2021,CRÉDITOS DISTRIBUÍDOS PARA AS UNIDADES ACADÊMICAS,null,null,null,FUNCIONAMENTO DE INSTITUICOES FEDERAI - NO DF,23106.054493/2021-58,"C.CUSTO:IREL//  AQUISIÇÃO DE TOTEM IDENTIFICAÇÃO / REQ.3913/2021SEI N.23106.135123/2021-11//  2021ND005279// PROT:11010125(504,00)",2871,MAT. CONSUMO,Zamian Fushimi Lafeta Fuzicava,null,FUNDAÇÃO UNIVERSIDADE DE BRASÍLIA,null,504.00,ordinário,605
PRÓPRIOS -  PREST.SERVICOS FUB/FUNDO,53.25,FISCAL,PR 28/2021 - FUB,2021,16/12/2021,CRÉDITOS DISTRIBUÍDOS PARA AS UNIDADES ACADÊMICAS,null,null,null,FUNCIONAMENTO DE INSTITUICOES FEDERAI - NO DF,23106.054493/2021-58,"C.CUSTO:IREL//  AQUISIÇÃO DE ALCOOL ETILICO LIQUIDO 70%/ REQ.3912/2021SEI N.23106.135123/2021-11//  2021ND005279// PROT:11010125(53,25)",2870,MAT. CONSUMO,Chamarelli Uagoda Julius,null,FUNDAÇÃO UNIVERSIDADE DE BRASÍLIA,null,53.25,ordinário,605
PRÓPRIOS -  PREST.SERVICOS FUB/FUNDO,208.00,FISCAL,PR 28/2021 - FUB,2021,16/12/2021,CRÉDITOS DISTRIBUÍDOS PARA AS UNIDADES ACADÊMICAS,null,null,null,FUNCIONAMENTO DE INSTITUICOES FEDERAI - NO DF,23106.054493/2021-58,"C.CUSTO:IREL//  AQUISIÇÃO DE MASCARA MULTIUSO N95// REQ.3911/2021SEI N.23106.135123/2021-11//  2021ND005279// PROT:11010125(208,00)",2869,MAT. CONSUMO,Katherene Marcellino,null,FUNDAÇÃO UNIVERSIDADE DE BRASÍLIA,null,208.00,ordinário,605
PRÓPRIOS -  PREST.SERVICOS FUB/FUNDO,208.00,FISCAL,null,2021,07/12/2021,CRÉDITOS DISTRIBUÍDOS PARA AS UNIDADES ACADÊMICAS,null,null,null,FUNCIONAMENTO DE INSTITUICOES FEDERAI - NO DF,23106.005266/2022-80,23106.005266/2022-80,2868,MAT. CONSUMO,Katherene Marcellino,null,FUNDAÇÃO UNIVERSIDADE DE BRASÍLIA,null,208.00,global,605
PRÓPRIOS -  PREST.SERVICOS FUB/FUNDO,194.40,FISCAL,null,2021,16/12/2021,CRÉDITOS DISTRIBUÍDOS PARA AS UNIDADES ACADÊMICAS,null,null,null,FUNCIONAMENTO DE INSTITUICOES FEDERAI - NO DF,23106.007219/2022-71,23106.007219/2022-71,2867,MAT. CONSUMO,Cleirivania Goodwin Ramos,null,FUNDAÇÃO UNIVERSIDADE DE BRASÍLIA,null,194.40,global,605
PRÓPRIOS -  PREST.SERVICOS FUB/FUNDO,289.80,FISCAL,null,2021,16/12/2021,CRÉDITOS DISTRIBUÍDOS PARA AS UNIDADES ACADÊMICAS,null,null,null,FUNCIONAMENTO DE INSTITUICOES FEDERAI - NO DF,23106.010848/2022-88,23106.010848/2022-88,2866,MAT. CONSUMO,Diorgenis Margy Hoscher,null,FUNDAÇÃO UNIVERSIDADE DE BRASÍLIA,null,289.80,global,605
RECURSOS DIRETAM.ARREC FUNDAÇÃO UNIV.BRASÍLIA,5676277.71,FISCAL,RDC,2021,10/12/2021,OBRA DE CONSTRUÇÃO DO INSTITUTO DE ARTES,null,62400.01,null,FUNCIONAMENTO DE INSTITUICOES FEDERAI - NO DF,23106.047470/2021-97,"C. CUSTO INFRA PROT:110137(5738677,72)OBRA  EDIFÍCIO DO INSTITUTO DE ARTES - IDASEI: 23106.047470/2021-97 2021ND005252 RDC 4/2021",2862,OBRAS E INSTALAÇÕES,G.C.E S/A,null,FUNDAÇÃO UNIVERSIDADE DE BRASÍLIA,null,5738677.72,global,605
RENDIMENTO DE DISPONIBILIDADE DO TESOURO NACIONAL,3500000.10,FISCAL,RDC,2021,10/12/2021,OBRA DE CONSTRUÇÃO DO INSTITUTO DE ARTES,null,7018598.90,null,EMENDA DE BANCADA 71080004,23106.047470/2021-97,"C. CUSTO INFRA PROT:110137(10518599,00)OBRA  EDIFÍCIO DO INSTITUTO DE ARTES - IDASEI: 23106.047470/2021-97 2021ND005253 RDC 4/2021",2861,OBRAS E INSTALAÇÕES,G.C.E S/A,null,FUNDAÇÃO UNIVERSIDADE DE BRASÍLIA,null,10518599.00,global,605
RENDIMENTO DE DISPONIBILIDADE DO TESOURO NACIONAL,0.00,FISCAL,RDC,2021,10/12/2021,OBRA DE CONSTRUÇÃO DO INSTITUTO DE ARTES,null,300000.00,null,EMENDA DE BANCADA 71080004,23106.047470/2021-97,"C. CUSTO INFRA PROT:110137(300000,00)OBRA  EDIFÍCIO DO INSTITUTO DE ARTES - IDASEI: 23106.047470/2021-97 2021ND005254 RDC 4/2021",2860,OBRAS E INSTALAÇÕES,G.C.E S/A,null,FUNDAÇÃO UNIVERSIDADE DE BRASÍLIA,null,300000.00,global,605
PRÓPRIOS -  PREST.SERVICOS FUB/FUNDO,270.00,FISCAL,PR 11/2021 - FUB,2021,10/12/2021,CRÉDITOS DISTRIBUÍDOS PARA AS UNIDADES ACADÊMICAS,null,null,null,FUNCIONAMENTO DE INSTITUICOES FEDERAI - NO DF,23106.134741/2021-43,"C. CUSTO IPD PROT:11010120(270,00) REQ: 3896/2021MEMORANDO 435 (7497092) AQUISIÇÃO DE 06(SEIS) LIXEIRAS PLÁSTICASSEI: 23106.134741/2021-43 2021ND005234",2846,MAT. CONSUMO,Ronchi Kollross Cassanelli Ermelina,null,FUNDAÇÃO UNIVERSIDADE DE BRASÍLIA,null,270.00,ordinário,605
PRÓPRIOS -  PREST.SERVICOS FUB/FUNDO,126.00,FISCAL,null,2021,10/12/2021,CRÉDITOS DISTRIBUÍDOS PARA AS UNIDADES ACADÊMICAS,null,null,null,FUNCIONAMENTO DE INSTITUICOES FEDERAI - NO DF,23106.009049/2022-69,23106.009049/2022-69,2845,MAT. CONSUMO,Montanez Serraille Berhends Campanhol,null,FUNDAÇÃO UNIVERSIDADE DE BRASÍLIA,null,126.00,global,605
PRÓPRIOS -  PREST.SERVICOS FUB/FUNDO,316.38,FISCAL,PR,2021,10/12/2021,CRÉDITOS DISTRIBUÍDOS PARA AS UNIDADES ADMINISTRATIVAS,null,null,null,FUNCIONAMENTO DE INSTITUICOES FEDERAI - NO DF,23106.129894/2021-79,"C.CUSTO:DAF//  AQUISIÇÃO DE VASO ORNAMENTAL// OFÍCIO 044/2021 (7454876)PROT:110110(316,38)//  2021ND004819",2844,MAT. CONSUMO,LICITOP COMERCIO E SERVICO EIRELI - EPP,null,FUNDAÇÃO UNIVERSIDADE DE BRASÍLIA,null,316.38,ordinário,605
RECURSOS DIRETAM.ARREC FUNDAÇÃO UNIV.BRASÍLIA,148800.00,FISCAL,PR,2021,10/12/2021,SERVIÇOS DE GERENCIAMENTO DE FROTA,null,null,null,FUNCIONAMENTO DE INSTITUICOES FEDERAI - NO DF,23106.105351/2018-61,"C. CUSTO: PRC.    PROT:110105(148800,00)      SEI 23106.105351/2018-61.CONTRATAÇÃO DE SERVIÇOS DE GERENCIAMENTO DE FROTA.2021ND005188.       DESPACHO PRC 7439571.",2841,SERV. PESSOA JURÍDICA,Bernadett Novato Udler,null,FUNDAÇÃO UNIVERSIDADE DE BRASÍLIA,null,148800.00,global,605
RECURSOS DIRETAM.ARREC FUNDAÇÃO UNIV.BRASÍLIA,205800.00,FISCAL,PR,2021,10/12/2021,AQUISIÇÃO DE INSUMOS PARA PISTA DE ATLETISMO,null,null,null,FUNCIONAMENTO DE INSTITUICOES FEDERAI - NO DF,23106.103173/2019-14,"C.CUSTO:FEF//   FRETE AEREO INTERNACIONAL//  SEI N.23106.103173/2019-14PROT:11010108(205800,00)//  2021ND005185",2838,SERV. PESSOA JURÍDICA,Glippel Zvolinski da Graças,null,FUNDAÇÃO UNIVERSIDADE DE BRASÍLIA,null,205800.00,estimativo,605
PRÓPRIOS -  PREST.SERVICOS FUB/FUNDO,32373.22,FISCAL,null,2021,10/12/2021,CRÉDITOS DISTRIBUÍDOS PARA AS UNIDADES ACADÊMICAS,null,null,null,FUNCIONAMENTO DE INSTITUICOES FEDERAI - NO DF,23106.037011/2021-03,"C. CUSTO FACE PROT:11010102(32373,22) CONTRATAÇÃO DE EMPRESA ESPECIALIZADA NA PRESTAÇÃO DE SERVIÇOS DE CONTEÚDO ECONÔMICO-FINANCEIRO. EMPRESA:ECONOMATICA SOFTWARE DE APOIO A INVESTIDORES LTDA. SEI: 23106.037011/2021-03 2021ND004007",2819,SERV. PESSOA JURÍDICA,Karoliina Sizino,null,FUNDAÇÃO UNIVERSIDADE DE BRASÍLIA,null,32373.22,global,605
PRÓPRIOS -  PREST.SERVICOS FUB/FUNDO,532.46,FISCAL,PR 28/2021 - FUB,2021,10/12/2021,CRÉDITOS DISTRIBUÍDOS PARA AS UNIDADES ACADÊMICAS,null,null,null,FUNCIONAMENTO DE INSTITUICOES FEDERAI - NO DF,23106.054493/2021-58,"C.CUSTO:IDA//  ALCOOL ETILICO EM GEL 70% , HIDRATADO, REFIL// REQ.3893/2021PROT:11010114(532,46)// 2021ND005148",2818,MAT. CONSUMO,Chamarelli Uagoda Julius,null,FUNDAÇÃO UNIVERSIDADE DE BRASÍLIA,null,532.46,ordinário,605
PRÓPRIOS -  PREST.SERVICOS FUB/FUNDO,837.16,FISCAL,PR 28/2021 - FUB,2021,10/12/2021,CRÉDITOS DISTRIBUÍDOS PARA AS UNIDADES ACADÊMICAS,null,null,null,FUNCIONAMENTO DE INSTITUICOES FEDERAI - NO DF,23106.054493/2021-58,"C.CUSTO:IDA//  ALCOOL ETILICO EM GEL 70% , HIDRATADO, REFIL// REQ.3892/2021PROT:11010114(837,16)// 2021ND005148",2816,MAT. CONSUMO,Chamarelli Uagoda Julius,null,FUNDAÇÃO UNIVERSIDADE DE BRASÍLIA,null,837.16,ordinário,605
PRÓPRIOS -  PREST.SERVICOS FUB/FUNDO,4570.00,FISCAL,PR 10/2021 - FUB,2021,10/12/2021,CRÉDITOS DISTRIBUÍDOS PARA AS UNIDADES ACADÊMICAS,null,null,null,FUNCIONAMENTO DE INSTITUICOES FEDERAI - NO DF,23106.116899/2020-51,"C.CUSTO:ICS// AQUISIÇÃO DE AR CONDICIONADO SPLIT 12.000 BTU// REQ.3555/2021PROT:11010113(4570,00)//MEMORANDO 051 (6931787)",2815,EQUIP. MATERIAL PERMANENTE,Gramelich Polachini Nésiaseni' Carlivania,null,FUNDAÇÃO UNIVERSIDADE DE BRASÍLIA,null,4570.00,ordinário,605
PRÓPRIOS -  PREST.SERVICOS FUB/FUNDO,625.62,FISCAL,PR 11/2021 - FUB,2021,10/12/2021,CRÉDITOS DISTRIBUÍDOS PARA AS UNIDADES ADMINISTRATIVAS,null,null,null,FUNCIONAMENTO DE INSTITUICOES FEDERAI - NO DF,23106.004528/2021-16,"C.CUSTO:DAC//  AQUISIÇÃO DE ITENS PARA SINALIZAÇÃO PROTEÇÃO CONTRA O COVID-19// DESPACHO DAC / DASU (7431791)2021ND005140//  PROT:110109(625,62)// REQ.3823",2814,MAT. CONSUMO,Cleanny Hergesell Fargnolli Evelise Gaviano,null,FUNDAÇÃO UNIVERSIDADE DE BRASÍLIA,null,625.62,ordinário,605
PRÓPRIOS -  PREST.SERVICOS FUB/FUNDO,86.02,FISCAL,PR 11/2021 - FUB,2021,10/12/2021,CRÉDITOS DISTRIBUÍDOS PARA AS UNIDADES ADMINISTRATIVAS,null,null,null,FUNCIONAMENTO DE INSTITUICOES FEDERAI - NO DF,23106.004528/2021-16,"C.CUSTO:DAC//  AQUISIÇÃO DE MATERIAL PARA SINALIZAÇÃO // REQ.3822PROT:110109(1180,20)//  2021ND005140",2813,MAT. CONSUMO,Felts Jadir Foratto,null,FUNDAÇÃO UNIVERSIDADE DE BRASÍLIA,null,86.02,ordinário,605
PRÓPRIOS -  PREST.SERVICOS FUB/FUNDO,9183.50,FISCAL,PR 28/2021 - FUB,2021,10/12/2021,CRÉDITOS DISTRIBUÍDOS PARA AS UNIDADES ACADÊMICAS,null,null,null,FUNCIONAMENTO DE INSTITUICOES FEDERAI - NO DF,23106.054493/2021-58,23106.003119/2022-75,2810,MAT. CONSUMO,Diorgenis Margy Hoscher,null,FUNDAÇÃO UNIVERSIDADE DE BRASÍLIA,null,9183.50,global,605
PRÓPRIOS -  PREST.SERVICOS FUB/FUNDO,2160.00,FISCAL,null,2021,09/12/2021,CRÉDITOS DISTRIBUÍDOS PARA AS UNIDADES ACADÊMICAS,null,null,null,FUNCIONAMENTO DE INSTITUICOES FEDERAI - NO DF,23106.001002/2022-57,v23106.001002/2022-57,2809,MAT. CONSUMO,Cleirivania Goodwin Ramos,null,FUNDAÇÃO UNIVERSIDADE DE BRASÍLIA,null,2160.00,global,605
PRÓPRIOS -  PREST.SERVICOS FUB/FUNDO,12264.00,FISCAL,null,2021,09/12/2021,CRÉDITOS DISTRIBUÍDOS PARA AS UNIDADES ACADÊMICAS,null,null,null,FUNCIONAMENTO DE INSTITUICOES FEDERAI - NO DF,23106.000989/2022-92,23106.000989/2022-92,2807,MAT. CONSUMO,Raidmilson Leomar Vinholte,null,FUNDAÇÃO UNIVERSIDADE DE BRASÍLIA,null,12264.00,global,605
PRÓPRIOS -  PREST.SERVICOS FUB/FUNDO,270.00,FISCAL,PR 11/2021 - FUB,2021,10/12/2021,CRÉDITOS DISTRIBUÍDOS PARA AS UNIDADES ADMINISTRATIVAS,null,null,null,FUNCIONAMENTO DE INSTITUICOES FEDERAI - NO DF,23106.134743/2021-32,"C. CUSTO CER PROT:110136(270,00) REQ: 3896/2021DESPACHO CER (7497128) AQUISIÇÃO DE LIXEIRAS PLÁSTICASSEI: 23106.134743/2021-32 2021ND005143",2803,MAT. CONSUMO,Ronchi Kollross Cassanelli Ermelina,null,FUNDAÇÃO UNIVERSIDADE DE BRASÍLIA,null,270.00,ordinário,605
PRÓPRIOS -  PREST.SERVICOS FUB/FUNDO,5733.00,FISCAL,PR 206/2020 - FUB,2021,10/12/2021,CRÉDITOS DISTRIBUÍDOS PARA AS UNIDADES ADMINISTRATIVAS,null,null,null,FUNCIONAMENTO DE INSTITUICOES FEDERAI - NO DF,23106.102135/2020-88,"C.CUSTO:CER// AQUISIÇÃO DE MICROCOMPUTADOR TIPO PADRAO// REQ.3907/2021DESPACHO CER (7493962)//  2021ND005138//  PROT:110136(5733,00)",2801,EQUIPAMENTOS E MATERIAL PERMANENTE,Ahissou Sbroggio Gongi,null,FUNDAÇÃO UNIVERSIDADE DE BRASÍLIA,null,5733.00,ordinário,605
PRÓPRIOS -  PREST.SERVICOS FUB/FUNDO,9980.00,FISCAL,PR 206/2020 - FUB,2021,10/12/2021,CRÉDITOS DISTRIBUÍDOS PARA AS UNIDADES ADMINISTRATIVAS,null,null,null,FUNCIONAMENTO DE INSTITUICOES FEDERAI - NO DF,23106.102135/2020-88,"C.CUSTO:CER//  AQUISIÇÃO DE NOTEBOOK TIPO PADRAO// REQ.3906/2021DESPACHO CER (7493962)// PROT:110136(9980,00)",2799,EQUIPAMENTOS E MATERIAL PERMANENTE,Belli Lizot Lozzi Paolis,null,FUNDAÇÃO UNIVERSIDADE DE BRASÍLIA,null,9980.00,ordinário,605
PRÓPRIOS -  PREST.SERVICOS FUB/FUNDO,4914.48,FISCAL,PR,2021,10/12/2021,MANUTENCAO DE VEICULOS LEVES E PESADOS DA FUB,null,null,null,FUNCIONAMENTO DE INSTITUICOES FEDERAI - NO DF,23106.122935/2021-04,"C.CUSTO:PRC//  FORNECIMENTO DE PEÇAS MANUTENÇÃO VEICULOS LEVES VW// MEMO N.122/2021/PRC/DIMEQ/CMW2021ND005131//  PROT:110105(4914,48)",2798,MAT. CONSUMO,Gelmar Fészio Ciucci,null,FUNDAÇÃO UNIVERSIDADE DE BRASÍLIA,null,4914.48,global,605
PRÓPRIOS -  PREST.SERVICOS FUB/FUNDO,1503.43,FISCAL,PR,2021,10/12/2021,MANUTENCAO DE VEICULOS LEVES E PESADOS DA FUB,null,null,null,FUNCIONAMENTO DE INSTITUICOES FEDERAI - NO DF,23106.122935/2021-04,"C.CUSTO:PRC//  SERVIÇO DE MANUTENÇÃO VEICULOS LEVES VW// MEMO N.122/2021/PRC/DIMEQ/CMW2021ND005131//  PROT:110105(1503,43)",2797,SERV. PESSOA JURÍDICA,Gelmar Fészio Ciucci,null,FUNDAÇÃO UNIVERSIDADE DE BRASÍLIA,null,1503.43,global,605
PRÓPRIOS -  PREST.SERVICOS FUB/FUNDO,1440.00,FISCAL,PR 28/2021 - FUB,2021,10/12/2021,CRÉDITOS DISTRIBUÍDOS PARA AS UNIDADES ACADÊMICAS,null,null,null,FUNCIONAMENTO DE INSTITUICOES FEDERAI - NO DF,23106.054493/2021-58,"C.CUSTO:IDA//  AQUISIÇÃO DE MASCARA MULTIUSO N95// MEMO N.30/2021/IDA/DIN2021ND005126//  PROT:11010114(1440,00)//  REQ.3779/2021",2794,MAT. CONSUMO,Cleirivania Goodwin Ramos,null,FUNDAÇÃO UNIVERSIDADE DE BRASÍLIA,null,1440.00,ordinário,605
PRÓPRIOS -  PREST.SERVICOS FUB/FUNDO,806.10,FISCAL,PR,2021,10/12/2021,CRÉDITOS DISTRIBUÍDOS PARA AS UNIDADES ACADÊMICAS,null,null,null,FUNCIONAMENTO DE INSTITUICOES FEDERAI - NO DF,23106.133263/2021-54,"C.CUSTO:IDA//  AQUISIÇÃO DE ITENS DE SINALIZAÇÃO E ISOLAMENTO//MEMO Nº 30/2021/IDA / DINPROT:11010114(806,10)// 2021ND005124",2792,MAT. CONSUMO,Cleanny Hergesell Fargnolli Evelise Gaviano,null,FUNDAÇÃO UNIVERSIDADE DE BRASÍLIA,null,806.10,global,605
PRÓPRIOS -  PREST.SERVICOS FUB/FUNDO,910.00,FISCAL,PR,2021,09/12/2021,CRÉDITOS DISTRIBUÍDOS PARA AS UNIDADES ACADÊMICAS,null,null,null,FUNCIONAMENTO DE INSTITUICOES FEDERAI - NO DF,23106.132816/2021-51,"C.CUSTO:FSD// AQUISIÇÃO DE MATERIAL HOSPITALAR// DESPACHO FS (7475843) PROT:11010110(900,00)// 2021ND005100// REQ. 3853",2779,MAT. CONSUMO,Jorzelina Kobuchi Lenharo Quednau,null,FUNDAÇÃO UNIVERSIDADE DE BRASÍLIA,null,910.00,estimativo,605
PRÓPRIOS -  PREST.SERVICOS FUB/FUNDO,638.95,FISCAL,PR 28/2021 - FUB,2021,09/12/2021,CRÉDITOS DISTRIBUÍDOS PARA AS UNIDADES ACADÊMICAS,null,null,null,FUNCIONAMENTO DE INSTITUICOES FEDERAI - NO DF,23106.054493/2021-58,"C.CUSTO:FSD// AQUISIÇÃO DE MATERIAL HOSPITALAR// DESPACHO FS (7475843) PROT:11010110(638,95)// 2021ND005100// REQ. 3852",2778,MAT. CONSUMO,Chamarelli Uagoda Julius,null,FUNDAÇÃO UNIVERSIDADE DE BRASÍLIA,null,638.95,ordinário,605
PRÓPRIOS -  PREST.SERVICOS FUB/FUNDO,2160.00,FISCAL,PR 28/2021 - FUB,2021,09/12/2021,CRÉDITOS DISTRIBUÍDOS PARA AS UNIDADES ACADÊMICAS,null,null,null,FUNCIONAMENTO DE INSTITUICOES FEDERAI - NO DF,23106.054493/2021-58,"C.CUSTO:FSD// AQUISIÇÃO DE MATERIAL HOSPITALAR// DESPACHO FS (7475843) PROT:11010110(2160,00)// 2021ND005100// REQ. 3851",2777,MAT. CONSUMO,Cleirivania Goodwin Ramos,null,FUNDAÇÃO UNIVERSIDADE DE BRASÍLIA,null,2160.00,ordinário,605
PRÓPRIOS -  PREST.SERVICOS FUB/FUNDO,2329.00,FISCAL,PR 28/2021 - FUB,2021,09/12/2021,CRÉDITOS DISTRIBUÍDOS PARA AS UNIDADES ACADÊMICAS,null,null,null,FUNCIONAMENTO DE INSTITUICOES FEDERAI - NO DF,23106.054493/2021-58,"C.CUSTO:FSD//  AQUISIÇÃO DE MATERIAL HOSPITALAR// DESPACHO FS (7475843)PROT:11010110(2329,00)// 2021ND005100// REQ. 3850",2776,MAT. CONSUMO,Diorgenis Margy Hoscher,null,FUNDAÇÃO UNIVERSIDADE DE BRASÍLIA,null,2329.00,ordinário,605
PRÓPRIOS -  PREST.SERVICOS FUB/FUNDO,1778.40,FISCAL,PR 28/2021 - FUB,2021,09/12/2021,CRÉDITOS DISTRIBUÍDOS PARA AS UNIDADES ACADÊMICAS,null,null,null,FUNCIONAMENTO DE INSTITUICOES FEDERAI - NO DF,23106.054493/2021-58,"C.CUSTO:FSD//  AQUISIÇÃO DE MATERIAL HOSPITALAR// DESPACHO FS (7475843)PROT:11010110(1778,40)// 2021ND005100// REQ. 3849",2775,MAT. CONSUMO,Raidmilson Leomar Vinholte,null,FUNDAÇÃO UNIVERSIDADE DE BRASÍLIA,null,1778.40,ordinário,605
PRÓPRIOS -  PREST.SERVICOS FUB/FUNDO,60.72,FISCAL,PR 28/2021 - FUB,2021,09/12/2021,CRÉDITOS DISTRIBUÍDOS PARA AS UNIDADES ADMINISTRATIVAS,null,null,null,FUNCIONAMENTO DE INSTITUICOES FEDERAI - NO DF,23106.054493/2021-58,"C. CUSTO: CEAD.     PROT:110124{SM3710(60,72)}      SEI 23106.131632/2021-74.AQUISIÇÃO DE MATERIAIS DE PROTEÇÃO CONTRA O VÍRUS COVID-19.2021ND005102.       DESPACHO CEAD/CPF 7463477.",2774,MAT. CONSUMO,Diorgenis Margy Hoscher,null,FUNDAÇÃO UNIVERSIDADE DE BRASÍLIA,null,60.72,ordinário,605
PRÓPRIOS -  PREST.SERVICOS FUB/FUNDO,29.70,FISCAL,PR 28/2021 - FUB,2021,09/12/2021,CRÉDITOS DISTRIBUÍDOS PARA AS UNIDADES ADMINISTRATIVAS,null,null,null,FUNCIONAMENTO DE INSTITUICOES FEDERAI - NO DF,23106.054493/2021-58,"C. CUSTO: CEAD.     PROT:110124{SM3711/2021(29,70)}      SEI 23106.131632/2021-74.AQUISIÇÃO DE MATERIAIS DE PROTEÇÃO CONTRA O VÍRUS COVID-19.2021ND005102.       DESPACHO CEAD/CPF 7463477.",2773,MAT. CONSUMO,Diorgenis Margy Hoscher,null,FUNDAÇÃO UNIVERSIDADE DE BRASÍLIA,null,29.70,ordinário,605
PRÓPRIOS -  PREST.SERVICOS FUB/FUNDO,14.00,FISCAL,PR 28/2021 - FUB,2021,09/12/2021,CRÉDITOS DISTRIBUÍDOS PARA AS UNIDADES ADMINISTRATIVAS,null,null,null,FUNCIONAMENTO DE INSTITUICOES FEDERAI - NO DF,23106.054493/2021-58,"C. CUSTO: CEAD.     PROT:110124{SM3717/2021(14,00)}      SEI 23106.131632/2021-74.AQUISIÇÃO DE MATERIAIS DE PROTEÇÃO CONTRA O VÍRUS COVID-19.2021ND005102.       DESPACHO CEAD/CPF 7463477.",2771,MAT. CONSUMO,Muzzolon Iti Patutti Paschoalotto,null,FUNDAÇÃO UNIVERSIDADE DE BRASÍLIA,null,14.00,ordinário,605
PRÓPRIOS -  PREST.SERVICOS FUB/FUNDO,21.10,FISCAL,PR 28/2021 - FUB,2021,09/12/2021,CRÉDITOS DISTRIBUÍDOS PARA AS UNIDADES ADMINISTRATIVAS,null,null,null,FUNCIONAMENTO DE INSTITUICOES FEDERAI - NO DF,23106.054493/2021-58,"C. CUSTO: CEAD.     PROT:110124{SM3716/2021(21,10)}      SEI 23106.131632/2021-74.AQUISIÇÃO DE MATERIAIS DE PROTEÇÃO CONTRA O VÍRUS COVID-19.2021ND005102.       DESPACHO CEAD/CPF 7463477.",2770,MAT. CONSUMO,Muzzolon Iti Patutti Paschoalotto,null,FUNDAÇÃO UNIVERSIDADE DE BRASÍLIA,null,21.10,ordinário,605
PRÓPRIOS -  PREST.SERVICOS FUB/FUNDO,21.98,FISCAL,PR 28/2021 - FUB,2021,09/12/2021,CRÉDITOS DISTRIBUÍDOS PARA AS UNIDADES ADMINISTRATIVAS,null,null,null,FUNCIONAMENTO DE INSTITUICOES FEDERAI - NO DF,23106.054493/2021-58,"C. CUSTO: CEAD.     PROT:110124{SM3715/2021(21,98)}      SEI 23106.131632/2021-74.AQUISIÇÃO DE MATERIAIS DE PROTEÇÃO CONTRA O VÍRUS COVID-19.2021ND005102.       DESPACHO CEAD/CPF 7463477.",2769,MAT. CONSUMO,Raidmilson Leomar Vinholte,null,FUNDAÇÃO UNIVERSIDADE DE BRASÍLIA,null,21.98,ordinário,605
PRÓPRIOS -  PREST.SERVICOS FUB/FUNDO,22.48,FISCAL,PR 28/2021 - FUB,2021,09/12/2021,CRÉDITOS DISTRIBUÍDOS PARA AS UNIDADES ADMINISTRATIVAS,null,null,null,FUNCIONAMENTO DE INSTITUICOES FEDERAI - NO DF,23106.054493/2021-58,"C. CUSTO: CEAD.     PROT:110124{SM3714/2021(22,48)}      SEI 23106.131632/2021-74.AQUISIÇÃO DE MATERIAIS DE PROTEÇÃO CONTRA O VÍRUS COVID-19.2021ND005102.       DESPACHO CEAD/CPF 7463477.",2768,MAT. CONSUMO,Raidmilson Leomar Vinholte,null,FUNDAÇÃO UNIVERSIDADE DE BRASÍLIA,null,22.48,ordinário,605
PRÓPRIOS -  PREST.SERVICOS FUB/FUNDO,2300.00,FISCAL,PR 28/2021 - FUB,2021,09/12/2021,CRÉDITOS DISTRIBUÍDOS PARA AS UNIDADES ACADÊMICAS,null,null,null,FUNCIONAMENTO DE INSTITUICOES FEDERAI - NO DF,23106.054493/2021-58,"C.CUSTO:FCS//  AQUISIÇÃO DE ITENS HOSPITALAR// DESPACHO FS (7475843)PROT:11010110(10261,80)//  SEI N.23106.132816/2021-51// 2021ND005100// REQ.3848",2767,MAT. CONSUMO,Ronchi Kollross Cassanelli Ermelina,null,FUNDAÇÃO UNIVERSIDADE DE BRASÍLIA,null,2300.00,ordinário,605
PRÓPRIOS -  PREST.SERVICOS FUB/FUNDO,17888.00,FISCAL,PR 6/2020 - FUB,2021,08/12/2021,CRÉDITOS DISTRIBUÍDOS PARA AS UNIDADES ACADÊMICAS,null,null,null,FUNCIONAMENTO DE INSTITUICOES FEDERAI - NO DF,23106.085994/2018-81,"C.CUSTO:FTD//  AQUISIÇÃO DE CAMERAS DE VIGILÂNCIA// MEMORANDO Nº 17/2021/FT / EFLPROT:11010111(17888,00)// REQ.3745/2021//",2749,SERV. PESSOA JURÍDICA,SEAL TELECOM COMERCIO E SERVICOS DE TELECOMUNICACOES L,null,FUNDAÇÃO UNIVERSIDADE DE BRASÍLIA,null,17888.00,ordinário,605
RECURSOS ORDINÁRIOS,4550.00,FISCAL,PR,2021,08/12/2021,SERVICOS DE SALVA VIDAS E TRATADOR DE PISCINA,null,null,null,FUNCIONAMENTO DE INSTITUICOES FEDERAI - NO DF,23106.133512/2021-10,"C.CUSTO:CERRADO// CONTRATO N.93/2020// SEI N.23106.133512/2021-10DESPACHO DPO (7487956)// PROT:110136(4550,00)",2747,SERV. PESSOA JURÍDICA,Alceielia Collect Pichuti,null,FUNDAÇÃO UNIVERSIDADE DE BRASÍLIA,null,4550.00,global,605
RECURSOS ORDINÁRIOS,69964.00,FISCAL,PR,2021,08/12/2021,"SERV GER.LOJA, VENDEDOR E OPER.CAIXA EDUNB",null,null,null,FUNCIONAMENTO DE INSTITUICOES FEDERAI - NO DF,23106.133512/2021-10,"C. CUSTO: DTER// CONTRATO N.022/2021//  DESPACHO DPO (7487956)// SERVIÇOS DE (APOIO TÉCNICO EDU)SEI: 23106.133512/2021-10// PROT:11011007(69964,00)",2746,LOC. MÃO-DE-OBRA,Marchesano Hobeica Simione Queoma,null,FUNDAÇÃO UNIVERSIDADE DE BRASÍLIA,null,69964.00,global,605
RECURSOS ORDINÁRIOS,90865.98,FISCAL,PR,2021,08/12/2021,SEGURANCA,null,null,null,FUNCIONAMENTO DE INSTITUICOES FEDERAI - NO DF,23106.133512/2021-10,"C.CUSTO:DTER//  CONTRATO N.166/2020// SERVIÇO DE SEGURANÇA UNB CERRADOPROT:11011007(90865,98)//  2021ND004972//  SEI N.23106.133512/2021-10",2743,LOC. MÃO-DE-OBRA,Abdalalim Isilda di Domizio Duckur,null,FUNDAÇÃO UNIVERSIDADE DE BRASÍLIA,null,90865.98,global,605
PRÓPRIOS -  PREST.SERVICOS FUB/FUNDO,91.08,FISCAL,PR 28/2021 - FUB,2021,08/12/2021,CRÉDITOS DISTRIBUÍDOS PARA AS UNIDADES ADMINISTRATIVAS,null,null,null,FUNCIONAMENTO DE INSTITUICOES FEDERAI - NO DF,23106.054493/2021-58,23106.003067/2022-37,2740,MAT. CONSUMO,Diorgenis Margy Hoscher,null,FUNDAÇÃO UNIVERSIDADE DE BRASÍLIA,null,91.08,global,605
PRÓPRIOS -  PREST.SERVICOS FUB/FUNDO,7600.00,FISCAL,DL 10028/2021 - FUB,2021,08/12/2021,CRÉDITOS DISTRIBUÍDOS PARA AS UNIDADES ADMINISTRATIVAS,null,null,null,FUNCIONAMENTO DE INSTITUICOES FEDERAI - NO DF,23106.129777/2021-13,"C.CUSTO: DAF -AT- ROZANA REIGOTA NAVES - PROT:110110(7600,00)MATERIAL DE CONSUMO-PEDIDO:3638/2021 -2021ND004748 -DISP: 10028/2021MATERIAL DE PROTEÇÃO E SEGURANÇA - ROLOS DE CORRENTE PLÁSTICAMEMO.S.N/2021/DAF - S.E.I 23106.129777/2021-13",2736,MAT. CONSUMO,Nespolo Jayantibhai de Aviz,null,FUNDAÇÃO UNIVERSIDADE DE BRASÍLIA,null,7600.00,global,605
RECURSOS DIR.ARRECADADOS(PROPRIOS)-FUB -,5855.85,FISCAL,null,2021,07/12/2021,ARRECADACOES DA FAL - HORTIFRUTIGRANJEIRO,null,null,null,FUNCIONAMENTO DE INSTITUICOES FEDERAI - NO DF,23106.004087/2022-25,23106.004087/2022-25,2734,MAT. CONSUMO,Dyllan Fin Salvadé Antoine,null,FUNDAÇÃO UNIVERSIDADE DE BRASÍLIA,null,5855.85,global,605
RECURSOS DIRETAM.ARREC FUNDAÇÃO UNIV.BRASÍLIA,50000.00,FISCAL,PR 28/2019 - FUB,2021,08/12/2021,CERIMONIAL - COLACAO DE GRAU,null,null,null,FUNCIONAMENTO DE INSTITUICOES FEDERAI - NO DF,23106.072605/2019-38,"C.CUSTO:GRE//  SERVIÇO DE PREVENÇÃO E COMBATE INCÊNDIO E BRIGADA// SEGUNDO TERMO ADITIVO CONTRATO 135/2019// SEI N.23106.072605/2019-38// 2021ND005055//  PROT:1101(50000,00)",2733,LOC. MÃO-DE-OBRA,Vandecleres Vanzela,null,FUNDAÇÃO UNIVERSIDADE DE BRASÍLIA,null,50000.00,global,605
PRÓPRIOS -  PREST.SERVICOS FUB/FUNDO,128.40,FISCAL,PR 28/2021 - FUB,2021,07/12/2021,CRÉDITOS DISTRIBUÍDOS PARA AS UNIDADES ADMINISTRATIVAS,null,null,null,FUNCIONAMENTO DE INSTITUICOES FEDERAI - NO DF,23106.054493/2021-58,23106.003131/2022-80,2732,MAT. CONSUMO,Chamarelli Uagoda Julius,null,FUNDAÇÃO UNIVERSIDADE DE BRASÍLIA,null,128.40,global,605
PRÓPRIOS -  PREST.SERVICOS FUB/FUNDO,3582.60,FISCAL,null,2021,08/12/2021,CRÉDITOS DISTRIBUÍDOS PARA AS UNIDADES ADMINISTRATIVAS,null,null,null,FUNCIONAMENTO DE INSTITUICOES FEDERAI - NO DF,23106.014162/2022-66,23106.014162/2022-66,2729,MAT. CONSUMO,Alexissandra Golinelli Venceslenço Bernardiino,null,FUNDAÇÃO UNIVERSIDADE DE BRASÍLIA,null,3582.60,global,605
RECURSOS DIRETAM.ARREC FUNDAÇÃO UNIV.BRASÍLIA,50000.00,FISCAL,PR 28/2019 - FUB,2021,08/12/2021,CERIMONIAL - COLACAO DE GRAU,null,null,null,FUNCIONAMENTO DE INSTITUICOES FEDERAI - NO DF,23106.072605/2019-38,"C.CUSTO:GRE//  SERVIÇOS DE CAMAREIRA/BECARIO// SEGUNDO TERMO ADITIVO CONTRATO 135/2019// SEI N.23106.072605/2019-38// 2021ND005055//  PROT:1101(50000,00)",2728,SERV. PESSOA JURÍDICA,Vandecleres Vanzela,null,FUNDAÇÃO UNIVERSIDADE DE BRASÍLIA,null,50000.00,global,605
RECURSOS DIRETAM.ARREC FUNDAÇÃO UNIV.BRASÍLIA,24900.00,FISCAL,PR,2021,08/12/2021,JARDINAGEM,null,null,null,FUNCIONAMENTO DE INSTITUICOES FEDERAI - NO DF,23106.133395/2021-86,"C. CUSTO CERRADO PROT:110106(24900,00) SEI 23106.133395/2021-86DESPESAS DE MANUTENÇÃO E FUNCIONAMENTO DA UNB.SERVIÇOS DE MANUTENÇÃO E CONSERVAÇÃO DE GRAMADO E OUTROS SERV. DE JARDINAGEM. 2021ND004980. PROC ORIGEM: 2020PR00314",2720,SERV. PESSOA JURÍDICA,Wills Erbenia Finelli Ravedutti,null,FUNDAÇÃO UNIVERSIDADE DE BRASÍLIA,null,24900.00,global,605
PRÓPRIOS -  PREST.SERVICOS FUB/FUNDO,59.40,FISCAL,PR 28/2021 - FUB,2021,07/12/2021,CRÉDITOS DISTRIBUÍDOS PARA AS UNIDADES ACADÊMICAS,null,null,null,FUNCIONAMENTO DE INSTITUICOES FEDERAI - NO DF,23106.054493/2021-58,23106.003103/2022-62,2706,MAT. CONSUMO,Diorgenis Margy Hoscher,null,FUNDAÇÃO UNIVERSIDADE DE BRASÍLIA,null,59.40,global,605
PRÓPRIOS -  PREST.SERVICOS FUB/FUNDO,91.00,FISCAL,null,2021,07/12/2021,CRÉDITOS DISTRIBUÍDOS PARA AS UNIDADES ACADÊMICAS,null,null,null,FUNCIONAMENTO DE INSTITUICOES FEDERAI - NO DF,23106.005916/2022-97,23106.005916/2022-97,2705,MAT. CONSUMO,Jorzelina Kobuchi Lenharo Quednau,null,FUNDAÇÃO UNIVERSIDADE DE BRASÍLIA,null,91.00,global,605
PRÓPRIOS -  PREST.SERVICOS FUB/FUNDO,988.40,FISCAL,PR 28/2021 - FUB,2021,07/12/2021,CRÉDITOS DISTRIBUÍDOS PARA AS UNIDADES ACADÊMICAS,null,null,null,FUNCIONAMENTO DE INSTITUICOES FEDERAI - NO DF,23106.054493/2021-58,23106.003124/2022-88,2704,MAT. CONSUMO,Chamarelli Uagoda Julius,null,FUNDAÇÃO UNIVERSIDADE DE BRASÍLIA,null,988.40,global,605
PRÓPRIOS -  PREST.SERVICOS FUB/FUNDO,91.00,FISCAL,null,2021,07/12/2021,CRÉDITOS DISTRIBUÍDOS PARA AS UNIDADES ACADÊMICAS,null,null,null,FUNCIONAMENTO DE INSTITUICOES FEDERAI - NO DF,23106.005896/2022-54,23106.005896/2022-54,2698,MAT. CONSUMO,Jorzelina Kobuchi Lenharo Quednau,null,FUNDAÇÃO UNIVERSIDADE DE BRASÍLIA,null,91.00,global,605
PRÓPRIOS -  PREST.SERVICOS FUB/FUNDO,14.40,FISCAL,null,2021,07/12/2021,CRÉDITOS DISTRIBUÍDOS PARA AS UNIDADES ACADÊMICAS,null,null,null,FUNCIONAMENTO DE INSTITUICOES FEDERAI - NO DF,23106.001004/2022-46,23106.001004/2022-46,2687,MAT. CONSUMO,Cleirivania Goodwin Ramos,null,FUNDAÇÃO UNIVERSIDADE DE BRASÍLIA,null,14.40,global,605
PRÓPRIOS -  PREST.SERVICOS FUB/FUNDO,428.00,FISCAL,PR 28/2021 - FUB,2021,07/12/2021,CRÉDITOS DISTRIBUÍDOS PARA AS UNIDADES ACADÊMICAS,null,null,null,FUNCIONAMENTO DE INSTITUICOES FEDERAI - NO DF,23106.054493/2021-58,23106.003132/2022-24,2686,MAT. CONSUMO,Chamarelli Uagoda Julius,null,FUNDAÇÃO UNIVERSIDADE DE BRASÍLIA,null,428.00,global,605
RECURSOS DIRETAM.ARREC FUNDAÇÃO UNIV.BRASÍLIA,175000.00,FISCAL,PR,2021,07/12/2021,ACERVO BIBLIOGRÁFICO,null,null,null,FUNCIONAMENTO DE INSTITUICOES FEDERAI - NO DF,23106.105434/2021-55,"C. CUSTO:BCE//  DESPACHO BCE / ADM / COM (7223057) AQUISIÇÃO DE MATERIAL BIBLIOGRÁFICO// 2021ND004882// SEI: 23106.019391/2019-71// PUBLICAÇÃO NO DOU 08/10 (7255520)//  PROT:110113(175000,00)",2685,EQUIP. MATERIAL PERMANENTE,EXITO DISTRIBUIDORA E COMERCIO DE LIVROS LTDA,null,FUNDAÇÃO UNIVERSIDADE DE BRASÍLIA,null,175000.00,global,605
PRÓPRIOS -  PREST.SERVICOS FUB/FUNDO,28.80,FISCAL,null,2021,07/12/2021,CRÉDITOS DISTRIBUÍDOS PARA AS UNIDADES ADMINISTRATIVAS,null,null,null,20RK - PO COVID19,23106.001006/2022-35,23106.001006/2022-35,2678,MAT. CONSUMO,Cleirivania Goodwin Ramos,null,FUNDAÇÃO UNIVERSIDADE DE BRASÍLIA,null,28.80,global,605
PRÓPRIOS -  PREST.SERVICOS FUB/FUNDO,118.80,FISCAL,PR 28/2021 - FUB,2021,07/12/2021,CRÉDITOS DISTRIBUÍDOS PARA AS UNIDADES ADMINISTRATIVAS,null,null,null,20RK - PO COVID19,23106.054493/2021-58,23106.003091/2022-76,2677,MAT. CONSUMO,Diorgenis Margy Hoscher,null,FUNDAÇÃO UNIVERSIDADE DE BRASÍLIA,null,118.80,global,605
PRÓPRIOS -  PREST.SERVICOS FUB/FUNDO,354.90,FISCAL,null,2021,07/12/2021,CRÉDITOS DISTRIBUÍDOS PARA AS UNIDADES ADMINISTRATIVAS,null,null,null,20RK - PO COVID19,23106.005911/2022-64,23106.005911/2022-64,2676,MAT. CONSUMO,Jorzelina Kobuchi Lenharo Quednau,null,FUNDAÇÃO UNIVERSIDADE DE BRASÍLIA,null,354.90,global,605
PRÓPRIOS -  PREST.SERVICOS FUB/FUNDO,12298.00,FISCAL,PR 6/2020 - FUB,2021,06/12/2021,CRÉDITOS DISTRIBUÍDOS PARA AS UNIDADES ACADÊMICAS,null,null,null,FUNCIONAMENTO DE INSTITUICOES FEDERAI - NO DF,23106.085994/2018-81,"C. CUSTO: FAC.      PROT:11010103{SM3672/2021(12298,00)}      SEI 23106.106037/2021-09.AQUISIÇÃO DE EQUIPAMENTOS PARA SISTEMA DE SEGURANÇA.2021ND004503.",2674,SERV. PESSOA JURÍDICA,SEAL TELECOM COMERCIO E SERVICOS DE TELECOMUNICACOES L,null,FUNDAÇÃO UNIVERSIDADE DE BRASÍLIA,null,12298.00,ordinário,605
PRÓPRIOS -  PREST.SERVICOS FUB/FUNDO,81.90,FISCAL,PR 28/2021 - FUB,2021,07/12/2021,CRÉDITOS DISTRIBUÍDOS PARA AS UNIDADES ACADÊMICAS,null,null,null,20RK - PO COVID19,23106.054493/2021-58,"COMPLEMENTO A NOTA DE EMPENHO 2021NE002651// AQUISIÇÃO DE MATERIAL DE PROTEÇÃO CONTRA COVID-19// OFICIO 59/2021/FAV/DIR// SEI N.23106.131813/2021-09// 2021ND004800// PROT:11010105(81,90)// REQ.3757",2671,MAT. CONSUMO,Jorzelina Kobuchi Lenharo Quednau,null,FUNDAÇÃO UNIVERSIDADE DE BRASÍLIA,null,81.90,ordinário,605
PRÓPRIOS -  PREST.SERVICOS FUB/FUNDO,3920.00,FISCAL,null,2021,07/12/2021,CRÉDITOS DISTRIBUÍDOS PARA AS UNIDADES ACADÊMICAS,null,null,null,FUNCIONAMENTO DE INSTITUICOES FEDERAI - NO DF,23106.004909/2022-78,23106.004909/2022-78,2670,EQUIP. MATERIAL PERMANENTE,Sedenho Colnaghi Nobuo Hussar,null,FUNDAÇÃO UNIVERSIDADE DE BRASÍLIA,null,3920.00,global,605
PRÓPRIOS -  PREST.SERVICOS FUB/FUNDO,22932.00,FISCAL,PR 206/2020 - FUB,2021,06/12/2021,CRÉDITOS DISTRIBUÍDOS PARA AS UNIDADES ADMINISTRATIVAS,null,null,null,FUNCIONAMENTO DE INSTITUICOES FEDERAI - NO DF,23106.102135/2020-88,"C.CUSTO:CEAD//  AQUISIÇÃO DE MICROCOMPUTADOR TIPO AVANÇADO// DESPACHO CEAD / CPF (7422570)//  PROT:110124(22932,00)//  REQ. 965/2021",2667,EQUIPAMENTOS E MATERIAL PERMANENTE,Ahissou Sbroggio Gongi,null,FUNDAÇÃO UNIVERSIDADE DE BRASÍLIA,null,22932.00,ordinário,605
PRÓPRIOS -  PREST.SERVICOS FUB/FUNDO,982.80,FISCAL,PR 28/2021 - FUB,2021,06/12/2021,CRÉDITOS DISTRIBUÍDOS PARA AS UNIDADES ACADÊMICAS,null,null,null,FUNCIONAMENTO DE INSTITUICOES FEDERAI - NO DF,23106.054493/2021-58,"C. CUSTO: IFD. PROT:11010116{SM3719/2021(990,00)} SEI 23106.131394/2021-05.AQUISIÇÃO DE PROTETORES FACIAIS.                              OFICIO 006/2021/IF/SEC/COMPRAS.2021ND004856.",2666,MAT. CONSUMO,Jorzelina Kobuchi Lenharo Quednau,null,FUNDAÇÃO UNIVERSIDADE DE BRASÍLIA,null,982.80,ordinário,605
PRÓPRIOS -  PREST.SERVICOS FUB/FUNDO,164.00,FISCAL,PR 6/2020 - FUB,2021,06/12/2021,CRÉDITOS DISTRIBUÍDOS PARA AS UNIDADES ACADÊMICAS,null,null,null,FUNCIONAMENTO DE INSTITUICOES FEDERAI - NO DF,23106.085994/2018-81,"C. CUSTO: FAC.      PROT:11010103{SM2471/2021(4076,80)}      SEI 23106.106037/2021-09.AQUISIÇÃO DE EQUIPAMENTOS PARA SISTEMA DE SEGURANÇA.2021ND004503.",2664,SERV. PESSOA JURÍDICA,UNIVERSO DA SEGURANCA COMERCIO E SERVICOS - EIRELI - ME,null,FUNDAÇÃO UNIVERSIDADE DE BRASÍLIA,null,164.00,ordinário,605
PRÓPRIOS -  PREST.SERVICOS FUB/FUNDO,750.00,FISCAL,PR 6/2020 - FUB,2021,06/12/2021,CRÉDITOS DISTRIBUÍDOS PARA AS UNIDADES ACADÊMICAS,null,null,null,FUNCIONAMENTO DE INSTITUICOES FEDERAI - NO DF,23106.085994/2018-81,"C. CUSTO: FAC.      PROT:11010103{SM3633/2021(750,00)}      SEI 23106.106037/2021-09.AQUISIÇÃO DE EQUIPAMENTOS PARA SISTEMA DE SEGURANÇA.2021ND004503.",2661,SERV. PESSOA JURÍDICA,SEAL TELECOM COMERCIO E SERVICOS DE TELECOMUNICACOES L,null,FUNDAÇÃO UNIVERSIDADE DE BRASÍLIA,null,750.00,ordinário,605
PRÓPRIOS -  PREST.SERVICOS FUB/FUNDO,4593.38,FISCAL,PR 6/2020 - FUB,2021,06/12/2021,CRÉDITOS DISTRIBUÍDOS PARA AS UNIDADES ACADÊMICAS,null,null,null,FUNCIONAMENTO DE INSTITUICOES FEDERAI - NO DF,23106.085994/2018-81,"C. CUSTO: FAC.      PROT:11010103{SM2470/2021(4593,38)}      SEI 23106.106037/2021-09.AQUISIÇÃO DE EQUIPAMENTOS PARA SISTEMA DE SEGURANÇA.2021ND004503.",2660,SERV. PESSOA JURÍDICA,Rabeiro Eninger Kläsener Delbone,null,FUNDAÇÃO UNIVERSIDADE DE BRASÍLIA,null,4593.38,ordinário,605
PRÓPRIOS -  PREST.SERVICOS FUB/FUNDO,242.65,FISCAL,PR 28/2021 - FUB,2021,06/12/2021,CRÉDITOS DISTRIBUÍDOS PARA AS UNIDADES ACADÊMICAS,null,null,null,20RK - PO COVID19,23106.054493/2021-58,"C.CUSTO:FAV// AQUISIÇÃO DE MATERIAL DE PROTEÇÃO CONTRA COVID-19// OFICIO 59/2021/FAV/DIR SEI N.23106.131813/2021-09// 2021ND004800// PROT:11010105(242,65)// REQ.3760",2658,MAT. CONSUMO,Muzzolon Iti Patutti Paschoalotto,null,FUNDAÇÃO UNIVERSIDADE DE BRASÍLIA,null,242.65,ordinário,605
PRÓPRIOS -  PREST.SERVICOS FUB/FUNDO,3819.42,FISCAL,PR 28/2021 - FUB,2021,06/12/2021,CRÉDITOS DISTRIBUÍDOS PARA AS UNIDADES ACADÊMICAS,null,null,null,20RK - PO COVID19,23106.054493/2021-58,"C.CUSTO:FAV// AQUISIÇÃO DE MATERIAL DE PROTEÇÃO CONTRA COVID-19// OFICIO 59/2021/FAV/DIR SEI N.23106.131813/2021-09// 2021ND004800// PROT:11010105(3819,42)// REQ.3759",2657,MAT. CONSUMO,Diorgenis Margy Hoscher,null,FUNDAÇÃO UNIVERSIDADE DE BRASÍLIA,null,3819.42,ordinário,605
PRÓPRIOS -  PREST.SERVICOS FUB/FUNDO,1328.80,FISCAL,PR 28/2021 - FUB,2021,06/12/2021,CRÉDITOS DISTRIBUÍDOS PARA AS UNIDADES ACADÊMICAS,null,null,null,20RK - PO COVID19,23106.054493/2021-58,"C.CUSTO:FAV// AQUISIÇÃO DE MATERIAL DE PROTEÇÃO CONTRA COVID-19// OFICIO 59/2021/FAV/DIR SEI N.23106.131813/2021-09// 2021ND004800// PROT:11010105(1328,80)// REQ.3758",2656,MAT. CONSUMO,Raidmilson Leomar Vinholte,null,FUNDAÇÃO UNIVERSIDADE DE BRASÍLIA,null,1328.80,ordinário,605
PRÓPRIOS -  PREST.SERVICOS FUB/FUNDO,4100.00,FISCAL,PR 205/2021 - FUB,2021,06/12/2021,CRÉDITOS DISTRIBUÍDOS PARA AS UNIDADES ACADÊMICAS,null,null,null,FUNCIONAMENTO DE INSTITUICOES FEDERAI - NO DF,23106.112840/2020-93,"C. CUSTO: FTD.      PROT:11010111{SM3688/2021(4100,00)}      SEI 23106.115983/2021-38.AQUISIÇÃO DE MESAS DIGITALIZADORAS.2021ND004162.",2655,EQUIP. MATERIAL PERMANENTE,Cenimar Denes,null,FUNDAÇÃO UNIVERSIDADE DE BRASÍLIA,null,4100.00,ordinário,605
PRÓPRIOS -  PREST.SERVICOS FUB/FUNDO,25500.00,FISCAL,PR 205/2021 - FUB,2021,06/12/2021,CRÉDITOS DISTRIBUÍDOS PARA AS UNIDADES ACADÊMICAS,null,null,null,FUNCIONAMENTO DE INSTITUICOES FEDERAI - NO DF,23106.112840/2020-93,"C. CUSTO: FTD.      PROT:11010111{SM3687/2021(25500,00)}        SEI 23106.115983/2021-38.AQUISIÇÃO DE MESAS DIGITALIZADORAS.        2021ND004870.",2654,EQUIP. MATERIAL PERMANENTE,Cenimar Denes,null,FUNDAÇÃO UNIVERSIDADE DE BRASÍLIA,null,25500.00,ordinário,605
PRÓPRIOS -  PREST.SERVICOS FUB/FUNDO,809.90,FISCAL,PR 28/2021 - FUB,2021,06/12/2021,CRÉDITOS DISTRIBUÍDOS PARA AS UNIDADES ACADÊMICAS,null,null,null,20RK - PO COVID19,23106.054493/2021-58,"C.CUSTO:FAV//  AQUISIÇÃO DE MATERIAL DE PROTEÇÃO CONTRA COVID-19// OFICIO 59/2021/FAV/DIRSEI N.23106.131813/2021-09//  2021ND004800//  PROT:11010105(809,90)// REQ.3757",2651,MAT. CONSUMO,Jorzelina Kobuchi Lenharo Quednau,null,FUNDAÇÃO UNIVERSIDADE DE BRASÍLIA,null,809.90,ordinário,605
PRÓPRIOS -  PREST.SERVICOS FUB/FUNDO,2318.40,FISCAL,PR 28/2021 - FUB,2021,06/12/2021,CRÉDITOS DISTRIBUÍDOS PARA AS UNIDADES ACADÊMICAS,null,null,null,20RK - PO COVID19,23106.054493/2021-58,"C.CUSTO:FAV//  AQUISIÇÃO DE MATERIAL DE PROTEÇÃO CONTRA COVID-19// OFICIO 59/2021/FAV/DIRSEI N.23106.131813/2021-09//  2021ND004800//  PROT:11010105(2318,40)// REQ.3756",2650,MAT. CONSUMO,Ronchi Kollross Cassanelli Ermelina,null,FUNDAÇÃO UNIVERSIDADE DE BRASÍLIA,null,2318.40,ordinário,605
PRÓPRIOS -  PREST.SERVICOS FUB/FUNDO,247.21,FISCAL,PR 28/2021 - FUB,2021,06/12/2021,CRÉDITOS DISTRIBUÍDOS PARA AS UNIDADES ACADÊMICAS,null,null,null,FUNCIONAMENTO DE INSTITUICOES FEDERAI - NO DF,23106.054493/2021-58,"C.CUSTO:IPD// AQUISIÇÃO DE OCULOS DE PROTEÇÃO POLICARBONATO PROT:11010120(247,21)// REQ.3728// 2021ND004914",2649,MAT. CONSUMO,Diorgenis Margy Hoscher,null,FUNDAÇÃO UNIVERSIDADE DE BRASÍLIA,null,247.21,ordinário,605
PRÓPRIOS -  PREST.SERVICOS FUB/FUNDO,891.80,FISCAL,PR 28/2021 - FUB,2021,06/12/2021,CRÉDITOS DISTRIBUÍDOS PARA AS UNIDADES ACADÊMICAS,null,null,null,FUNCIONAMENTO DE INSTITUICOES FEDERAI - NO DF,23106.054493/2021-58,"C.CUSTO:IPD//  AQUISIÇÃO DE PROTETOR FACIAL INCOLOR POLICARBONATO// MEMO N.428/2021/IP/DIRPROT:11010120(900,00)//  REQ. 3726",2648,MAT. CONSUMO,Jorzelina Kobuchi Lenharo Quednau,null,FUNDAÇÃO UNIVERSIDADE DE BRASÍLIA,null,891.80,ordinário,605
PRÓPRIOS -  PREST.SERVICOS FUB/FUNDO,118.80,FISCAL,PR 28/2021 - FUB,2021,06/12/2021,CRÉDITOS DISTRIBUÍDOS PARA AS UNIDADES ACADÊMICAS,null,null,null,FUNCIONAMENTO DE INSTITUICOES FEDERAI - NO DF,23106.054493/2021-58,"C. CUSTO: IFD.      PROT:11010116{SM3720/2021(118,80)}        SEI 23106.131394/2021-05.AQUISIÇÃO DE MASCARAS DESCARTÁVEIS.              OFICIO 006/2021/IF/SEC/COMPRAS.2021ND004856.",2647,MAT. CONSUMO,Diorgenis Margy Hoscher,null,FUNDAÇÃO UNIVERSIDADE DE BRASÍLIA,null,118.80,ordinário,605
RECURSOS DIR.ARRECADADOS(PROPRIOS)-FUB -,17814.08,FISCAL,null,2021,06/12/2021,RECEITAS LAB IG - ANALISES LABORATORIAIS,null,null,null,FUNCIONAMENTO DE INSTITUICOES FEDERAI - NO DF,23106.071129/2021-52,"C. CUSTO IGD PROT:11010117(17814,08) CONTRATAÇÃO DA WHITE MARTINS GASES INDUSTRIAIS PARA FORNECIMENTO DE ARGÔNIO LÍQUIDO. SEI: 23106.071129/2021-52 2021ND004902 DISPENSA DE LICITAÇÃO 10006/2021.",2646,SERV. PESSOA JURÍDICA,WHITE MARTINS GASES INDUSTRIAIS LTDA,null,FUNDAÇÃO UNIVERSIDADE DE BRASÍLIA,null,17814.08,global,605
PRÓPRIOS -  PREST.SERVICOS FUB/FUNDO,118500.00,FISCAL,null,2021,06/12/2021,CRÉDITOS DISTRIBUÍDOS PARA AS UNIDADES ACADÊMICAS,null,null,null,FUNCIONAMENTO DE INSTITUICOES FEDERAI - NO DF,23106.071129/2021-52,"C. CUSTO IGD PROT:11010117(118500,00) CONTRATAÇÃO DA WHITE MARTINS GASES INDUSTRIAIS PARA FORNECIMENTO DE ARGÔNIO LÍQUIDO. SEI: 23106.071129/2021-52 2021ND004902 DISPENSA DE LICITAÇÃO 10006/2021.",2645,MAT. CONSUMO,WHITE MARTINS GASES INDUSTRIAIS LTDA,null,FUNDAÇÃO UNIVERSIDADE DE BRASÍLIA,null,118500.00,global,605
CUSTOS INDIRETOS - UNIDADES DIVERSAS,826.00,FISCAL,PR 28/2021 - FUB,2021,06/12/2021,CUSTOS INDIRETOS UNIDADE CAPTADORA,null,null,null,FUNCIONAMENTO DE INSTITUICOES FEDERAI - NO DF,23106.054493/2021-58,"C.CUSTO:FEF//  AQUISIÇÃO DE ALCOOL ETILICO E ALCOOL EM GELMEMO N.079/2021/FEF/FIN// REQ.3718/2021// PROT:11010108(826,00)",2644,MAT. CONSUMO,Diorgenis Margy Hoscher,null,FUNDAÇÃO UNIVERSIDADE DE BRASÍLIA,null,826.00,ordinário,605
PRÓPRIOS -  PREST.SERVICOS FUB/FUNDO,1265.00,FISCAL,PR 18/2021 - FUB,2021,06/12/2021,CRÉDITOS DISTRIBUÍDOS PARA AS UNIDADES ACADÊMICAS,null,null,null,FUNCIONAMENTO DE INSTITUICOES FEDERAI - NO DF,23106.032985/2021-92,"C.CUSTO:IDA//  AQUISIÇÃO DE TAPETE VINIL SANITIZANTE// MEMO N.93/2021/IDA/CENPROT:11010114(1265,00)//  2021ND004887// REQ. 3616",2641,MAT. CONSUMO,Shirly Caiuby Ilambwetsi Kiosz,null,FUNDAÇÃO UNIVERSIDADE DE BRASÍLIA,null,1265.00,ordinário,605
PRÓPRIOS -  PREST.SERVICOS FUB/FUNDO,4990.00,FISCAL,PR 206/2020 - FUB,2021,06/12/2021,CRÉDITOS DISTRIBUÍDOS PARA AS UNIDADES ACADÊMICAS,null,null,null,FUNCIONAMENTO DE INSTITUICOES FEDERAI - NO DF,23106.102135/2020-88,"C.CUSTO:IDA//  AQUISIÇÃO DE NOTEBOOK//  MEMO N.95/2021/IDA/CENPROT:11010114(4990,00)//  REQ.3734/2021",2639,EQUIPAMENTOS E MATERIAL PERMANENTE,Belli Lizot Lozzi Paolis,null,FUNDAÇÃO UNIVERSIDADE DE BRASÍLIA,null,4990.00,ordinário,605
PRÓPRIOS -  PREST.SERVICOS FUB/FUNDO,1581.90,FISCAL,null,2021,06/12/2021,CRÉDITOS DISTRIBUÍDOS PARA AS UNIDADES ADMINISTRATIVAS,null,null,null,FUNCIONAMENTO DE INSTITUICOES FEDERAI - NO DF,23106.139769/2021-77,"C.CUSTO:CEAD -AT- PATRICIA FLORIANI MANSUR - PROT:110124{SM3191/2021(1581,90)}MATERIAL DE CONSUMO-PEDIDO:3191/2021 -2021ND004860 -PREG:305/2021MATERIAL P/ FESTIVIDADES E HOMENAGENS - VASO ORNAMENTALMEMO.S.N/2021/CEAD/CPF - S.E.I 23106.129477/2021-26",2624,MAT. CONSUMO,LICITOP COMERCIO E SERVICO EIRELI - EPP,null,FUNDAÇÃO UNIVERSIDADE DE BRASÍLIA,null,1581.90,global,605
RECURSOS ORDINÁRIOS,3600.00,FISCAL,null,2021,06/12/2021,AUXILIO SOCIOECONOMICO DA UNB/PAS,null,null,null,FUNCIONAMENTO DE INSTITUICOES FEDERAI - NO DF,23106.132055/2021-38,"C. CUSTO: DAC SEI 23106.132055/2021-38PAG DE BOLSA DE ESTUDOS NO PAÍS PROT:110109(3600,00)MEMO.S.N/2021/DAC/DACES 2021ND000861REGISTRADOS NOS PROGRAMAS DE ASSISTÊNCIA ESTUDANTIL DO DACApoio e organização dos dados e informações do Programa de Tutoria Especial ¿ PTE",2621,AUX. FINANCEIRO ESTUDANTE,Roniltom Copit Leichsenring,null,FUNDAÇÃO UNIVERSIDADE DE BRASÍLIA,null,3600.00,global,605
PRÓPRIOS -  PREST.SERVICOS FUB/FUNDO,1118.00,FISCAL,PR 6/2020 - FUB,2021,03/12/2021,CRÉDITOS DISTRIBUÍDOS PARA AS UNIDADES ACADÊMICAS,null,null,null,FUNCIONAMENTO DE INSTITUICOES FEDERAI - NO DF,23106.085994/2018-81,"C. CUSTO: FSD                           SEI:23106.128291/2021-50 ATT: ELIANA DOS SANTOS LEANDRO  - 2021ND000000MEMO.001/2021/FS/NUT - PROT:11010110{SM3678/2021(1118,00)}MATERIAL DE PERMANENTE - PEDIDO:3678/2021 -   PREG:06/2020  EQUIPAMENTOS PARA ÁUDIO - VÍDEO E FOTO - CÂMERA TIPO DOME",2613,SERV. PESSOA JURÍDICA,SEAL TELECOM COMERCIO E SERVICOS DE TELECOMUNICACOES L,null,FUNDAÇÃO UNIVERSIDADE DE BRASÍLIA,null,1118.00,ordinário,605
PRÓPRIOS -  PREST.SERVICOS FUB/FUNDO,9120.00,FISCAL,null,2021,06/12/2021,CRÉDITOS DISTRIBUÍDOS PARA AS UNIDADES ACADÊMICAS,null,null,null,FUNCIONAMENTO DE INSTITUICOES FEDERAI - NO DF,23106.137329/2021-85,23106.137329/2021-85,2611,EQUIP. MATERIAL PERMANENTE,Sileir Hallay Zeymer,null,FUNDAÇÃO UNIVERSIDADE DE BRASÍLIA,null,9120.00,global,605
RECURSOS ORDINÁRIOS,374.00,FISCAL,null,2021,06/12/2021,"TRANSPORTE RODOVIÁRIO DE CARGA LOCAL, INTERMUNICIPAL E INTERESTADUAL (BENS PATRI",null,null,null,FUNCIONAMENTO DE INSTITUICOES FEDERAI - NO DF,23106.000273/2022-95,23106.000273/2022-95,2610,MAT. CONSUMO,Felts Jadir Foratto,null,FUNDAÇÃO UNIVERSIDADE DE BRASÍLIA,null,374.00,global,605
PRÓPRIOS -  PREST.SERVICOS FUB/FUNDO,2144.00,FISCAL,null,2021,06/12/2021,CRÉDITOS DISTRIBUÍDOS PARA AS UNIDADES ACADÊMICAS,null,null,null,FUNCIONAMENTO DE INSTITUICOES FEDERAI - NO DF,23106.137339/2021-11,23106.137339/2021-11,2609,EQUIP. MATERIAL PERMANENTE,Sileir Hallay Zeymer,null,FUNDAÇÃO UNIVERSIDADE DE BRASÍLIA,null,2144.00,global,605
PRÓPRIOS -  PREST.SERVICOS FUB/FUNDO,158.19,FISCAL,PR,2021,06/12/2021,CRÉDITOS DISTRIBUÍDOS PARA AS UNIDADES ADMINISTRATIVAS,null,null,null,FUNCIONAMENTO DE INSTITUICOES FEDERAI - NO DF,23106.117881/2021-57,"C. CUSTO DAF PROT:110110(158,19) PREG: 305/2021MEMORANDO N. 0080/2021 (7322226) AQUSIÇÃO DE VASO ORNAMENTAL.SEI: 23106.117881/2021-57 2021ND004809",2600,MAT. CONSUMO,LICITOP COMERCIO E SERVICO EIRELI - EPP,null,FUNDAÇÃO UNIVERSIDADE DE BRASÍLIA,null,158.19,global,605
PRÓPRIOS -  PREST.SERVICOS FUB/FUNDO,75.81,FISCAL,PR,2021,06/12/2021,CRÉDITOS DISTRIBUÍDOS PARA AS UNIDADES ADMINISTRATIVAS,null,null,null,FUNCIONAMENTO DE INSTITUICOES FEDERAI - NO DF,23106.117881/2021-57,"C. CUSTO DAF PROT:110110(75,81)MEMORANDO N. 0080/2021 (7322226) AQUSIÇÃO DE VASO ORNAMENTAL.SEI: 23106.117881/2021-57 2021ND004809",2599,MAT. CONSUMO,Asunção Miramar Balais Blati,null,FUNDAÇÃO UNIVERSIDADE DE BRASÍLIA,null,75.81,global,605
PRÓPRIOS -  PREST.SERVICOS FUB/FUNDO,31304.00,FISCAL,PR 6/2020 - FUB,2021,06/12/2021,CRÉDITOS DISTRIBUÍDOS PARA AS UNIDADES ACADÊMICAS,null,null,null,FUNCIONAMENTO DE INSTITUICOES FEDERAI - NO DF,23106.085994/2018-81,"C. CUSTO IPD PROT:11010120(31304,00) REQ: 3424/2021AQUISIÇÃO DE 28 (VINTE E OITO) UNIDADES DE CÂMERA TIPO DOMESEI: 23106.103657/2021-88 2021ND004831",2598,SERV. PESSOA JURÍDICA,SEAL TELECOM COMERCIO E SERVICOS DE TELECOMUNICACOES L,null,FUNDAÇÃO UNIVERSIDADE DE BRASÍLIA,null,31304.00,ordinário,605
RECURSOS DIRETAM.ARREC FUNDAÇÃO UNIV.BRASÍLIA,596591.76,FISCAL,PR,2021,06/12/2021,RECEPCIONISTA,null,null,null,FUNCIONAMENTO DE INSTITUICOES FEDERAI - NO DF,23106.127519/2018-99,"C. CUSTO DTER - S.E.I 23106.127519/2018-99 - PROT:11011007(596591,96)7 TERMO ADITIVO AO CONTRATO Nº 032/2019  32/2019 - ENTRE A FUB E A GRIFFO(SERVIÇOS CONTINU ADOS DE RECEPCIONISTAS) - PREG:02/2019 2021ND004841",2597,LOC. MÃO-DE-OBRA,Tielen Yoshiy Lomando Nardele B Machado,null,FUNDAÇÃO UNIVERSIDADE DE BRASÍLIA,null,596591.76,global,605
PRÓPRIOS -  PREST.SERVICOS FUB/FUNDO,7760.00,FISCAL,null,2021,06/12/2021,CRÉDITOS DISTRIBUÍDOS PARA AS UNIDADES ACADÊMICAS,null,null,null,FUNCIONAMENTO DE INSTITUICOES FEDERAI - NO DF,23106.137318/2021-03,23106.137318/2021-03,2596,EQUIP. MATERIAL PERMANENTE,Sileir Hallay Zeymer,null,FUNDAÇÃO UNIVERSIDADE DE BRASÍLIA,null,7760.00,global,605
PRÓPRIOS -  PREST.SERVICOS FUB/FUNDO,1118.00,FISCAL,PR 6/2020 - FUB,2021,03/12/2021,CRÉDITOS DISTRIBUÍDOS PARA AS UNIDADES ACADÊMICAS,null,null,null,FUNCIONAMENTO DE INSTITUICOES FEDERAI - NO DF,23106.085994/2018-81,"C. CUSTO: FSD                           SEI:23106.108742/2021-32ATT: IVANA ARAGÃO LIRA VASCONCELOS  - 2021ND000000MEMO.001/2021/FS/NUT - PROT:11010110{SM3479/2021(1118,00)}MATERIAL DE PERMANENTE - PEDIDO:3479/2021 -   PREG:06/2020  EQUIPAMENTOS PARA ÁUDIO - VÍDEO E FOTO - CÂMERA TIPO DOME",2595,SERV. PESSOA JURÍDICA,SEAL TELECOM COMERCIO E SERVICOS DE TELECOMUNICACOES L,null,FUNDAÇÃO UNIVERSIDADE DE BRASÍLIA,null,1118.00,ordinário,605
PRÓPRIOS -  PREST.SERVICOS FUB/FUNDO,1700.00,FISCAL,null,2021,03/12/2021,CRÉDITOS DISTRIBUÍDOS PARA AS UNIDADES ACADÊMICAS,null,null,null,FUNCIONAMENTO DE INSTITUICOES FEDERAI - NO DF,23106.000645/2022-83,23106.000645/2022-83,2594,EQUIP. MATERIAL PERMANENTE,Cenimar Denes,null,FUNDAÇÃO UNIVERSIDADE DE BRASÍLIA,null,1700.00,global,605
RECURSOS ORDINÁRIOS,892.76,FISCAL,null,2021,06/12/2021,FUNCIONAMENTO GERAL,null,null,null,20RK - PO COVID19,23106.001562/2022-10,23106.001562/2022-10,2593,MAT. CONSUMO,Cleanny Hergesell Fargnolli Evelise Gaviano,null,FUNDAÇÃO UNIVERSIDADE DE BRASÍLIA,null,892.76,global,605
PRÓPRIOS -  PREST.SERVICOS FUB/FUNDO,4990.00,FISCAL,PR 206/2020 - FUB,2021,03/12/2021,CRÉDITOS DISTRIBUÍDOS PARA AS UNIDADES ACADÊMICAS,null,null,null,FUNCIONAMENTO DE INSTITUICOES FEDERAI - NO DF,23106.102135/2020-88,"C. CUSTO: IBD                            SEI:23106.129241/2021-90 ATT: JAIME MARTINS DE SANTANA - 2021ND000000MEMO.084/2021/IB/COMPRAS - PROT:11010112{SM3536/2021(4990,00)}MATERIAL DE PERMANENTE - PEDIDO:3536/2021 -   PREG:206/2020  EQUIPAMENTOS TIC - NOTEBOOK TIPO PADRÃO",2590,EQUIPAMENTOS E MATERIAL PERMANENTE,Belli Lizot Lozzi Paolis,null,FUNDAÇÃO UNIVERSIDADE DE BRASÍLIA,null,4990.00,ordinário,605
PRÓPRIOS -  PREST.SERVICOS FUB/FUNDO,4990.00,FISCAL,PR 206/2020 - FUB,2021,03/12/2021,CRÉDITOS DISTRIBUÍDOS PARA AS UNIDADES ACADÊMICAS,null,null,null,FUNCIONAMENTO DE INSTITUICOES FEDERAI - NO DF,23106.102135/2020-88,"C. CUSTO: IBD                            SEI:23106.129241/2021-90 ATT: JAIME MARTINS DE SANTANA - 2021ND000000MEMO.084/2021/IB/COMPRAS - PROT:11010112{SM3535/2021(4990,00)}MATERIAL DE PERMANENTE - PEDIDO:3535/2021 -   PREG:206/2020  EQUIPAMENTOS TIC - NOTEBOOK TIPO PADRÃO",2589,EQUIPAMENTOS E MATERIAL PERMANENTE,Belli Lizot Lozzi Paolis,null,FUNDAÇÃO UNIVERSIDADE DE BRASÍLIA,null,4990.00,ordinário,605
PRÓPRIOS -  PREST.SERVICOS FUB/FUNDO,51597.00,FISCAL,PR 206/2020 - FUB,2021,03/12/2021,CRÉDITOS DISTRIBUÍDOS PARA AS UNIDADES ACADÊMICAS,null,null,null,FUNCIONAMENTO DE INSTITUICOES FEDERAI - NO DF,23106.102135/2020-88,"C. CUSTO: IBD                            SEI:23106.129241/2021-90 ATT: JAIME MARTINS DE SANTANA - 2021ND000000MEMO.084/2021/IB/COMPRAS - PROT:11010112{SM3529/2021(51597,00)}MATERIAL DE PERMANENTE - PEDIDO:3529/2021 -   PREG:206/2020  EQUIPAMENTOS TIC - MICROCOMPUTADOR TIPO  AVANÇADO",2588,EQUIPAMENTOS E MATERIAL PERMANENTE,Ahissou Sbroggio Gongi,null,FUNDAÇÃO UNIVERSIDADE DE BRASÍLIA,null,51597.00,ordinário,605
PRÓPRIOS -  PREST.SERVICOS FUB/FUNDO,104000.00,FISCAL,PR 206/2020 - FUB,2021,03/12/2021,CRÉDITOS DISTRIBUÍDOS PARA AS UNIDADES ACADÊMICAS,null,null,null,FUNCIONAMENTO DE INSTITUICOES FEDERAI - NO DF,23106.102135/2020-88,"C. CUSTO: IBD                            SEI:23106.129241/2021-90 ATT: JAIME MARTINS DE SANTANA - 2021ND000000MEMO.084/2021/IB/COMPRAS - PROT:11010112{SM3527/2021(104000,00)}MATERIAL DE PERMANENTE - PEDIDO:3527/2021 -   PREG:206/2020  EQUIPAMENTOS TIC - MICROCOMPUTADOR TIPO PADRÃO",2587,EQUIPAMENTOS E MATERIAL PERMANENTE,Hohlenwerger Jacunda Mezzalira Escott Alodji,null,FUNDAÇÃO UNIVERSIDADE DE BRASÍLIA,null,104000.00,ordinário,605
PRÓPRIOS -  PREST.SERVICOS FUB/FUNDO,980.00,FISCAL,PR 24/2021 - FUB,2021,06/12/2021,CRÉDITOS DISTRIBUÍDOS PARA AS UNIDADES ACADÊMICAS,null,null,null,FUNCIONAMENTO DE INSTITUICOES FEDERAI - NO DF,23106.052694/2021-11,23106.139195/2021-37,2586,EQUIP. MATERIAL PERMANENTE,Sedenho Colnaghi Nobuo Hussar,null,FUNDAÇÃO UNIVERSIDADE DE BRASÍLIA,null,980.00,global,605
C.I UNIDADES DIVERSAS,10088.00,FISCAL,null,2021,03/12/2021,CUSTOS INDIRETOS UNIDADE CAPTADORA,null,null,null,FUNCIONAMENTO DE INSTITUICOES FEDERAI - NO DF,23106.137320/2021-74,23106.137320/2021-74,2578,EQUIP. MATERIAL PERMANENTE,Sileir Hallay Zeymer,null,FUNDAÇÃO UNIVERSIDADE DE BRASÍLIA,null,10088.00,global,605
PRÓPRIOS -  PREST.SERVICOS FUB/FUNDO,9312.00,FISCAL,null,2021,03/12/2021,CRÉDITOS DISTRIBUÍDOS PARA AS UNIDADES ACADÊMICAS,null,null,null,FUNCIONAMENTO DE INSTITUICOES FEDERAI - NO DF,23106.137321/2021-19,IBD,2565,EQUIP. MATERIAL PERMANENTE,Sileir Hallay Zeymer,null,FUNDAÇÃO UNIVERSIDADE DE BRASÍLIA,null,9312.00,global,605
PRÓPRIOS -  PREST.SERVICOS FUB/FUNDO,9980.00,FISCAL,PR 206/2020 - FUB,2021,03/12/2021,CRÉDITOS DISTRIBUÍDOS PARA AS UNIDADES ACADÊMICAS,null,null,null,FUNCIONAMENTO DE INSTITUICOES FEDERAI - NO DF,23106.102135/2020-88,"C. CUSTO: IBD                           SEI:23106.128632/2021-97 ATT: JAIME MARTINS DE SANTANA               2021ND004732MEMO.083/2021/IB/COMPRAS    PROT:11010112{SM3451/2021(9980,00)}MATERIAL DE PERMANENTE - PEDIDO:3451/2021 -   PREG:205/2021  EQUIPAMENTOS TIC - NOTEBOOK TIPO PADRÃO",2556,EQUIPAMENTOS E MATERIAL PERMANENTE,Belli Lizot Lozzi Paolis,null,FUNDAÇÃO UNIVERSIDADE DE BRASÍLIA,null,9980.00,ordinário,605
PRÓPRIOS -  PREST.SERVICOS FUB/FUNDO,1700.00,FISCAL,null,2021,03/12/2021,CRÉDITOS DISTRIBUÍDOS PARA AS UNIDADES ACADÊMICAS,null,null,null,FUNCIONAMENTO DE INSTITUICOES FEDERAI - NO DF,23106.000653/2022-20,23106.000653/2022-20,2554,EQUIP. MATERIAL PERMANENTE,Cenimar Denes,null,FUNDAÇÃO UNIVERSIDADE DE BRASÍLIA,null,1700.00,global,605
PRÓPRIOS -  PREST.SERVICOS FUB/FUNDO,740.00,FISCAL,PR 6/2020 - FUB,2021,03/12/2021,CRÉDITOS DISTRIBUÍDOS PARA AS UNIDADES ACADÊMICAS,null,null,null,FUNCIONAMENTO DE INSTITUICOES FEDERAI - NO DF,23106.085994/2018-81,"C. CUSTO: FTD.      PROT:11010111{SM2994/2021(740,00)}     SEI 23106.079017/2021-40.AQUISIÇÃO DE EQUIPAMENTOS PARA SISTEMA ELETRÔNICO DE SEGURANÇA.2021ND004756.        DESPACHO FT/DIREÇÃO (6916595).",2552,SERV. PESSOA JURÍDICA,SEAL TELECOM COMERCIO E SERVICOS DE TELECOMUNICACOES L,null,FUNDAÇÃO UNIVERSIDADE DE BRASÍLIA,null,740.00,ordinário,605
PRÓPRIOS -  PREST.SERVICOS FUB/FUNDO,1468.46,FISCAL,PR 6/2020 - FUB,2021,03/12/2021,CRÉDITOS DISTRIBUÍDOS PARA AS UNIDADES ACADÊMICAS,null,null,null,FUNCIONAMENTO DE INSTITUICOES FEDERAI - NO DF,23106.085994/2018-81,"C. CUSTO: FTD.      PROT:11010111{SM2993/2021(1468,46)}     SEI 23106.079017/2021-40.AQUISIÇÃO DE EQUIPAMENTOS PARA SISTEMA ELETRÔNICO DE SEGURANÇA.2021ND004756.        DESPACHO FT/DIREÇÃO (6916595).",2551,SERV. PESSOA JURÍDICA,Rabeiro Eninger Kläsener Delbone,null,FUNDAÇÃO UNIVERSIDADE DE BRASÍLIA,null,1468.46,ordinário,605
PRÓPRIOS -  PREST.SERVICOS FUB/FUNDO,4593.38,FISCAL,PR 6/2020 - FUB,2021,03/12/2021,CRÉDITOS DISTRIBUÍDOS PARA AS UNIDADES ACADÊMICAS,null,null,null,FUNCIONAMENTO DE INSTITUICOES FEDERAI - NO DF,23106.085994/2018-81,"C. CUSTO: FTD.      PROT:11010111{SM2992/2021(4593,38)}     SEI 23106.079017/2021-40.AQUISIÇÃO DE EQUIPAMENTOS PARA SISTEMA ELETRÔNICO DE SEGURANÇA.2021ND004756.        DESPACHO FT/DIREÇÃO (6916595).",2550,SERV. PESSOA JURÍDICA,Rabeiro Eninger Kläsener Delbone,null,FUNDAÇÃO UNIVERSIDADE DE BRASÍLIA,null,4593.38,ordinário,605
PRÓPRIOS -  PREST.SERVICOS FUB/FUNDO,2007.54,FISCAL,PR 6/2020 - FUB,2021,03/12/2021,CRÉDITOS DISTRIBUÍDOS PARA AS UNIDADES ACADÊMICAS,null,null,null,FUNCIONAMENTO DE INSTITUICOES FEDERAI - NO DF,23106.085994/2018-81,"C. CUSTO: FTD.      PROT:11010111{SM2991/2021(2007,54)}     SEI 23106.079017/2021-40.AQUISIÇÃO DE EQUIPAMENTOS PARA SISTEMA ELETRÔNICO DE SEGURANÇA.2021ND004756.        DESPACHO FT/DIREÇÃO (6916595).",2549,SERV. PESSOA JURÍDICA,Rabeiro Eninger Kläsener Delbone,null,FUNDAÇÃO UNIVERSIDADE DE BRASÍLIA,null,2007.54,ordinário,605
PRÓPRIOS -  PREST.SERVICOS FUB/FUNDO,22360.00,FISCAL,PR 6/2020 - FUB,2021,03/12/2021,CRÉDITOS DISTRIBUÍDOS PARA AS UNIDADES ACADÊMICAS,null,null,null,FUNCIONAMENTO DE INSTITUICOES FEDERAI - NO DF,23106.085994/2018-81,"C. CUSTO: FSD.      PROT:11010111{SM2985/2021(22360,00)}     SEI 23106.079017/2021-40.AQUISIÇÃO DE CÂMERAS.2021ND004756.        DESPACHO FT/DIREÇÃO (6916595).",2548,SERV. PESSOA JURÍDICA,SEAL TELECOM COMERCIO E SERVICOS DE TELECOMUNICACOES L,null,FUNDAÇÃO UNIVERSIDADE DE BRASÍLIA,null,22360.00,ordinário,605
PRÓPRIOS -  PREST.SERVICOS FUB/FUNDO,10400.00,FISCAL,PR 206/2020 - FUB,2021,03/12/2021,CRÉDITOS DISTRIBUÍDOS PARA AS UNIDADES ADMINISTRATIVAS,null,null,null,FUNCIONAMENTO DE INSTITUICOES FEDERAI - NO DF,23106.102135/2020-88,"C. CUSTO: AUD.     PROT:110103{SM3537/2021(10400,00)}                SEI 23106.129358/2021-73.AQUISIÇÃO DE MICROCOMPUTADORES.2021ND004768.                MEMO 117/2021/AUD/SEC.",2547,EQUIPAMENTOS E MATERIAL PERMANENTE,Hohlenwerger Jacunda Mezzalira Escott Alodji,null,FUNDAÇÃO UNIVERSIDADE DE BRASÍLIA,null,10400.00,ordinário,605
PRÓPRIOS -  PREST.SERVICOS FUB/FUNDO,24.50,FISCAL,PR 18/2021 - FUB,2021,03/12/2021,CRÉDITOS DISTRIBUÍDOS PARA AS UNIDADES ADMINISTRATIVAS,null,null,null,FUNCIONAMENTO DE INSTITUICOES FEDERAI - NO DF,23106.032985/2021-92,"C. CUSTO: CEAD. PROT:110124{SM3622/2021(24,50)} SEI 23106.129654/2021-74. AQUISIÇÃO DE RESERVATÓRIOS PARA ÁLCOOL GEL. 2021ND004763. DESPACHO CEAD/CPF 7444182",2546,MAT. CONSUMO,Nelsomar Alamo,null,FUNDAÇÃO UNIVERSIDADE DE BRASÍLIA,null,24.50,global,605
RECURSOS DIR.ARRECADADOS(PROPRIOS)-FUB -,5220.00,FISCAL,PR 315/2020 - FUB,2021,03/12/2021,ARRECADACOES DA FAL - HORTIFRUTIGRANJEIRO,null,null,null,FUNCIONAMENTO DE INSTITUICOES FEDERAI - NO DF,23106.033435/2020-18,"C. CUSTO: FAL.     PROT:110116{SM3488/2021(5220,00)}                SEI 23106.128433/2021-89.AQUISIÇÃO DE BEBEDOUROS.2021ND004751.             MEMO 81/2021/FAL.",2545,EQUIP. MATERIAL PERMANENTE,Pelluci Baldocchi Pepper,null,FUNDAÇÃO UNIVERSIDADE DE BRASÍLIA,null,5220.00,ordinário,605
PRÓPRIOS -  PREST.SERVICOS FUB/FUNDO,540.00,FISCAL,PR 11/2021 - FUB,2021,03/12/2021,CRÉDITOS DISTRIBUÍDOS PARA AS UNIDADES ADMINISTRATIVAS,null,null,null,FUNCIONAMENTO DE INSTITUICOES FEDERAI - NO DF,23106.004528/2021-16,"C. CUSTO: CEAD.     PROT:110124{SM3194/2021(540,00)}                SEI 23106.129439/2021-73.AQUISIÇÃO DE LIXEIRA PLÁSTICA.2021ND004764.      DESPACHO CEAD/CPF 7442116.",2544,MAT. CONSUMO,Ronchi Kollross Cassanelli Ermelina,null,FUNDAÇÃO UNIVERSIDADE DE BRASÍLIA,null,540.00,ordinário,605
TAXA DE ALUNO ESPECIAL -FUB,1368.00,FISCAL,null,2021,03/12/2021,PROG DE POS-GRADUACAO EM ENFERMAGEM - NFPPGE,null,null,null,FUNCIONAMENTO DE INSTITUICOES FEDERAI - NO DF,23106.137309/2021-12,23106.137309/2021-12,2543,EQUIP. MATERIAL PERMANENTE,Sileir Hallay Zeymer,null,FUNDAÇÃO UNIVERSIDADE DE BRASÍLIA,null,1368.00,global,605
PRÓPRIOS -  PREST.SERVICOS FUB/FUNDO,952.00,FISCAL,null,2021,07/12/2021,CRÉDITOS DISTRIBUÍDOS PARA AS UNIDADES ACADÊMICAS,null,null,null,FUNCIONAMENTO DE INSTITUICOES FEDERAI - NO DF,23106.006457/2022-69,23106.006457/2022-69,2536,EQUIP. MATERIAL PERMANENTE,Augustta Buralli Comis Clezar,null,FUNDAÇÃO UNIVERSIDADE DE BRASÍLIA,null,952.00,global,605
PRÓPRIOS -  PREST.SERVICOS FUB/FUNDO,3920.00,FISCAL,PR 24/2021 - FUB,2021,03/12/2021,CRÉDITOS DISTRIBUÍDOS PARA AS UNIDADES ACADÊMICAS,null,null,null,FUNCIONAMENTO DE INSTITUICOES FEDERAI - NO DF,23106.052694/2021-11,23106.139198/2021-71,2535,EQUIP. MATERIAL PERMANENTE,Sedenho Colnaghi Nobuo Hussar,null,FUNDAÇÃO UNIVERSIDADE DE BRASÍLIA,null,3920.00,global,605
TAXA DE ALUNO ESPECIAL -FUB,0.00,FISCAL,null,2021,03/12/2021,PROG DE POS-GRADUACAO EM ENFERMAGEM - NFPPGE,null,1368.00,null,FUNCIONAMENTO DE INSTITUICOES FEDERAI - NO DF,23106.137309/2021-12,23106.137309/2021-12,2534,EQUIP. MATERIAL PERMANENTE,Sileir Hallay Zeymer,null,FUNDAÇÃO UNIVERSIDADE DE BRASÍLIA,null,1368.00,global,605
PRÓPRIOS -  PREST.SERVICOS FUB/FUNDO,4250.00,FISCAL,PR 205/2021 - FUB,2021,02/12/2021,CRÉDITOS DISTRIBUÍDOS PARA AS UNIDADES ACADÊMICAS,null,null,null,FUNCIONAMENTO DE INSTITUICOES FEDERAI - NO DF,23106.112840/2020-93,"C. CUSTO: IGD.      PROT:11010117{SM3589/2021(4250,00)}      SEI 23106.129544/2021-11.AQUISIÇÃO DE MESA DIGITALIZADORA.                    EXTRATO SIAFI (7459822).",2532,EQUIP. MATERIAL PERMANENTE,Cenimar Denes,null,FUNDAÇÃO UNIVERSIDADE DE BRASÍLIA,null,4250.00,ordinário,605
RECURSOS DIRETAM.ARREC FUNDAÇÃO UNIV.BRASÍLIA,9980.00,FISCAL,PR 206/2020 - FUB,2021,02/12/2021,FUNCIONAMENTO GERAL,null,null,null,FUNCIONAMENTO DE INSTITUICOES FEDERAI - NO DF,23106.102135/2020-88,"C. CUSTO: IDA.      PROT:11010114{SM3492/2021(9980,00)}      SEI 23106.126725/2021-87.AQUISIÇÃO DE NOTEBOOKS.                            MEMO 64/2021/IDA/MUS/SADM.2021ND004735.",2531,EQUIPAMENTOS E MATERIAL PERMANENTE,Belli Lizot Lozzi Paolis,null,FUNDAÇÃO UNIVERSIDADE DE BRASÍLIA,null,9980.00,ordinário,605
RECURSOS DIR.ARRECADADOS(PROPRIOS)-FUB -,203423.00,FISCAL,PR,2021,02/12/2021,ARRECADACOES DA FAL - HORTIFRUTIGRANJEIRO,null,null,null,FUNCIONAMENTO DE INSTITUICOES FEDERAI - NO DF,23106.129008/2021-15,"C. CUSTO FAL PROT:110116(203423,00)AQUISIÇÃO DE FERTILIZANTES, URÉIA PARA AGRICULTURA E PECUÁRIA.SEI: 23106.129008/2021-15 2021ND004715",2530,MAT. CONSUMO,Thami Fagan,null,FUNDAÇÃO UNIVERSIDADE DE BRASÍLIA,null,203423.00,global,605
CUSTOS INDIRETOS - UNIDADES DIVERSAS,2236.00,FISCAL,PR,2021,02/12/2021,CUSTOS INDIRETOS UNIDADE CAPTADORA,null,null,null,FUNCIONAMENTO DE INSTITUICOES FEDERAI - NO DF,23106.107232/2021-48,"C. CUSTO FAU PROT:11010104(2236,00)AQUISIÇÃO DE CÂMERAS E EQUIPAMENTOS DE SISTEMAS DESEGURANÇA ELETRÔNICA SEI: 23106.107232/2021-48 2021ND004719",2529,EQUIP. MATERIAL PERMANENTE,SEAL TELECOM COMERCIO E SERVICOS DE TELECOMUNICACOES L,null,FUNDAÇÃO UNIVERSIDADE DE BRASÍLIA,null,2236.00,global,605
PRÓPRIOS -  PREST.SERVICOS FUB/FUNDO,179.40,FISCAL,PR 306/2021 - FUB,2021,02/12/2021,CRÉDITOS DISTRIBUÍDOS PARA AS UNIDADES ACADÊMICAS,null,null,null,FUNCIONAMENTO DE INSTITUICOES FEDERAI - NO DF,23106.061116/2021-75,"C. CUSTO FAV PROT:11010105(179,40) REQ: 3509/2021AQUISIÇÃO DE PNEU PARA CARRINHO DE MÃO.SEI: 23106.129683/2021-36 2021ND004721",2528,MAT. CONSUMO,Derleny Shiguedomi Serehite do Vale,null,FUNDAÇÃO UNIVERSIDADE DE BRASÍLIA,null,179.40,ordinário,605
RECURSOS ORDINÁRIOS,90.00,FISCAL,PR 11/2021 - FUB,2021,02/12/2021,CRÉDITOS DISTRIBUÍDOS PARA AS UNIDADES ADMINISTRATIVAS,null,null,null,20RK - PO COVID19,23106.004528/2021-16,"C. CUSTO DEX PROT:110107(90,00) REQ: 3429/2021MEMORANDO 78 (7424228) AQUISIÇÃO ITENS DE PREVENÇÃO À COVID-19SEI: 23106.127728/2021-38  2021ND004725",2527,MAT. CONSUMO,Ronchi Kollross Cassanelli Ermelina,null,FUNDAÇÃO UNIVERSIDADE DE BRASÍLIA,null,90.00,ordinário,605
RECURSOS ORDINÁRIOS,50.76,FISCAL,PR 11/2021 - FUB,2021,02/12/2021,CRÉDITOS DISTRIBUÍDOS PARA AS UNIDADES ADMINISTRATIVAS,null,null,null,20RK - PO COVID19,23106.004528/2021-16,"C. CUSTO DEX PROT:110107(50,76) REQ: 3427, 3379/2021MEMORANDO 78 (7424228) AQUISIÇÃO ITENS DE PREVENÇÃO À COVID-19SEI: 23106.127728/2021-38  2021ND004725",2526,MAT. CONSUMO,Cleanny Hergesell Fargnolli Evelise Gaviano,null,FUNDAÇÃO UNIVERSIDADE DE BRASÍLIA,null,50.76,ordinário,605
RECURSOS ORDINÁRIOS,5.61,FISCAL,PR 11/2021 - FUB,2021,02/12/2021,CRÉDITOS DISTRIBUÍDOS PARA AS UNIDADES ADMINISTRATIVAS,null,null,null,20RK - PO COVID19,23106.004528/2021-16,"C. CUSTO DEX PROT:110107(5,46) REQ: 3426/2021MEMORANDO 78 (7424228) AQUISIÇÃO ITENS DE PREVENÇÃO À COVID-19SEI: 23106.127728/2021-38  2021ND004725",2525,MAT. CONSUMO,Felts Jadir Foratto,null,FUNDAÇÃO UNIVERSIDADE DE BRASÍLIA,null,5.61,ordinário,605
PRÓPRIOS -  PREST.SERVICOS FUB/FUNDO,8060.00,FISCAL,PR 205/2021 - FUB,2021,02/12/2021,CRÉDITOS DISTRIBUÍDOS PARA AS UNIDADES ACADÊMICAS,null,null,null,FUNCIONAMENTO DE INSTITUICOES FEDERAI - NO DF,23106.112840/2020-93,"C. CUSTO ICE PROT:11010115(8060,00) REQ: 3611/2021AQUISIÇÃO DE MESAS DIGITALIZADORASSEI: 23106.129419/2021-01 2021ND004728",2524,EQUIP. MATERIAL PERMANENTE,Cenimar Denes,null,FUNDAÇÃO UNIVERSIDADE DE BRASÍLIA,null,8060.00,ordinário,605
CUSTOS INDIRETOS - UNIDADES DIVERSAS,840.00,FISCAL,PR 17/2020 - FUB,2021,02/12/2021,CUSTOS INDIRETOS UNIDADE CAPTADORA,null,null,null,FUNCIONAMENTO DE INSTITUICOES FEDERAI - NO DF,23106.082711/2019-20,"C. CUSTO IGD PROT:11010117(840,00) REQ: 3557/2021MEMORANDO 23106.129493/2021-19 (7442631)AQUISIÇÃO DE MATERIAL DE CONSUMO LABORATORIAL. DE SSECADOR, VIDRO 25CM, 2LSEI: 23106.129493/2021-19  2021ND004716",2523,MAT. CONSUMO,Curso Koti Bart Morgandi,null,FUNDAÇÃO UNIVERSIDADE DE BRASÍLIA,null,840.00,ordinário,605
CUSTOS INDIRETOS - UNIDADES DIVERSAS,3325.00,FISCAL,PR,2021,02/12/2021,CUSTOS INDIRETOS UNIDADE CAPTADORA,null,null,null,FUNCIONAMENTO DE INSTITUICOES FEDERAI - NO DF,23106.129685/2021-25,"C CUSTO IGD PROT:11010117(3325,00) REQ: 3627, 3628, 3629/2021MEMO: 23106.129685/2021-25 (7444484) AQUISIÇÃO DE LIXEIRASSEI: 23106.129685/2021-25 2021ND004714",2522,MAT. CONSUMO,Alesando Gasnhar Bravi,null,FUNDAÇÃO UNIVERSIDADE DE BRASÍLIA,null,3325.00,global,605
PRÓPRIOS -  PREST.SERVICOS FUB/FUNDO,1960.00,FISCAL,PR 24/2021 - FUB,2021,02/12/2021,CRÉDITOS DISTRIBUÍDOS PARA AS UNIDADES ACADÊMICAS,null,null,null,FUNCIONAMENTO DE INSTITUICOES FEDERAI - NO DF,23106.052694/2021-11,"C. CUSTO FDD PROT:11010106(1960,00) REQ: 3610MEMORANDO S/N (7443739) AQUISIÇÃO DE 02 (DUAS) UNIDADES DE TOTEMSEI: 23106.129605/2021-31 COMPROVANTE DE SALDO (7459793)",2521,EQUIP. MATERIAL PERMANENTE,Sedenho Colnaghi Nobuo Hussar,null,FUNDAÇÃO UNIVERSIDADE DE BRASÍLIA,null,1960.00,ordinário,605
PRÓPRIOS -  PREST.SERVICOS FUB/FUNDO,2112.00,FISCAL,null,2021,16/12/2021,CRÉDITOS DISTRIBUÍDOS PARA AS UNIDADES ADMINISTRATIVAS,null,null,null,FUNCIONAMENTO DE INSTITUICOES FEDERAI - NO DF,23106.010843/2022-55,23106.010843/2022-55,2520,MAT. CONSUMO,Shirly Caiuby Ilambwetsi Kiosz,null,FUNDAÇÃO UNIVERSIDADE DE BRASÍLIA,null,2112.00,global,605
PRÓPRIOS -  PREST.SERVICOS FUB/FUNDO,54782.00,FISCAL,PR 6/2020 - FUB,2021,01/12/2021,CRÉDITOS DISTRIBUÍDOS PARA AS UNIDADES ACADÊMICAS,null,null,null,FUNCIONAMENTO DE INSTITUICOES FEDERAI - NO DF,23106.085994/2018-81,"C. CUSTO FCS PROT:11010110(54782,00) REQ: 3032 E 3459/2021AQUISIÇÃO DE 49 UNIDADES DE CÂMERA TIPO DOMESEI: 23106.108498/2021-16 2021ND004595 2021ND004494",2519,SERV. PESSOA JURÍDICA,SEAL TELECOM COMERCIO E SERVICOS DE TELECOMUNICACOES L,null,FUNDAÇÃO UNIVERSIDADE DE BRASÍLIA,null,54782.00,ordinário,605
PRÓPRIOS -  PREST.SERVICOS FUB/FUNDO,6.42,FISCAL,PR 11/2021 - FUB,2021,01/12/2021,CRÉDITOS DISTRIBUÍDOS PARA AS UNIDADES ADMINISTRATIVAS,null,null,null,FUNCIONAMENTO DE INSTITUICOES FEDERAI - NO DF,23106.004528/2021-16,"C. CUSTO GRE/SECOM PROT:110111(6,42) REQ: 3291/2021MEMORANDO 103 (7447717) AQUISIÇÃO DE FITA ZEBRADA.SEI: 23106.130034/2021-88 2021ND004688",2518,MAT. CONSUMO,Cleanny Hergesell Fargnolli Evelise Gaviano,null,FUNDAÇÃO UNIVERSIDADE DE BRASÍLIA,null,6.42,ordinário,605
PRÓPRIOS -  PREST.SERVICOS FUB/FUNDO,6984.00,FISCAL,PR 204/2021 - FUB,2021,01/12/2021,CRÉDITOS DISTRIBUÍDOS PARA AS UNIDADES ACADÊMICAS,null,null,null,FUNCIONAMENTO DE INSTITUICOES FEDERAI - NO DF,23106.112789/2020-10,"C. CUSTO ICE PROT:11010115(6984,00) REQ: 3612/2021AQUISIÇÃO DE HD EXTERNO.SEI: 23106.129431/2021-15 2021ND004713",2517,MAT. CONSUMO,Sileir Hallay Zeymer,null,FUNDAÇÃO UNIVERSIDADE DE BRASÍLIA,null,6984.00,ordinário,605
RECURSOS ORDINÁRIOS,120000.00,FISCAL,PR,2021,01/12/2021,COMBUSTIVEL_,null,null,null,FUNCIONAMENTO DE INSTITUICOES FEDERAI - NO DF,23106.052661/2020-90,"C.CUSTO: PRC - PROT:110105(120000,00) - S.E.I Nº 23106.052661/2020-90SERV.APOIO TÉC OPERACIONAL - FORNECIMENTO DE COMBUSTÍVELEMPRESA ESPECIALIZADA EM CONTROLE DE ABASTECIMENTO DE VEÍCULOSMEMO.S.N/2021/PRC/DIRAD/CCL - 2021ND004689 - CONTRATO: 065/2019PERÍODO: NOVEMBRO/21 A JANEIRO/22.",2515,SERV. PESSOA JURÍDICA,Zequiel Dann Miyake,null,FUNDAÇÃO UNIVERSIDADE DE BRASÍLIA,null,120000.00,global,605
PRÓPRIOS -  PREST.SERVICOS FUB/FUNDO,1750.00,FISCAL,PR 18/2021 - FUB,2021,01/12/2021,CRÉDITOS DISTRIBUÍDOS PARA AS UNIDADES ACADÊMICAS,null,null,null,FUNCIONAMENTO DE INSTITUICOES FEDERAI - NO DF,23106.032985/2021-92,"C. CUSTO: FSD.    PROT:11010110{SM3556/2021(1750,00)}       SEI 23106.129468/2021-35.AQUISIÇÃO DE LIXEIRAS.                                   MEMO 1/2021/FS/FAR.2021ND004698.",2514,MAT. CONSUMO,Alesando Gasnhar Bravi,null,FUNDAÇÃO UNIVERSIDADE DE BRASÍLIA,null,1750.00,ordinário,605
PRÓPRIOS -  PREST.SERVICOS FUB/FUNDO,700.00,FISCAL,PR 18/2021 - FUB,2021,01/12/2021,CRÉDITOS DISTRIBUÍDOS PARA AS UNIDADES ADMINISTRATIVAS,null,null,null,FUNCIONAMENTO DE INSTITUICOES FEDERAI - NO DF,23106.032985/2021-92,"C. CUSTO: CEAD.    PROT:110124{SM1882/2021(350,00)}       PROT:110124{SM1915/2021(350,00)} AQUISIÇÃO DE LIXEIRAS PLÁSTICAS.                               DESPACHO CEAD/CPF (7442200).2021ND004701.    SEI 23106.129449/2021-17.",2513,MAT. CONSUMO,Alesando Gasnhar Bravi,null,FUNDAÇÃO UNIVERSIDADE DE BRASÍLIA,null,700.00,ordinário,605
CUSTOS INDIRETOS - UNIDADES DIVERSAS,900.00,FISCAL,PR 11/2021 - FUB,2021,01/12/2021,CUSTOS INDIRETOS UNIDADE CAPTADORA,null,null,null,FUNCIONAMENTO DE INSTITUICOES FEDERAI - NO DF,23106.004528/2021-16,"C. CUSTO: IGD.    PROT:11010117{SM3630/2021(900,00)}    SEI 23106.129691/2021-82.AQUISIÇÃO DE LIXEIRAS PLÁSTICAS.2021ND004701.",2512,MAT. CONSUMO,Ronchi Kollross Cassanelli Ermelina,null,FUNDAÇÃO UNIVERSIDADE DE BRASÍLIA,null,900.00,ordinário,605
RECURSOS ORDINÁRIOS,71.10,FISCAL,PR 11/2021 - FUB,2021,01/12/2021,CRÉDITOS DISTRIBUÍDOS PARA AS UNIDADES ADMINISTRATIVAS,null,null,null,20RK - PO COVID19,23106.004528/2021-16,"C. CUSTO: DEX.       PROT:110107{SM3481/2021(71,10)}         SEI 23106.128512/2021-90.AQUISIÇÃO DE ÁLCOOL ETÍLICO HIDRATADO 70 % GEL.2021ND004679.        MEMO 47/2021/DEX/DDC.",2511,MAT. CONSUMO,Saed Dudeck Helrigle Megues Comparoni,null,FUNDAÇÃO UNIVERSIDADE DE BRASÍLIA,null,71.10,ordinário,605
PRÓPRIOS -  PREST.SERVICOS FUB/FUNDO,711.00,FISCAL,PR 11/2021 - FUB,2021,01/12/2021,CRÉDITOS DISTRIBUÍDOS PARA AS UNIDADES ACADÊMICAS,null,null,null,20RK - PO COVID19,23106.004528/2021-16,"C. CUSTO: IE.       PROT:11010115{SM3464/2021(711,00)}         SEI 23106.128188/2021-18.AQUISIÇÃO DE ÁLCOOL ETÍLICO HIDRATADO 70 % GEL.2021ND004683.      OFICIO 167/2021/IE/EST.",2510,MAT. CONSUMO,Saed Dudeck Helrigle Megues Comparoni,null,FUNDAÇÃO UNIVERSIDADE DE BRASÍLIA,null,711.00,ordinário,605
RECURSOS ORDINÁRIOS,675.00,FISCAL,PR 11/2021 - FUB,2021,01/12/2021,CRÉDITOS DISTRIBUÍDOS PARA AS UNIDADES ADMINISTRATIVAS,null,null,null,20RK - PO COVID19,23106.004528/2021-16,"C. CUSTO: DEX.       PROT:110107{SM3491/2021(675,00)}         SEI 23106.128512/2021-90.AQUISIÇÃO DE LIXEIRA PLÁSTICA.2021ND004679.        MEMO 47/2021/DEX/DDC.",2508,MAT. CONSUMO,Ronchi Kollross Cassanelli Ermelina,null,FUNDAÇÃO UNIVERSIDADE DE BRASÍLIA,null,675.00,ordinário,605
RECURSOS ORDINÁRIOS,99.50,FISCAL,PR 11/2021 - FUB,2021,01/12/2021,CRÉDITOS DISTRIBUÍDOS PARA AS UNIDADES ADMINISTRATIVAS,null,null,null,20RK - PO COVID19,23106.004528/2021-16,"C. CUSTO: DEX.       PROT:110107{SM3483/2021(99,50)}         SEI 23106.128512/2021-90.AQUISIÇÃO DE PEDESTAL  ZEBRADO CORRENTE PARA DEMARCAÇÃO.2021ND004679.        MEMO 47/2021/DEX/DDC.",2507,MAT. CONSUMO,Cleanny Hergesell Fargnolli Evelise Gaviano,null,FUNDAÇÃO UNIVERSIDADE DE BRASÍLIA,null,99.50,ordinário,605
RECURSOS ORDINÁRIOS,225.00,FISCAL,PR 11/2021 - FUB,2021,01/12/2021,CRÉDITOS DISTRIBUÍDOS PARA AS UNIDADES ADMINISTRATIVAS,null,null,null,20RK - PO COVID19,23106.004528/2021-16,"C. CUSTO: DEX.       PROT:110107{SM3482/2021(225,00)}         SEI 23106.128512/2021-90.AQUISIÇÃO DE LIXEIRA PLÁSTICA.2021ND004679.        MEMO 47/2021/DEX/DDC.",2506,MAT. CONSUMO,Ronchi Kollross Cassanelli Ermelina,null,FUNDAÇÃO UNIVERSIDADE DE BRASÍLIA,null,225.00,ordinário,605
TED SIMEC 8323 - PROAP,16.15,FISCAL,PR 17/2020 - FUB,2021,30/11/2021,CAPES,null,null,null,TED SIMEC 8323 - PROAP,23106.082711/2019-20,"C. CUSTO: DPG             SEI:23106.129172/2021-14IMPLANT.E DESENV.DE CURSO NO AMBITO DO PROAP.MATERIAL DE CONSUMO    PROT:11010806{SM3585/2021(16,15)}MATERIAL  LABORATORIAL -ESCOVA LABORATÓRIO - 0,8 CMMEMO.034/2021/FM/NMT/PPG      CAPES/PROAP - 2021ND002919DETAL.DA 2021NC000127(154003/15279) TED 8323 CAPES/PROAPPREGÃO: 17/2020 - TRANSF.697550 - TED_CAPES 10790",2503,MAT. CONSUMO,Acelmo Knetsiki Arado Prachthauser,null,FUNDAÇÃO UNIVERSIDADE DE BRASÍLIA,null,16.15,ordinário,605
TED SIMEC 8323 - PROAP,16.15,FISCAL,PR 17/2020 - FUB,2021,30/11/2021,CAPES,null,null,null,TED SIMEC 8323 - PROAP,23106.082711/2019-20,"C. CUSTO: DPG             SEI:23106.129172/2021-14IMPLANT.E DESENV.DE CURSO NO AMBITO DO PROAP.MATERIAL DE CONSUMO    PROT:11010806{SM3586/2021(16,15)}MATERIAL  LABORATORIAL -ESCOVA LABORATÓRIO - 1,5 CMMEMO.034/2021/FM/NMT/PPG      CAPES/PROAP - 2021ND002919DETAL.DA 2021NC000127(154003/15279) TED 8323 CAPES/PROAPPREGÃO: 17/2020 - TRANSF.697550 - TED_CAPES 10790",2502,MAT. CONSUMO,Acelmo Knetsiki Arado Prachthauser,null,FUNDAÇÃO UNIVERSIDADE DE BRASÍLIA,null,16.15,ordinário,605
TED SIMEC 8323 - PROAP,1155.00,FISCAL,PR 17/2020 - FUB,2021,30/11/2021,CAPES,null,null,null,TED SIMEC 8323 - PROAP,23106.082711/2019-20,"C. CUSTO: DPG             SEI:23106.129172/2021-14IMPLANT.E DESENV.DE CURSO NO AMBITO DO PROAP.MATERIAL DE CONSUMO    PROT:11010806{SM3587/2021(1155,00)}MATERIAL  LABORATORIAL -EXTRATOR LABORATÓRIO SOXHLET - 1000MLMEMO.034/2021/FM/NMT/PPG      CAPES/PROAP - 2021ND002919DETAL.DA 2021NC000127(154003/15279) TED 8323 CAPES/PROAPPREGÃO: 17/2020 - TRANSF.697550 - TED_CAPES 10790",2501,MAT. CONSUMO,Acelmo Knetsiki Arado Prachthauser,null,FUNDAÇÃO UNIVERSIDADE DE BRASÍLIA,null,1155.00,ordinário,605
TED SIMEC 8323 - PROAP,124.15,FISCAL,PR 17/2020 - FUB,2021,30/11/2021,CAPES,null,null,null,TED SIMEC 8323 - PROAP,23106.082711/2019-20,"C. CUSTO: DPG             SEI:23106.129172/2021-14IMPLANT.E DESENV.DE CURSO NO AMBITO DO PROAP.MATERIAL DE CONSUMO    PROT:11010806{SM3588/2021(124,15)}MATERIAL  LABORATORIAL -ESTANTE TUBO - ENSAIO - 15MMMEMO.034/2021/FM/NMT/PPG      CAPES/PROAP - 2021ND002919DETAL.DA 2021NC000127(154003/15279) TED 8323 CAPES/PROAPPREGÃO: 17/2020 - TRANSF.697550 - TED_CAPES 10790",2500,MAT. CONSUMO,Allyde Canimprata,null,FUNDAÇÃO UNIVERSIDADE DE BRASÍLIA,null,124.15,ordinário,605
TED SIMEC 8323 - PROAP,486.60,FISCAL,PR 17/2020 - FUB,2021,30/11/2021,CAPES,null,null,null,TED SIMEC 8323 - PROAP,23106.082711/2019-20,"C. CUSTO: DPG             SEI:23106.129172/2021-14IMPLANT.E DESENV.DE CURSO NO AMBITO DO PROAP.MATERIAL DE CONSUMO    PROT:11010806{SM3590/2021(486,60)}MATERIAL  LABORATORIAL -ACETONITRILA GRAU - HPLCMEMO.034/2021/FM/NMT/PPG      CAPES/PROAP - 2021ND002919DETAL.DA 2021NC000127(154003/15279) TED 8323 CAPES/PROAPPREGÃO: 17/2020 - TRANSF.697550 - TED_CAPES 10790",2499,MAT. CONSUMO,Martegani Mandes Aprígio Akimi Carollyne,null,FUNDAÇÃO UNIVERSIDADE DE BRASÍLIA,null,486.60,ordinário,605
TED SIMEC 8323 - PROAP,920.00,FISCAL,PR 17/2020 - FUB,2021,30/11/2021,CAPES,null,null,null,TED SIMEC 8323 - PROAP,23106.082711/2019-20,"C. CUSTO: DPG             SEI:23106.129172/2021-14IMPLANT.E DESENV.DE CURSO NO AMBITO DO PROAP.MATERIAL DE CONSUMO    PROT:11010806{SM3591/2021(920,00)}MATERIAL  LABORATORIAL -BARRILETE PLÁSTICO - 20L MEMO.034/2021/FM/NMT/PPG      CAPES/PROAP - 2021ND002919DETAL.DA 2021NC000127(154003/15279) TED 8323 CAPES/PROAPPREGÃO: 17/2020 - TRANSF.697550 - TED_CAPES 10790",2498,MAT. CONSUMO,FARED COMERCIAL LTDA - EPP,null,FUNDAÇÃO UNIVERSIDADE DE BRASÍLIA,null,920.00,ordinário,605
TED SIMEC 8323 - PROAP,534.00,FISCAL,PR 17/2020 - FUB,2021,30/11/2021,CAPES,null,null,null,TED SIMEC 8323 - PROAP,23106.082711/2019-20,"C. CUSTO: DPG             SEI:23106.129172/2021-14IMPLANT.E DESENV.DE CURSO NO AMBITO DO PROAP.MATERIAL DE CONSUMO    PROT:11010806{SM3592/2021(534,00)}MATERIAL  LABORATORIAL -ALBUMINA BOVINA MEMO.034/2021/FM/NMT/PPG      CAPES/PROAP - 2021ND002919DETAL.DA 2021NC000127(154003/15279) TED 8323 CAPES/PROAPPREGÃO: 17/2020 - TRANSF.697550 - TED_CAPES 10790",2497,MAT. CONSUMO,Ribero Hali Nessi Nepumoceno Stiller,null,FUNDAÇÃO UNIVERSIDADE DE BRASÍLIA,null,534.00,ordinário,605
TED SIMEC 8323 - PROAP,180.00,FISCAL,PR 17/2020 - FUB,2021,30/11/2021,CAPES,null,null,null,TED SIMEC 8323 - PROAP,23106.082711/2019-20,"C. CUSTO: DPG             SEI:23106.129172/2021-14IMPLANT.E DESENV.DE CURSO NO AMBITO DO PROAP.MATERIAL DE CONSUMO    PROT:11010806{SM3593/2021(180,00)}MATERIAL  LABORATORIAL -BARCA PLÁSTICO DESCARTÁVEL MEMO.034/2021/FM/NMT/PPG      CAPES/PROAP - 2021ND002919DETAL.DA 2021NC000127(154003/15279) TED 8323 CAPES/PROAPPREGÃO: 17/2020 - TRANSF.697550 - TED_CAPES 10790",2496,MAT. CONSUMO,Jonyelson Abu-Zahra Levy,null,FUNDAÇÃO UNIVERSIDADE DE BRASÍLIA,null,180.00,ordinário,605
TED SIMEC 8323 - PROAP,40.00,FISCAL,PR 17/2020 - FUB,2021,30/11/2021,CAPES,null,null,null,TED SIMEC 8323 - PROAP,23106.082711/2019-20,"C. CUSTO: DPG             SEI:23106.129172/2021-14IMPLANT.E DESENV.DE CURSO NO AMBITO DO PROAP.MATERIAL DE CONSUMO    PROT:11010806{SM3594/2021(40,00)}MATERIAL  LABORATORIAL -BARRA MAGNÉTICA PTFE - 7 X 20MEMO.034/2021/FM/NMT/PPG      CAPES/PROAP - 2021ND002919DETAL.DA 2021NC000127(154003/15279) TED 8323 CAPES/PROAPPREGÃO: 17/2020 - TRANSF.697550 - TED_CAPES 10790",2495,MAT. CONSUMO,Allyde Canimprata,null,FUNDAÇÃO UNIVERSIDADE DE BRASÍLIA,null,40.00,ordinário,605
TED SIMEC 8323 - PROAP,35.00,FISCAL,PR 17/2020 - FUB,2021,30/11/2021,CAPES,null,null,null,TED SIMEC 8323 - PROAP,23106.082711/2019-20,"C. CUSTO: DPG             SEI:23106.129172/2021-14IMPLANT.E DESENV.DE CURSO NO AMBITO DO PROAP.MATERIAL DE CONSUMO    PROT:11010806{SM3595/2021(35,00)}MATERIAL  LABORATORIAL -BARRA MAGNÉTICA PTFE - 8 X 25MEMO.034/2021/FM/NMT/PPG      CAPES/PROAP - 2021ND002919DETAL.DA 2021NC000127(154003/15279) TED 8323 CAPES/PROAPPREGÃO: 17/2020 - TRANSF.697550 - TED_CAPES 10790",2494,MAT. CONSUMO,Allyde Canimprata,null,FUNDAÇÃO UNIVERSIDADE DE BRASÍLIA,null,35.00,ordinário,605
TED SIMEC 8323 - PROAP,40.00,FISCAL,PR 17/2020 - FUB,2021,30/11/2021,CAPES,null,null,null,TED SIMEC 8323 - PROAP,23106.082711/2019-20,"C. CUSTO: DPG             SEI:23106.129172/2021-14IMPLANT.E DESENV.DE CURSO NO AMBITO DO PROAP.MATERIAL DE CONSUMO    PROT:11010806{SM3596/2021(40,00)}MATERIAL  LABORATORIAL -BARRA MAGNÉTICA PTFEMEMO.034/2021/FM/NMT/PPG      CAPES/PROAP - 2021ND002919DETAL.DA 2021NC000127(154003/15279) TED 8323 CAPES/PROAPPREGÃO: 17/2020 - TRANSF.697550 - TED_CAPES 10790",2493,MAT. CONSUMO,Allyde Canimprata,null,FUNDAÇÃO UNIVERSIDADE DE BRASÍLIA,null,40.00,ordinário,605
TED SIMEC 8323 - PROAP,30.00,FISCAL,PR 17/2020 - FUB,2021,30/11/2021,CAPES,null,null,null,TED SIMEC 8323 - PROAP,23106.082711/2019-20,"C. CUSTO: DPG             SEI:23106.129172/2021-14IMPLANT.E DESENV.DE CURSO NO AMBITO DO PROAP.MATERIAL DE CONSUMO    PROT:11010806{SM3598/2021(30,00)}MATERIAL  LABORATORIAL -BEQUER - VIDRO - ORLA - BICO ALTA - 500MLMEMO.034/2021/FM/NMT/PPG      CAPES/PROAP - 2021ND002919DETAL.DA 2021NC000127(154003/15279) TED 8323 CAPES/PROAPPREGÃO: 17/2020 - TRANSF.697550 - TED_CAPES 10790",2492,MAT. CONSUMO,Curso Koti Bart Morgandi,null,FUNDAÇÃO UNIVERSIDADE DE BRASÍLIA,null,30.00,ordinário,605
TED SIMEC 8323 - PROAP,71.00,FISCAL,PR 17/2020 - FUB,2021,30/11/2021,CAPES,null,null,null,TED SIMEC 8323 - PROAP,23106.082711/2019-20,"C. CUSTO: DPG             SEI:23106.129172/2021-14IMPLANT.E DESENV.DE CURSO NO AMBITO DO PROAP.MATERIAL DE CONSUMO    PROT:11010806{SM3599/2021(71,00)}MATERIAL  LABORATORIAL -BEQUER - VIDRO - ORLA - BICO ALTA - 2000MLMEMO.034/2021/FM/NMT/PPG      CAPES/PROAP - 2021ND002919DETAL.DA 2021NC000127(154003/15279) TED 8323 CAPES/PROAPPREGÃO: 17/2020 - TRANSF.697550 - TED_CAPES 10790",2491,MAT. CONSUMO,Curso Koti Bart Morgandi,null,FUNDAÇÃO UNIVERSIDADE DE BRASÍLIA,null,71.00,ordinário,605
TED SIMEC 8323 - PROAP,64.80,FISCAL,PR 17/2020 - FUB,2021,30/11/2021,CAPES,null,null,null,TED SIMEC 8323 - PROAP,23106.082711/2019-20,"C. CUSTO: DPG             SEI:23106.129172/2021-14IMPLANT.E DESENV.DE CURSO NO AMBITO DO PROAP.MATERIAL DE CONSUMO    PROT:11010806{SM3600/2021(64,80)}MATERIAL  LABORATORIAL -BEQUER - VIDRO - ORLA - BICO ALTA - 1000MLMEMO.034/2021/FM/NMT/PPG      CAPES/PROAP - 2021ND002919DETAL.DA 2021NC000127(154003/15279) TED 8323 CAPES/PROAPPREGÃO: 17/2020 - TRANSF.697550 - TED_CAPES 10790",2490,MAT. CONSUMO,Allyde Canimprata,null,FUNDAÇÃO UNIVERSIDADE DE BRASÍLIA,null,64.80,ordinário,605
TED SIMEC 8323 - PROAP,9.00,FISCAL,PR 17/2020 - FUB,2021,30/11/2021,CAPES,null,null,null,TED SIMEC 8323 - PROAP,23106.082711/2019-20,"C. CUSTO: DPG             SEI:23106.129172/2021-14IMPLANT.E DESENV.DE CURSO NO AMBITO DO PROAP.MATERIAL DE CONSUMO    PROT:11010806{SM3601/2021(9,00)}MATERIAL  LABORATORIAL -ESCOVA LOBORATÓRIO - 12CMMEMO.034/2021/FM/NMT/PPG      CAPES/PROAP - 2021ND002919DETAL.DA 2021NC000127(154003/15279) TED 8323 CAPES/PROAPPREGÃO: 17/2020 - TRANSF.697550 - TED_CAPES 10790",2489,MAT. CONSUMO,Derisson Nardiello Soki Galles,null,FUNDAÇÃO UNIVERSIDADE DE BRASÍLIA,null,9.00,ordinário,605
TED SIMEC 8323 - PROAP,14.46,FISCAL,PR 17/2020 - FUB,2021,30/11/2021,CAPES,null,null,null,TED SIMEC 8323 - PROAP,23106.082711/2019-20,"C. CUSTO: DPG             SEI:23106.129172/2021-14IMPLANT.E DESENV.DE CURSO NO AMBITO DO PROAP.MATERIAL DE CONSUMO    PROT:11010806{SM3602/2021(14,46)}MATERIAL  LABORATORIAL -ESCOVA LOBORATÓRIO - 3CMMEMO.034/2021/FM/NMT/PPG      CAPES/PROAP - 2021ND002919DETAL.DA 2021NC000127(154003/15279) TED 8323 CAPES/PROAPPREGÃO: 17/2020 - TRANSF.697550 - TED_CAPES 10790",2488,MAT. CONSUMO,Acelmo Knetsiki Arado Prachthauser,null,FUNDAÇÃO UNIVERSIDADE DE BRASÍLIA,null,14.46,ordinário,605
TED SIMEC 8323 - PROAP,860.00,FISCAL,PR 17/2020 - FUB,2021,30/11/2021,CAPES,null,null,null,TED SIMEC 8323 - PROAP,23106.082711/2019-20,"C. CUSTO: DPG             SEI:23106.129172/2021-14IMPLANT.E DESENV.DE CURSO NO AMBITO DO PROAP.MATERIAL DE CONSUMO    PROT:11010806{SM3603/2021(860,00)}MATERIAL  LABORATORIAL - BARRILETE PLÁSTICO - TORNEIRA - 50LMEMO.034/2021/FM/NMT/PPG      CAPES/PROAP - 2021ND002919DETAL.DA 2021NC000127(154003/15279) TED 8323 CAPES/PROAPPREGÃO: 17/2020 - TRANSF.697550 - TED_CAPES 10790",2487,MAT. CONSUMO,Allyde Canimprata,null,FUNDAÇÃO UNIVERSIDADE DE BRASÍLIA,null,860.00,ordinário,605
TED SIMEC 8323 - PROAP,53.96,FISCAL,PR 17/2020 - FUB,2021,30/11/2021,CAPES,null,null,null,TED SIMEC 8323 - PROAP,23106.082711/2019-20,"C. CUSTO: CAPES SEI:23106.129172/2021-14MATERIAL DE CONSUMO    PROT:11010806(53,96) REQ: 3566/2021MATERIAL  LABORATORIAL - ELETRODO COMBINADO - PHMEMO.034/2021/FM/NMT/PPG CAPES/PROAP - 2021ND002919DETAL.DA 2021NC000127(154003/15279) TED 8323 CAPES/PROAPPREGÃO: 17/2020 - TRANSF.697550 - TED_CAPES 10790",2486,MAT. CONSUMO,LAB-BRAN COMERCIO DE PRODUTOS DE LABORATORIO LTDA - ME,null,FUNDAÇÃO UNIVERSIDADE DE BRASÍLIA,null,53.96,ordinário,605
TED SIMEC 8323 - PROAP,174.20,FISCAL,PR 17/2020 - FUB,2021,30/11/2021,CAPES,null,null,null,TED SIMEC 8323 - PROAP,23106.082711/2019-20,"C. CUSTO: DPG             SEI:23106.129172/2021-14IMPLANT.E DESENV.DE CURSO NO AMBITO DO PROAP.MATERIAL DE CONSUMO    PROT:11010806{SM3604/2021(174,20)}MATERIAL  LABORATORIAL - ESTANTE MICROTUBO - TAMPA - 80MEMO.034/2021/FM/NMT/PPG      CAPES/PROAP - 2021ND002919DETAL.DA 2021NC000127(154003/15279) TED 8323 CAPES/PROAPPREGÃO: 17/2020 - TRANSF.697550 - TED_CAPES 10790",2485,MAT. CONSUMO,Geazi Diorthe Mancilha,null,FUNDAÇÃO UNIVERSIDADE DE BRASÍLIA,null,174.20,ordinário,605
TED SIMEC 8323 - PROAP,900.00,FISCAL,PR 17/2020 - FUB,2021,30/11/2021,CAPES,null,null,null,TED SIMEC 8323 - PROAP,23106.082711/2019-20,"C. CUSTO: CAPES SEI:23106.129172/2021-14MATERIAL DE CONSUMO    PROT:11010806(900,00) REQ: 3584/2021MATERIAL  LABORATORIAL - ELETRODO COMBINADO - PHMEMO.034/2021/FM/NMT/PPG CAPES/PROAP - 2021ND002919DETAL.DA 2021NC000127(154003/15279) TED 8323 CAPES/PROAPPREGÃO: 17/2020 - TRANSF.697550 - TED_CAPES 10790",2484,MAT. CONSUMO,Curso Koti Bart Morgandi,null,FUNDAÇÃO UNIVERSIDADE DE BRASÍLIA,null,900.00,ordinário,605
TED SIMEC 8323 - PROAP,400.00,FISCAL,PR 17/2020 - FUB,2021,30/11/2021,CAPES,null,null,null,TED SIMEC 8323 - PROAP,23106.082711/2019-20,"C. CUSTO: CAPES SEI:23106.129172/2021-14MATERIAL DE CONSUMO    PROT:11010806 REQ: 3582, 3583/2021MATERIAL  LABORATORIAL - ELETRODO COMBINADO - PHMEMO.034/2021/FM/NMT/PPG CAPES/PROAP - 2021ND002919DETAL.DA 2021NC000127(154003/15279) TED 8323 CAPES/PROAPPREGÃO: 17/2020 - TRANSF.697550 - TED_CAPES 10790",2483,MAT. CONSUMO,Allyde Canimprata,null,FUNDAÇÃO UNIVERSIDADE DE BRASÍLIA,null,400.00,ordinário,605
TED SIMEC 8323 - PROAP,95.00,FISCAL,PR 17/2020 - FUB,2021,30/11/2021,CAPES,null,null,null,TED SIMEC 8323 - PROAP,23106.082711/2019-20,"C. CUSTO: CAPES SEI:23106.129172/2021-14MATERIAL DE CONSUMO    PROT:11010806 REQ: 3581, 3576, 3577, 3578, 3580/2021MATERIAL  LABORATORIAL - ELETRODO COMBINADO - PHMEMO.034/2021/FM/NMT/PPG CAPES/PROAP - 2021ND002919DETAL.DA 2021NC000127(154003/15279) TED 8323 CAPES/PROAPPREGÃO: 17/2020 - TRANSF.697550 - TED_CAPES 10790",2482,MAT. CONSUMO,Curso Koti Bart Morgandi,null,FUNDAÇÃO UNIVERSIDADE DE BRASÍLIA,null,95.00,ordinário,605
TED SIMEC 8323 - PROAP,196.00,FISCAL,PR 17/2020 - FUB,2021,30/11/2021,CAPES,null,null,null,TED SIMEC 8323 - PROAP,23106.082711/2019-20,"C. CUSTO: DPG             SEI:23106.129172/2021-14IMPLANT.E DESENV.DE CURSO NO AMBITO DO PROAP.MATERIAL DE CONSUMO    PROT:11010806{SM3606/2021(196,00)}MATERIAL  LABORATORIAL - CÂMARA CONTAGEM NEUBAUER - ESPELHADAMEMO.034/2021/FM/NMT/PPG      CAPES/PROAP - 2021ND002919DETAL.DA 2021NC000127(154003/15279) TED 8323 CAPES/PROAPPREGÃO: 17/2020 - TRANSF.697550 - TED_CAPES 10790",2481,MAT. CONSUMO,Allyde Canimprata,null,FUNDAÇÃO UNIVERSIDADE DE BRASÍLIA,null,196.00,ordinário,605
TED SIMEC 8323 - PROAP,42.40,FISCAL,PR 17/2020 - FUB,2021,30/11/2021,CAPES,null,null,null,TED SIMEC 8323 - PROAP,23106.082711/2019-20,"C. CUSTO: CAPES SEI:23106.129172/2021-14MATERIAL DE CONSUMO    PROT:11010806 REQ: 3573, 3574, 3575/2021MATERIAL  LABORATORIAL - ELETRODO COMBINADO - PHMEMO.034/2021/FM/NMT/PPG CAPES/PROAP - 2021ND002919DETAL.DA 2021NC000127(154003/15279) TED 8323 CAPES/PROAPPREGÃO: 17/2020 - TRANSF.697550 - TED_CAPES 10790",2480,MAT. CONSUMO,Allyde Canimprata,null,FUNDAÇÃO UNIVERSIDADE DE BRASÍLIA,null,42.40,ordinário,605
TED SIMEC 8323 - PROAP,560.00,FISCAL,PR 17/2020 - FUB,2021,30/11/2021,CAPES,null,null,null,TED SIMEC 8323 - PROAP,23106.082711/2019-20,"C. CUSTO: DPG             SEI:23106.129172/2021-14IMPLANT.E DESENV.DE CURSO NO AMBITO DO PROAP.MATERIAL DE CONSUMO    PROT:11010806{SM3608/2021(560,00)}MATERIAL  LABORATORIAL - DESSECADOR VIDRO - 25CMMEMO.034/2021/FM/NMT/PPG      CAPES/PROAP - 2021ND002919DETAL.DA 2021NC000127(154003/15279) TED 8323 CAPES/PROAPPREGÃO: 17/2020 - TRANSF.697550 - TED_CAPES 10790",2479,MAT. CONSUMO,Curso Koti Bart Morgandi,null,FUNDAÇÃO UNIVERSIDADE DE BRASÍLIA,null,560.00,ordinário,605
TED SIMEC 8323 - PROAP,32.00,FISCAL,PR 17/2020 - FUB,2021,30/11/2021,CAPES,null,null,null,TED SIMEC 8323 - PROAP,23106.082711/2019-20,"C. CUSTO: CAPES SEI:23106.129172/2021-14MATERIAL DE CONSUMO    PROT:11010806(32,00) REQ: 3572/2021MATERIAL  LABORATORIAL - ELETRODO COMBINADO - PHMEMO.034/2021/FM/NMT/PPG CAPES/PROAP - 2021ND002919DETAL.DA 2021NC000127(154003/15279) TED 8323 CAPES/PROAPPREGÃO: 17/2020 - TRANSF.697550 - TED_CAPES 10790",2478,MAT. CONSUMO,Curso Koti Bart Morgandi,null,FUNDAÇÃO UNIVERSIDADE DE BRASÍLIA,null,32.00,ordinário,605
TED SIMEC 8323 - PROAP,373.80,FISCAL,PR 17/2020 - FUB,2021,30/11/2021,CAPES,null,null,null,TED SIMEC 8323 - PROAP,23106.082711/2019-20,"C. CUSTO: CAPES SEI:23106.129172/2021-14MATERIAL DE CONSUMO    PROT:11010806 REQ: 3560, 3571/2021MATERIAL  LABORATORIAL - ELETRODO COMBINADO - PHMEMO.034/2021/FM/NMT/PPG CAPES/PROAP - 2021ND002919DETAL.DA 2021NC000127(154003/15279) TED 8323 CAPES/PROAPPREGÃO: 17/2020 - TRANSF.697550 - TED_CAPES 10790",2477,MAT. CONSUMO,Allyde Canimprata,null,FUNDAÇÃO UNIVERSIDADE DE BRASÍLIA,null,373.80,ordinário,605
TED SIMEC 8323 - PROAP,68.00,FISCAL,PR 17/2020 - FUB,2021,30/11/2021,CAPES,null,null,null,TED SIMEC 8323 - PROAP,23106.082711/2019-20,"C. CUSTO CAPES PROT:11010806() REQ: 3568, 3569, 3570/2021TED CAPES PROAP NÚMERO DE TRANSFERÊNCIA: 697550MEMORANDO 034 (7439766) AQUISIÇÃO DE MATERIAIS DE CONSUMO2021ND002919 SEI: 23106.129172/2021-14",2476,MAT. CONSUMO,Curso Koti Bart Morgandi,null,FUNDAÇÃO UNIVERSIDADE DE BRASÍLIA,null,68.00,ordinário,605
TED SIMEC 8323 - PROAP,374.00,FISCAL,PR,2021,30/11/2021,CAPES,null,null,null,TED SIMEC 8323 - PROAP,23106.129172/2021-14,"C. CUSTO: DPG             SEI:23106.129172/2021-14IMPLANTAÇÃO E DESENVOLV.DE CURSO NO AMBITO DO PROAP.MATERIAL DE CONSUMO    PROT:11010806(374,00)MATERIAL  LABORATORIAL - ELETRODO COMBINADO - PHMEMO.034/2021/FM/NMT/PPG      CAPES/PROAP - 2021ND002919DETALHAMENTO DA 2021NC000127(154003/15279) TED 8323 CAPES/PROAPPREGÃO: 17/2020 - TRANSF.697550 - TED_CAPES 10790",2475,MAT. CONSUMO,Ribero Hali Nessi Nepumoceno Stiller,null,FUNDAÇÃO UNIVERSIDADE DE BRASÍLIA,null,374.00,global,605
TED SIMEC 8323 - PROAP,1372.00,FISCAL,PR 26/2020 - FUB,2021,30/11/2021,CAPES,null,null,null,TED SIMEC 8323 - PROAP,23106.082509/2019-06,"C. CUSTO CAPES PROT:11010806() REQ: 3562 E 3563/2021TED CAPES PROAP NÚMERO DE TRANSFERÊNCIA: 697550MEMORANDO 034 (7439766) AQUISIÇÃO DE MATERIAIS DE CONSUMO2021ND002919 SEI: 23106.129172/2021-14",2474,MAT. CONSUMO,Bragião Matenho,null,FUNDAÇÃO UNIVERSIDADE DE BRASÍLIA,null,1372.00,ordinário,605
TED SIMEC 8323 - PROAP,1170.00,FISCAL,PR 26/2020 - FUB,2021,30/11/2021,CAPES,null,null,null,TED SIMEC 8323 - PROAP,23106.082509/2019-06,"C. CUSTO CAPES PROT:11010806(1170,00) REQ: 3561/2021TED CAPES PROAP NÚMERO DE TRANSFERÊNCIA: 697550MEMORANDO 034 (7439766) AQUISIÇÃO DE MATERIAIS DE CONSUMO2021ND002919 SEI: 23106.129172/2021-14",2473,MAT. CONSUMO,Bragião Matenho,null,FUNDAÇÃO UNIVERSIDADE DE BRASÍLIA,null,1170.00,ordinário,605
TED SIMEC 8323 - PROAP,139.50,FISCAL,PR 26/2020 - FUB,2021,30/11/2021,CAPES,null,null,null,TED SIMEC 8323 - PROAP,23106.082509/2019-06,"C. CUSTO CAPES PROT:11010806(139,50) REQ: 3559/2021TED CAPES PROAP NÚMERO DE TRANSFERÊNCIA: 697550MEMORANDO 034 (7439766) AQUISIÇÃO DE MATERIAIS DE CONSUMO2021ND002919 SEI: 23106.129172/2021-14",2472,MAT. CONSUMO,ROMERY Dumoncel Faustioni Chanquini,null,FUNDAÇÃO UNIVERSIDADE DE BRASÍLIA,null,139.50,ordinário,605
PRÓPRIOS -  PREST.SERVICOS FUB/FUNDO,44983.62,FISCAL,null,2021,10/12/2021,CRÉDITOS DISTRIBUÍDOS PARA AS UNIDADES ACADÊMICAS,null,null,null,FUNCIONAMENTO DE INSTITUICOES FEDERAI - NO DF,23106.037015/2021-83,"C. CUSTO FACE PROT:11010102(44983,62) CELEBRAÇÃO DE CONTRATO COM A REFINITIV BRASIL SERVIÇOS ECONÔMICOS LTDA. OBJETO: PRESTAÇÃO DE SERVIÇOS DE ACESSO E TREINAMENTO AO CONTEÚDO DA PLATAFORMA WORKSPACE FOR STUDENTS SEI: 23106.037015/2021-83 2021ND004334 INEX: 20015/2021",2471,SERV. PESSOA JURÍDICA,REFINITIV BRASIL SERVICOS ECONOMICOS LIMITADA.,null,FUNDAÇÃO UNIVERSIDADE DE BRASÍLIA,null,44983.62,global,605
PRÓPRIOS -  PREST.SERVICOS FUB/FUNDO,23478.00,FISCAL,PR 6/2020 - FUB,2021,30/11/2021,CRÉDITOS DISTRIBUÍDOS PARA AS UNIDADES ACADÊMICAS,null,null,null,FUNCIONAMENTO DE INSTITUICOES FEDERAI - NO DF,23106.085994/2018-81,"C.CUSTO:FACE AT-  JOSE MARCIO CARVALHO - PROT:11010102{SM3394/2021(23478,00)}MATERIAL PERMANENTE - EQUIP.P/ AUDIO, VIDEO E FOTO PEDIDO:3394/2021 -2021ND000000CÂMERA TIPO DOME - MEMO.S.N/2021-FACE//SEI:23106.109490/2021-69-PREG:06/2020",2470,SERV. PESSOA JURÍDICA,SEAL TELECOM COMERCIO E SERVICOS DE TELECOMUNICACOES L,null,FUNDAÇÃO UNIVERSIDADE DE BRASÍLIA,null,23478.00,ordinário,605
PRÓPRIOS -  PREST.SERVICOS FUB/FUNDO,2328.00,FISCAL,PR 204/2021 - FUB,2021,30/11/2021,CRÉDITOS DISTRIBUÍDOS PARA AS UNIDADES ACADÊMICAS,null,null,null,FUNCIONAMENTO DE INSTITUICOES FEDERAI - NO DF,23106.112789/2020-10,"C. CUSTO: IDA                          SEI:23106.127522/2021-16 ATT: BOJIN ILIEV NEDIALKOV             2021ND000000MEMO.031/2021/IDA/MUS/SADM    PROT:11010114{SM3484/2021(2328,00)}MATERIAL DE PERMANENTE - PEDIDO:3484/2021 -   PREG:204/2021  EQUIPAMENTOS TIC - HD EXTERNO 4TB",2469,MAT. CONSUMO,Sileir Hallay Zeymer,null,FUNDAÇÃO UNIVERSIDADE DE BRASÍLIA,null,2328.00,ordinário,605
PRÓPRIOS -  PREST.SERVICOS FUB/FUNDO,8030.16,FISCAL,PR 6/2020 - FUB,2021,30/11/2021,CRÉDITOS DISTRIBUÍDOS PARA AS UNIDADES ACADÊMICAS,null,null,null,FUNCIONAMENTO DE INSTITUICOES FEDERAI - NO DF,23106.085994/2018-81,"C.CUSTO:FACE AT-  JOSE MARCIO CARVALHO - PROT:11010102{SM3393/2021(8030,16)}MATERIAL PERMANENTE - EQUIPAMENTOS TIC - ATIVOS DE REDE - PEDIDO:3393/2021 -2021ND000000SWITCH POE 8 PORTAS - MEMO.S.N/2021-FACE//SEI:23106.109490/2021-69-PREG:06/2020",2468,SERV. PESSOA JURÍDICA,Rabeiro Eninger Kläsener Delbone,null,FUNDAÇÃO UNIVERSIDADE DE BRASÍLIA,null,8030.16,ordinário,605
TAXA DE ALUNO ESPECIAL -FUB,11466.00,FISCAL,PR 206/2020 - FUB,2021,30/11/2021,PROGRAMA DE POS-GRADUACAO EM TRANSPORTES PPGT,null,null,null,FUNCIONAMENTO DE INSTITUICOES FEDERAI - NO DF,23106.102135/2020-88,"C. CUSTO: PPGT                            SEI:23106.128408/2021-03 ATT: MICHELLE ANDRADE          2021ND003830MEMO.054/2021/FT/ENC/PPGT        PROT:110101110201{SM3521/2021(11466,00)}MATERIAL DE PERMANENTE - PEDIDO:3521/2021 -   PREG:206/2020  EQUIPAMENTOS TIC - MICROCOMPUTADOR TIPO AVANÇADO",2467,EQUIPAMENTOS E MATERIAL PERMANENTE,Ahissou Sbroggio Gongi,null,FUNDAÇÃO UNIVERSIDADE DE BRASÍLIA,null,11466.00,ordinário,605
PRÓPRIOS -  PREST.SERVICOS FUB/FUNDO,3627.00,FISCAL,PR 8/2021 - FUB,2021,30/11/2021,CRÉDITOS DISTRIBUÍDOS PARA AS UNIDADES ACADÊMICAS,null,null,null,FUNCIONAMENTO DE INSTITUICOES FEDERAI - NO DF,23106.084658/2020-35,"C. CUSTO: IBD                                                SEI:23106.128639/2021-17 ATT:  JAIME MARTINS DE SANTANA       2021ND004663MEMO.084/2021/IB/COMPRAS               PROT:11010112{SM3498/2021(3627,00)}MATERIAL DE CONSUMO - PEDIDO:3498/2021 -   PREG:206/2020  ALIMENTOS PARA ANIMAIS - RAÇÃO ANIMAL - CAMUNDONGO",2466,MAT. CONSUMO,Heidk Barcelios Corvalan Boucsein Bagatin,null,FUNDAÇÃO UNIVERSIDADE DE BRASÍLIA,null,3627.00,ordinário,605
PRÓPRIOS -  PREST.SERVICOS FUB/FUNDO,8030.16,FISCAL,PR 6/2020 - FUB,2021,30/11/2021,CRÉDITOS DISTRIBUÍDOS PARA AS UNIDADES ACADÊMICAS,null,null,null,FUNCIONAMENTO DE INSTITUICOES FEDERAI - NO DF,23106.085994/2018-81,"C.CUSTO:FCE AT-  JOAO PAULO CHIEREGATO - PROT:110131{SM3246/2021(8030,16)}MATERIAL PERMANENTE - EQUIP. TIC - ATIVOS DE REDE PEDIDO:3246/2021 -2021ND004641WITCH POE 8 PORTAS - MEMO.024/2021-FCE/LICICON//SEI:23106.123855/2021-68-PREG:06/2020",2465,SERV. PESSOA JURÍDICA,Rabeiro Eninger Kläsener Delbone,null,FUNDAÇÃO UNIVERSIDADE DE BRASÍLIA,null,8030.16,ordinário,605
PRÓPRIOS -  PREST.SERVICOS FUB/FUNDO,23478.00,FISCAL,PR 6/2020 - FUB,2021,30/11/2021,CRÉDITOS DISTRIBUÍDOS PARA AS UNIDADES ACADÊMICAS,null,null,null,FUNCIONAMENTO DE INSTITUICOES FEDERAI - NO DF,23106.085994/2018-81,"C.CUSTO:FCE AT-  JOAO PAULO CHIEREGATO - PROT:110131{SM3245/2021(23478,00)}MATERIAL PERMANENTE - EQUIP.P/ AUDIO, VIDEO E FOTO PEDIDO:3245/2021 -2021ND004641CÂMERA TIPO DOME - MEMO.024/2021-FCE/LICICON//SEI:23106.123855/2021-68-PREG:06/2020",2464,SERV. PESSOA JURÍDICA,SEAL TELECOM COMERCIO E SERVICOS DE TELECOMUNICACOES L,null,FUNDAÇÃO UNIVERSIDADE DE BRASÍLIA,null,23478.00,ordinário,605
PRÓPRIOS -  PREST.SERVICOS FUB/FUNDO,119.60,FISCAL,PR 306/2021 - FUB,2021,30/11/2021,CRÉDITOS DISTRIBUÍDOS PARA AS UNIDADES ACADÊMICAS,null,null,null,FUNCIONAMENTO DE INSTITUICOES FEDERAI - NO DF,23106.061116/2021-75,"C. CUSTO: FEF.     PROT:11010108{SM3257/2021(119,60)}       SEI 23106.123992/2021-01.AQUISIÇÃO DE PNEUS PARA CARRINHO DE MÃO.              2021ND004672.       MEMO 072/2021/FEF/FINANCEIRO.",2463,MAT. CONSUMO,Derleny Shiguedomi Serehite do Vale,null,FUNDAÇÃO UNIVERSIDADE DE BRASÍLIA,null,119.60,ordinário,605
PRÓPRIOS -  PREST.SERVICOS FUB/FUNDO,2460.00,FISCAL,PR 306/2021 - FUB,2021,30/11/2021,CRÉDITOS DISTRIBUÍDOS PARA AS UNIDADES ACADÊMICAS,null,null,null,FUNCIONAMENTO DE INSTITUICOES FEDERAI - NO DF,23106.061116/2021-75,"C. CUSTO: FEF.     PROT:11010108{SM3256/2021(2460,00)}       SEI 23106.123992/2021-01.AQUISIÇÃO DE CARRINHO DE MÃO.              DEMONSTRATIVO (7450330).       MEMO 072/2021/FEF/FINANCEIRO.",2462,EQUIP. MATERIAL PERMANENTE,Derleny Shiguedomi Serehite do Vale,null,FUNDAÇÃO UNIVERSIDADE DE BRASÍLIA,null,2460.00,ordinário,605
PRÓPRIOS -  PREST.SERVICOS FUB/FUNDO,506.00,FISCAL,PR 18/2021 - FUB,2021,30/11/2021,CRÉDITOS DISTRIBUÍDOS PARA AS UNIDADES ADMINISTRATIVAS,null,null,null,FUNCIONAMENTO DE INSTITUICOES FEDERAI - NO DF,23106.032985/2021-92,"C. CUSTO: AUD.     PROT:110103{SM1833/2021(506,00)}       SEI 23106.129368/2021-17.AQUISIÇÃO DE TAPETE SANITIZANTE.                2021ND004660.        MEMO 118/2021/AUD/SEC.",2461,MAT. CONSUMO,Shirly Caiuby Ilambwetsi Kiosz,null,FUNDAÇÃO UNIVERSIDADE DE BRASÍLIA,null,506.00,ordinário,605
PRÓPRIOS -  PREST.SERVICOS FUB/FUNDO,119.60,FISCAL,PR 306/2021 - FUB,2021,30/11/2021,CRÉDITOS DISTRIBUÍDOS PARA AS UNIDADES ACADÊMICAS,null,null,null,FUNCIONAMENTO DE INSTITUICOES FEDERAI - NO DF,23106.061116/2021-75,"C. CUSTO: IBD.     PROT:11010112{SM3197/2021(119,60)}       SEI 23106.123550/2021-56.AQUISIÇÃO DE PNEUS PARA CARRINHO DE MÃO.                   2021ND004664.",2460,MAT. CONSUMO,Derleny Shiguedomi Serehite do Vale,null,FUNDAÇÃO UNIVERSIDADE DE BRASÍLIA,null,119.60,ordinário,605
PRÓPRIOS -  PREST.SERVICOS FUB/FUNDO,24950.00,FISCAL,PR 206/2020 - FUB,2021,30/11/2021,CRÉDITOS DISTRIBUÍDOS PARA AS UNIDADES ACADÊMICAS,null,null,null,FUNCIONAMENTO DE INSTITUICOES FEDERAI - NO DF,23106.102135/2020-88,"C. CUSTO: IDA.     PROT:11010114{SM3388/2021(24950,00)}       SEI 23106.127478/2021-36.AQUISIÇÃO DE NOTEBOOKS.                    MEMO 30/2021/IDA/MUS/SADM.DEMONSTRATIVO (7449629).",2459,EQUIPAMENTOS E MATERIAL PERMANENTE,Belli Lizot Lozzi Paolis,null,FUNDAÇÃO UNIVERSIDADE DE BRASÍLIA,null,24950.00,ordinário,605
PRÓPRIOS -  PREST.SERVICOS FUB/FUNDO,4015.08,FISCAL,PR 6/2020 - FUB,2021,30/11/2021,CRÉDITOS DISTRIBUÍDOS PARA AS UNIDADES ACADÊMICAS,null,null,null,FUNCIONAMENTO DE INSTITUICOES FEDERAI - NO DF,23106.085994/2018-81,"C. CUSTO ICH PROT:11010118(4015,08) REQ: 3418/2021MEMORANDO 018 (7253941) AQUISIÇÃO DE CÂMERAS E DE SWITCHES.SEI: 23106.111793/2021-41 2021ND004662",2456,SERV. PESSOA JURÍDICA,Rabeiro Eninger Kläsener Delbone,null,FUNDAÇÃO UNIVERSIDADE DE BRASÍLIA,null,4015.08,ordinário,605
PRÓPRIOS -  PREST.SERVICOS FUB/FUNDO,10062.00,FISCAL,PR 6/2020 - FUB,2021,30/11/2021,CRÉDITOS DISTRIBUÍDOS PARA AS UNIDADES ACADÊMICAS,null,null,null,FUNCIONAMENTO DE INSTITUICOES FEDERAI - NO DF,23106.085994/2018-81,"C. CUSTO ICH PROT:11010118(10062,00) REQ: 3417/2021MEMORANDO 018 (7253941) AQUISIÇÃO DE CÂMERAS E DE SWITCHES.SEI: 23106.111793/2021-41 2021ND004662",2455,SERV. PESSOA JURÍDICA,SEAL TELECOM COMERCIO E SERVICOS DE TELECOMUNICACOES L,null,FUNDAÇÃO UNIVERSIDADE DE BRASÍLIA,null,10062.00,ordinário,605
PRÓPRIOS -  PREST.SERVICOS FUB/FUNDO,9980.00,FISCAL,PR 206/2020 - FUB,2021,30/11/2021,CRÉDITOS DISTRIBUÍDOS PARA AS UNIDADES ACADÊMICAS,null,null,null,FUNCIONAMENTO DE INSTITUICOES FEDERAI - NO DF,23106.102135/2020-88,"C. CUSTO ICH PROT:11010118(9980,00) REQ: 3453/2021MEMORANDO 39 (7428355) AQUISIÇÃO DE DOIS MICROCOMPUTADORES,SEI: 23106.128115/2021-18  2021ND004668",2450,EQUIPAMENTOS E MATERIAL PERMANENTE,Belli Lizot Lozzi Paolis,null,FUNDAÇÃO UNIVERSIDADE DE BRASÍLIA,null,9980.00,ordinário,605
PRÓPRIOS -  PREST.SERVICOS FUB/FUNDO,11466.00,FISCAL,PR 206/2020 - FUB,2021,30/11/2021,CRÉDITOS DISTRIBUÍDOS PARA AS UNIDADES ACADÊMICAS,null,null,null,FUNCIONAMENTO DE INSTITUICOES FEDERAI - NO DF,23106.102135/2020-88,"C. CUSTO PROT:(11466,00) REQ: 3454/2021MEMORANDO 40 (7428482) AQUISIÇÃO DE DOIS MICROCOMPUTADORESSEI:  23106.128126/2021-06 2021ND004666",2449,EQUIPAMENTOS E MATERIAL PERMANENTE,Ahissou Sbroggio Gongi,null,FUNDAÇÃO UNIVERSIDADE DE BRASÍLIA,null,11466.00,ordinário,605
PRÓPRIOS -  PREST.SERVICOS FUB/FUNDO,16770.00,FISCAL,PR 6/2020 - FUB,2021,30/11/2021,CRÉDITOS DISTRIBUÍDOS PARA AS UNIDADES ACADÊMICAS,null,null,null,FUNCIONAMENTO DE INSTITUICOES FEDERAI - NO DF,23106.085994/2018-81,"C. CUSTO FGA PROT:110132(16770,00) REQ: 3411/2021AQUISIÇÃO DE 15 (QUINZE) CÂMERAS TIPO DOMESEI: 23106.108453/2021-33 DEMONSTRATIVO (7449617)",2448,SERV. PESSOA JURÍDICA,SEAL TELECOM COMERCIO E SERVICOS DE TELECOMUNICACOES L,null,FUNDAÇÃO UNIVERSIDADE DE BRASÍLIA,null,16770.00,ordinário,605
PRÓPRIOS -  PREST.SERVICOS FUB/FUNDO,3690.00,FISCAL,PR 306/2021 - FUB,2021,30/11/2021,CRÉDITOS DISTRIBUÍDOS PARA AS UNIDADES ACADÊMICAS,null,null,null,FUNCIONAMENTO DE INSTITUICOES FEDERAI - NO DF,23106.061116/2021-75,"C. CUSTO FTD PROT:1101011102(3690,00) REQ: 3096/2021MEMORANDO 079 (7397420) AQUISIÇÃO DE 06 (SEIS) CARRINHOSSEI: 23106.125381/2021-99 DEMONSTRATIVO (7448118)",2447,EQUIP. MATERIAL PERMANENTE,Derleny Shiguedomi Serehite do Vale,null,FUNDAÇÃO UNIVERSIDADE DE BRASÍLIA,null,3690.00,ordinário,605
PRÓPRIOS -  PREST.SERVICOS FUB/FUNDO,11180.00,FISCAL,PR 6/2020 - FUB,2021,30/11/2021,CRÉDITOS DISTRIBUÍDOS PARA AS UNIDADES ACADÊMICAS,null,null,null,FUNCIONAMENTO DE INSTITUICOES FEDERAI - NO DF,23106.085994/2018-81,"C. CUSTO ICE PROT:11010115(1180,00) REQ: 3409/2021AQUISIÇÃO DE 10 (DEZ) CÂMERAS PREGÃO 6/2020SEI: 23106.115381/2021-81 DEMONSTRATIVO (7448055)",2446,SERV. PESSOA JURÍDICA,SEAL TELECOM COMERCIO E SERVICOS DE TELECOMUNICACOES L,null,FUNDAÇÃO UNIVERSIDADE DE BRASÍLIA,null,11180.00,ordinário,605
PRÓPRIOS -  PREST.SERVICOS FUB/FUNDO,1379.50,FISCAL,PR,2021,29/11/2021,CRÉDITOS DISTRIBUÍDOS PARA AS UNIDADES ACADÊMICAS,null,null,null,FUNCIONAMENTO DE INSTITUICOES FEDERAI - NO DF,23106.121602/2021-50,"C. CUSTO: IBD                            SEI:23106.121602/2021-50 ATT: MAURÍCIO ROSSATO       2021ND000000MEMO.S.N/2021IB/EEB          PROT:11010112(1379,50)MATERIAL DE PERMANENTE - PEDIDO:0000/2021 -   PREG:306/2021  MÁQUINAS E EQUIP AGRÍCOLAS - CARRINHO DE MÃO E PNEU PARA CARRINHO DE MÃO",2444,EQUIP. MATERIAL PERMANENTE,Derleny Shiguedomi Serehite do Vale,null,FUNDAÇÃO UNIVERSIDADE DE BRASÍLIA,null,1379.50,global,605
PRÓPRIOS -  PREST.SERVICOS FUB/FUNDO,850.00,FISCAL,PR,2021,29/11/2021,CRÉDITOS DISTRIBUÍDOS PARA AS UNIDADES ACADÊMICAS,null,null,null,FUNCIONAMENTO DE INSTITUICOES FEDERAI - NO DF,23106.121602/2021-50,"C. CUSTO: IBD                            SEI:23106.121602/2021-50 ATT: MAURÍCIO ROSSATO       2021ND000000MEMO.S.N/2021IB/EEB          PROT:11010112(850,00)MATERIAL DE PERMANENTE - PEDIDO:0000/2021 -   PREG:306/2021  MÁQUINAS E EQUIP AGRÍCOLAS - ROÇADEIRA MANUAL - TIPO MOTOR - GASOLINA",2443,EQUIP. MATERIAL PERMANENTE,Madelline Carapusa Spadarotto,null,FUNDAÇÃO UNIVERSIDADE DE BRASÍLIA,null,850.00,global,605
PRÓPRIOS -  PREST.SERVICOS FUB/FUNDO,34398.00,FISCAL,PR 206/2020 - FUB,2021,29/11/2021,CRÉDITOS DISTRIBUÍDOS PARA AS UNIDADES ACADÊMICAS,null,null,null,FUNCIONAMENTO DE INSTITUICOES FEDERAI - NO DF,23106.102135/2020-88,"C. CUSTO: FUP                            SEI:23106.128043/2021-17 ATT: REINALDO JOSÉ DE MIRANDA    2021ND000000MEMO.S.N/2021/FUP/GCF                  PROT:110129{SM3338/2021(34398,00)}MATERIAL DE PERMANENTE - PEDIDO:3338/2021 -   PREG:206/2020  EQUIPAMENTOS TIC - MICROCOMPUTADOR TIPO AVANÇADO",2442,EQUIPAMENTOS E MATERIAL PERMANENTE,Ahissou Sbroggio Gongi,null,FUNDAÇÃO UNIVERSIDADE DE BRASÍLIA,null,34398.00,ordinário,605
PRÓPRIOS -  PREST.SERVICOS FUB/FUNDO,706.40,FISCAL,PR 41/2021 - FUB,2021,29/11/2021,CRÉDITOS DISTRIBUÍDOS PARA AS UNIDADES ADMINISTRATIVAS,null,null,null,FUNCIONAMENTO DE INSTITUICOES FEDERAI - NO DF,23106.078404/2021-69,"C.CUSTO:FAL//  AQUISIÇÃO DE VACINAS//  MEMORANDO Nº 84/2021/FAL//   PROT:110116(706,40)//  2021ND004659// REQ.3597/2021",2441,MAT. CONSUMO,Gilclei Guimaes Demschinski Preuss,null,FUNDAÇÃO UNIVERSIDADE DE BRASÍLIA,null,706.40,ordinário,605
PRÓPRIOS -  PREST.SERVICOS FUB/FUNDO,24950.00,FISCAL,PR 206/2020 - FUB,2021,29/11/2021,CRÉDITOS DISTRIBUÍDOS PARA AS UNIDADES ADMINISTRATIVAS,null,null,null,FUNCIONAMENTO DE INSTITUICOES FEDERAI - NO DF,23106.102135/2020-88,"C. CUSTO: FUP                            SEI:23106.128043/2021-17 ATT: REINALDO JOSÉ DE MIRANDA    2021ND000000MEMO.S.N/2021/FUP/GCF                  PROT:110129{SM3339/2021(24950,00)}MATERIAL DE PERMANENTE - PEDIDO:3339/2021 -   PREG:206/2020  EQUIPAMENTOS TIC - NOTEBOOK TIPO PADRÃO",2439,EQUIPAMENTOS E MATERIAL PERMANENTE,Belli Lizot Lozzi Paolis,null,FUNDAÇÃO UNIVERSIDADE DE BRASÍLIA,null,24950.00,ordinário,605
PRÓPRIOS -  PREST.SERVICOS FUB/FUNDO,88400.00,FISCAL,PR 206/2020 - FUB,2021,29/11/2021,CRÉDITOS DISTRIBUÍDOS PARA AS UNIDADES ADMINISTRATIVAS,null,null,null,FUNCIONAMENTO DE INSTITUICOES FEDERAI - NO DF,23106.102135/2020-88,"C. CUSTO: FUP                            SEI:23106.128043/2021-17 ATT: REINALDO JOSÉ DE MIRANDA    2021ND000000MEMO.S.N/2021/FUP/GCF                  PROT:110129{SM3458/2021(88400,00)}MATERIAL DE PERMANENTE - PEDIDO:3458/2021 -   PREG:206/2020  EQUIPAMENTOS TIC - MICROCOMPUTADOR TIPO PADRÃO",2438,EQUIPAMENTOS E MATERIAL PERMANENTE,Hohlenwerger Jacunda Mezzalira Escott Alodji,null,FUNDAÇÃO UNIVERSIDADE DE BRASÍLIA,null,88400.00,ordinário,605
PRÓPRIOS -  PREST.SERVICOS FUB/FUNDO,7850.00,FISCAL,PR 10/2021 - FUB,2021,29/11/2021,CRÉDITOS DISTRIBUÍDOS PARA AS UNIDADES ACADÊMICAS,null,null,null,FUNCIONAMENTO DE INSTITUICOES FEDERAI - NO DF,23106.116899/2020-51,"C. CUSTO:  IHD                                           SEI:23106.121908/2021-14ATT:  NEUMA BRILHANTE RODRIGUES        2021ND004618 E 2021ND004581MEMO.034/2021/ICH                               PROT:11010118{SM3121/2021(7850,00)}MATERIAL PERMANENTE - PEDIDO:3121/2021 -   PREG: 10/2021MAQ.UTENSÍLIOS EQUIP.DIVERSOS - AR CONDICIONADO - SPLIT  PISO TETO",2436,EQUIP. MATERIAL PERMANENTE,Goeij Marenco Gascia Andrielly,null,FUNDAÇÃO UNIVERSIDADE DE BRASÍLIA,null,7850.00,ordinário,605
PRÓPRIOS -  PREST.SERVICOS FUB/FUNDO,47100.00,FISCAL,PR 10/2021 - FUB,2021,29/11/2021,CRÉDITOS DISTRIBUÍDOS PARA AS UNIDADES ACADÊMICAS,null,null,null,FUNCIONAMENTO DE INSTITUICOES FEDERAI - NO DF,23106.116899/2020-51,"C. CUSTO:  ICS                                           SEI:23106.122617/2021-35ATT:  DANIEL SCHROETER SIMIAO        2021ND000000MEMO.196/2021/ICS/DAN                     PROT:11010113{SM3311/2021(47100,00)}MATERIAL PERMANENTE - PEDIDO:3311/2021 -   PREG: 10/2021MAQ.UTENSÍLIOS EQUIP.DIVERSOS - AR CONDICIONADO - SPLIT  PISO TETO",2435,EQUIP. MATERIAL PERMANENTE,Goeij Marenco Gascia Andrielly,null,FUNDAÇÃO UNIVERSIDADE DE BRASÍLIA,null,47100.00,ordinário,605
PRÓPRIOS -  PREST.SERVICOS FUB/FUNDO,952.00,FISCAL,PR,2021,29/11/2021,CRÉDITOS DISTRIBUÍDOS PARA AS UNIDADES ACADÊMICAS,null,null,null,FUNCIONAMENTO DE INSTITUICOES FEDERAI - NO DF,23106.124727/2021-31,"C. CUSTO: IBD.       PROT:11010112(952,00)      SEI 23106.124727/2021-31.AQUISIÇÃO DE BANQUETA.DEMONSTRATIVO (7445959).      DESPACHO IB/CP 7390193.",2429,EQUIP. MATERIAL PERMANENTE,Augustta Buralli Comis Clezar,null,FUNDAÇÃO UNIVERSIDADE DE BRASÍLIA,null,952.00,ordinário,605
PRÓPRIOS -  PREST.SERVICOS FUB/FUNDO,865.00,FISCAL,PR,2021,29/11/2021,CRÉDITOS DISTRIBUÍDOS PARA AS UNIDADES ACADÊMICAS,null,null,null,FUNCIONAMENTO DE INSTITUICOES FEDERAI - NO DF,23106.124719/2021-95,"C. CUSTO: IBD.       PROT:11010112(865,00)      SEI 23106.124719/2021-95.AQUISIÇÃO DE MESA INSTRUMENTAL.DEMONSTRATIVO (7445932).      DESPACHO IB/CP 7390138.",2428,EQUIP. MATERIAL PERMANENTE,Gleydice Paez Orchulhack,null,FUNDAÇÃO UNIVERSIDADE DE BRASÍLIA,null,865.00,ordinário,605
PRÓPRIOS -  PREST.SERVICOS FUB/FUNDO,1581.90,FISCAL,PR,2021,29/11/2021,CRÉDITOS DISTRIBUÍDOS PARA AS UNIDADES ADMINISTRATIVAS,null,null,null,FUNCIONAMENTO DE INSTITUICOES FEDERAI - NO DF,23106.123388/2021-76,"C. CUSTO: CERRADO.       PROT:110136(1581,90)      SEI 23106.123388/2021-76.AQUISIÇÃO DE VASOS ORNAMENTAIS.2021ND004475.       DESPACHO CER 7376454.",2427,MAT. CONSUMO,LICITOP COMERCIO E SERVICO EIRELI - EPP,null,FUNDAÇÃO UNIVERSIDADE DE BRASÍLIA,null,1581.90,global,605
PRÓPRIOS -  PREST.SERVICOS FUB/FUNDO,758.10,FISCAL,PR,2021,29/11/2021,CRÉDITOS DISTRIBUÍDOS PARA AS UNIDADES ADMINISTRATIVAS,null,null,null,FUNCIONAMENTO DE INSTITUICOES FEDERAI - NO DF,23106.123388/2021-76,"C. CUSTO: CERRADO.       PROT:110136(758,10)      SEI 23106.123388/2021-76.AQUISIÇÃO DE SUPORTE DE MADEIRA PARA VASO ORNAMENTAL.2021ND004475.       DESPACHO CER 7376454.",2426,MAT. CONSUMO,Asunção Miramar Balais Blati,null,FUNDAÇÃO UNIVERSIDADE DE BRASÍLIA,null,758.10,global,605
PRÓPRIOS -  PREST.SERVICOS FUB/FUNDO,2236.00,FISCAL,PR 6/2020 - FUB,2021,29/11/2021,CRÉDITOS DISTRIBUÍDOS PARA AS UNIDADES ADMINISTRATIVAS,null,null,null,FUNCIONAMENTO DE INSTITUICOES FEDERAI - NO DF,23106.085994/2018-81,"C. CUSTO DPO PROT:110135(2236,00) REQ: 2954/2021AQUISIÇÃO DE 02 (DUAS) UNIDADES DE CÂMERA TIPO DOME2021ND004016 SEI: 23106.107056/2021-44",2425,SERV. PESSOA JURÍDICA,SEAL TELECOM COMERCIO E SERVICOS DE TELECOMUNICACOES L,null,FUNDAÇÃO UNIVERSIDADE DE BRASÍLIA,null,2236.00,ordinário,605
PRÓPRIOS -  PREST.SERVICOS FUB/FUNDO,4015.08,FISCAL,PR 6/2020 - FUB,2021,29/11/2021,CRÉDITOS DISTRIBUÍDOS PARA AS UNIDADES ACADÊMICAS,null,null,null,FUNCIONAMENTO DE INSTITUICOES FEDERAI - NO DF,23106.085994/2018-81,"C. CUSTO FUP PROT:110129(4015,08) REQ: 3402/2021MEMORANDO 60 (7289300) AQUISIÇÃO DE DE EQUIPAMENTOS DE SEGURANÇAPARA INSTALAÇÃO NA FUP SEI: 23106.114780/2021-24",2424,SERV. PESSOA JURÍDICA,Rabeiro Eninger Kläsener Delbone,null,FUNDAÇÃO UNIVERSIDADE DE BRASÍLIA,null,4015.08,ordinário,605
PRÓPRIOS -  PREST.SERVICOS FUB/FUNDO,9524.00,FISCAL,PR 6/2020 - FUB,2021,29/11/2021,CRÉDITOS DISTRIBUÍDOS PARA AS UNIDADES ACADÊMICAS,null,null,null,FUNCIONAMENTO DE INSTITUICOES FEDERAI - NO DF,23106.085994/2018-81,"C. CUSTO FUP PROT:110129(9524,00) REQ: 3401/2021MEMORANDO 60 (7289300) AQUISIÇÃO DE DE EQUIPAMENTOS DE SEGURANÇAPARA INSTALAÇÃO NA FUP SEI: 23106.114780/2021-24",2423,SERV. PESSOA JURÍDICA,SEAL TELECOM COMERCIO E SERVICOS DE TELECOMUNICACOES L,null,FUNDAÇÃO UNIVERSIDADE DE BRASÍLIA,null,9524.00,ordinário,605
RECURSOS DIRETAM.ARREC FUNDAÇÃO UNIV.BRASÍLIA,1230.00,FISCAL,PR 306/2021 - FUB,2021,26/11/2021,CUSTOS INDIRETOS DAS UNIDADES - RECOMPOSICAO,null,null,null,FUNCIONAMENTO DE INSTITUICOES FEDERAI - NO DF,23106.061116/2021-75,"C. CUSTO: FAV                            SEI: 23106.128540/2021-15ATT: MAX DA COSTA OLIVEIRA               2021ND004499OFÍCIO.051/2021/FAV/DIR          PROT:11010105{SM3495/2021(1230,00)}MATERIAL DE PERMANENTE - PEDIDO:3495/2021 -   PREG:306/2021  VEÍCULOS DIVERSOS - CARRINHO DE MÃO - 150L",2422,EQUIP. MATERIAL PERMANENTE,Derleny Shiguedomi Serehite do Vale,null,FUNDAÇÃO UNIVERSIDADE DE BRASÍLIA,null,1230.00,ordinário,605
PRÓPRIOS -  PREST.SERVICOS FUB/FUNDO,36400.00,FISCAL,PR 206/2020 - FUB,2021,26/11/2021,CRÉDITOS DISTRIBUÍDOS PARA AS UNIDADES ACADÊMICAS,null,null,null,FUNCIONAMENTO DE INSTITUICOES FEDERAI - NO DF,23106.102135/2020-88,"C. CUSTO: FAV                            SEI: 23106.129038/2021-13 ATT: MAX DA COSTA OLIVEIRA               2021ND000000OFÍCIO.056/2021/FAV/DIR          PROT:11010105{SM3519/2021(36400,00)}MATERIAL DE PERMANENTE - PEDIDO:3519/2021 -   PREG:206/2020  EQUIPAMENTOS TIC - MICROCOMPUTADOR TIPO PADRÃO",2421,EQUIPAMENTOS E MATERIAL PERMANENTE,Hohlenwerger Jacunda Mezzalira Escott Alodji,null,FUNDAÇÃO UNIVERSIDADE DE BRASÍLIA,null,36400.00,ordinário,605
PRÓPRIOS -  PREST.SERVICOS FUB/FUNDO,11900.00,FISCAL,PR 34/2019 - FUB,2021,26/11/2021,CRÉDITOS DISTRIBUÍDOS PARA AS UNIDADES ACADÊMICAS,null,null,null,FUNCIONAMENTO DE INSTITUICOES FEDERAI - NO DF,23106.077520/2019-46,"C. CUSTO: FAV                            SEI: 23106.128544/2021-95ATT: MAX DA COSTA OLIVEIRA    - 2021ND000000 OFÍCIO.052/2021/FAV/DIR        PROT:11010105{SM3496/2021(11900,00)}MATERIAL DE PERMANENTE - PEDIDO:3496/2021 -   PREG:034/2019  APAR.EQUIP.UTENS.MED.ODONT.LABOR.HOSP. - MICROSCÓPIO BINOCULAR",2420,EQUIP. MATERIAL PERMANENTE,Ivalzelia Cenedese Congiu Fantonatt,null,FUNDAÇÃO UNIVERSIDADE DE BRASÍLIA,null,11900.00,ordinário,605
PRÓPRIOS -  PREST.SERVICOS FUB/FUNDO,11180.00,FISCAL,PR 6/2020 - FUB,2021,26/11/2021,CRÉDITOS DISTRIBUÍDOS PARA AS UNIDADES ADMINISTRATIVAS,null,null,null,FUNCIONAMENTO DE INSTITUICOES FEDERAI - NO DF,23106.085994/2018-81,"C. CUSTO: BCE                            SEI: 23106.108217/2021-17ATT: MARÍLIA AUGUSTA DE FREITAS    - 2021ND000000MEMO.046/2021/BCE      PROT:110113{SM3222/2021(11180,00)}MATERIAL DE PERMANENTE - PEDIDO:3222/2021 -   PREG:006/2020  EQUIP. PARA ÁUDIO - VÍDEO - FOTO  - CÂMERA VÍDEO DE SEGURANÇA - TIPO DOME",2419,SERV. PESSOA JURÍDICA,SEAL TELECOM COMERCIO E SERVICOS DE TELECOMUNICACOES L,null,FUNDAÇÃO UNIVERSIDADE DE BRASÍLIA,null,11180.00,ordinário,605
PRÓPRIOS -  PREST.SERVICOS FUB/FUNDO,1460.00,FISCAL,PR 315/2020 - FUB,2021,26/11/2021,CRÉDITOS DISTRIBUÍDOS PARA AS UNIDADES ACADÊMICAS,null,null,null,FUNCIONAMENTO DE INSTITUICOES FEDERAI - NO DF,23106.033435/2020-18,"C. CUSTO:  FAV                                                 SEI: 23106.129026/2021-99ATT:  MAX DA COSTA OLIVEIRA                  2021ND000000MEMO.055/2021/FAV/DIR                           PROT:11010105{SM3505/2021(1460,00)}MATERIAL PERMANENTE - PEDIDO:3505/2021 -   PREG: 315/2020MAQ.UTENSÍLIOS EQUIP.DIVERSOS - BEBEDOURO INDUSTRIAL  PISO - 50L",2418,EQUIP. MATERIAL PERMANENTE,Pelluci Baldocchi Pepper,null,FUNDAÇÃO UNIVERSIDADE DE BRASÍLIA,null,1460.00,ordinário,605
PRÓPRIOS -  PREST.SERVICOS FUB/FUNDO,2236.00,FISCAL,PR 6/2020 - FUB,2021,26/11/2021,CRÉDITOS DISTRIBUÍDOS PARA AS UNIDADES ACADÊMICAS,null,null,null,FUNCIONAMENTO DE INSTITUICOES FEDERAI - NO DF,23106.085994/2018-81,"C. CUSTO: IBD                            SEI: 23106.115239/2021-33ATT: LUIZ EDUARDO BASSAY BLUM    - 2021ND000000MEMO.068/2021/IB/COMPRAS      PROT:11010112{SM2939/2021(2236,00)}MATERIAL DE PERMANENTE - PEDIDO:2939/2021 -   PREG:006/2020  EQUIP. PARA ÁUDIO - VÍDEO - FOTO  - CÂMERA VÍDEO DE SEGURANÇA - TIPO DOME",2417,SERV. PESSOA JURÍDICA,SEAL TELECOM COMERCIO E SERVICOS DE TELECOMUNICACOES L,null,FUNDAÇÃO UNIVERSIDADE DE BRASÍLIA,null,2236.00,ordinário,605
PRÓPRIOS -  PREST.SERVICOS FUB/FUNDO,2236.00,FISCAL,PR 6/2020 - FUB,2021,26/11/2021,CRÉDITOS DISTRIBUÍDOS PARA AS UNIDADES ACADÊMICAS,null,null,null,FUNCIONAMENTO DE INSTITUICOES FEDERAI - NO DF,23106.085994/2018-81,"C. CUSTO: IBD                            SEI: 23106.115239/2021-33ATT: LUIZ EDUARDO BASSAY BLUM    - 2021ND000000MEMO.068/2021/IB/COMPRAS      PROT:11010112{SM2860/2021(2236,00)}MATERIAL DE PERMANENTE - PEDIDO:2860/2021 -   PREG:006/2020  EQUIP. PARA ÁUDIO - VÍDEO - FOTO  - CÂMERA VÍDEO DE SEGURANÇA - TIPO DOME",2416,SERV. PESSOA JURÍDICA,SEAL TELECOM COMERCIO E SERVICOS DE TELECOMUNICACOES L,null,FUNDAÇÃO UNIVERSIDADE DE BRASÍLIA,null,2236.00,ordinário,605
PRÓPRIOS -  PREST.SERVICOS FUB/FUNDO,31304.00,FISCAL,PR 6/2020 - FUB,2021,26/11/2021,CRÉDITOS DISTRIBUÍDOS PARA AS UNIDADES ACADÊMICAS,null,null,null,FUNCIONAMENTO DE INSTITUICOES FEDERAI - NO DF,23106.085994/2018-81,"C. CUSTO: IBD                            SEI: 23106.115239/2021-33ATT: ISABELA RAMOS RIBEIRO    - 2021ND000000MEMO.068/2021/IB/COMPRAS      PROT:11010112{SM3064/2021(31304,00)}MATERIAL DE PERMANENTE - PEDIDO:3064/2021 -   PREG:006/2020  EQUIP. PARA ÁUDIO - VÍDEO - FOTO  - CÂMERA VÍDEO DE SEGURANÇA - TIPO DOME",2415,SERV. PESSOA JURÍDICA,SEAL TELECOM COMERCIO E SERVICOS DE TELECOMUNICACOES L,null,FUNDAÇÃO UNIVERSIDADE DE BRASÍLIA,null,31304.00,ordinário,605
PRÓPRIOS -  PREST.SERVICOS FUB/FUNDO,29750.00,FISCAL,PR 34/2019 - FUB,2021,26/11/2021,CRÉDITOS DISTRIBUÍDOS PARA AS UNIDADES ACADÊMICAS,null,null,null,FUNCIONAMENTO DE INSTITUICOES FEDERAI - NO DF,23106.077520/2019-46,"C. CUSTO: FSD                            SEI:23106.127233/2021-17ATT: ANGÉLICA AMORIM AMATO    - 2021ND000000 MEMO.001/2021/FS/FAR        PROT:1101011005{SM3383/2021(29750,00)}MATERIAL DE PERMANENTE - PEDIDO:3383/2021 -   PREG:034/2019  APAR.EQUIP.UTENS.MED.ODONT.LABOR.HOSP. - MICROSCÓPIO BINOCULAR",2414,EQUIP. MATERIAL PERMANENTE,Ivalzelia Cenedese Congiu Fantonatt,null,FUNDAÇÃO UNIVERSIDADE DE BRASÍLIA,null,29750.00,ordinário,605
RECURSOS DIRETAM.ARREC FUNDAÇÃO UNIV.BRASÍLIA,3720.72,FISCAL,PR,2021,26/11/2021,MANUTENCAO DE VEICULOS LEVES E PESADOS DA FUB,null,null,null,FUNCIONAMENTO DE INSTITUICOES FEDERAI - NO DF,23106.083717/2020-58,"C.CUSTO PRC - MANUT.CORRETIVA E PREVENTIVA DE VEICULOS                   SEI:23106.083717/2020-58PAG.DE MAT. DE CONS.- FORNEC. DE PEÇAS - MARCA  IVECO -  PREG:655/2015      PROT:110105(3720,72)MEMO.S.N/2021/PRC/DIMEQ/CMV       2021ND004582 -                         CONTRATO Nº 1015/2016",2412,MAT. CONSUMO,Ullyanov Dasso Projante Lehnhard,null,FUNDAÇÃO UNIVERSIDADE DE BRASÍLIA,null,3720.72,estimativo,605
RECURSOS DIRETAM.ARREC FUNDAÇÃO UNIV.BRASÍLIA,892.51,FISCAL,PR,2021,26/11/2021,MANUTENCAO DE VEICULOS LEVES E PESADOS DA FUB,null,null,null,FUNCIONAMENTO DE INSTITUICOES FEDERAI - NO DF,23106.083717/2020-58,"C.CUSTO PRC - MANUT.CORRETIVA E PREVENTIVA DE VEICULOS                   SEI:23106.083717/2020-58PAG.DE MANUT.CONS.DE CAMINHÃO - MARCA  IVECO -  PREG:655/2015      PROT:110105(892,51)MEMO.S.N/2021/PRC/DIMEQ/CMV       2021ND004582 -                         CONTRATO Nº 1015/2016",2411,SERV. PESSOA JURÍDICA,Ullyanov Dasso Projante Lehnhard,null,FUNDAÇÃO UNIVERSIDADE DE BRASÍLIA,null,892.51,estimativo,605
PRÓPRIOS -  PREST.SERVICOS FUB/FUNDO,5590.00,FISCAL,PR,2021,26/11/2021,CRÉDITOS DISTRIBUÍDOS PARA AS UNIDADES ACADÊMICAS,null,null,null,FUNCIONAMENTO DE INSTITUICOES FEDERAI - NO DF,23106.112933/2021-07,"C. CUSTO: IHD                            SEI:23106.112933/2021-07 ATT: ISABELA RAMOS RIBEIRO    - 2021ND004508 MEMO.053/2021/ICH/SER      PROT:11010118{SM2834/2021(5590,00)}MATERIAL DE PERMANENTE - PEDIDO:2834/2021 -   PREG:006/2020  EQUIP. PARA ÁUDIO - VÍDEO - FOTO  - CÂMERA VÍDEO DE SEGURANÇA - TIPO SENSOR CMOS",2410,EQUIP. MATERIAL PERMANENTE,SEAL TELECOM COMERCIO E SERVICOS DE TELECOMUNICACOES L,null,FUNDAÇÃO UNIVERSIDADE DE BRASÍLIA,null,5590.00,global,605
PRÓPRIOS -  PREST.SERVICOS FUB/FUNDO,24050.00,FISCAL,PR,2021,26/11/2021,CRÉDITOS DISTRIBUÍDOS PARA AS UNIDADES ACADÊMICAS,null,null,null,FUNCIONAMENTO DE INSTITUICOES FEDERAI - NO DF,23106.126798/2021-79,"C. CUSTO: FAV                            SEI:23106.126798/2021-79 ATT: MAX DA COSTA OLIVEIRA    - 2021ND003424 - UASG: 153038MEMO.S.N/2021/FAV/DIR       PROT:11010105(24050,00)MATERIAL DE PERMANENTE - PEDIDO:0000/2021 -   PREG:009/2021  MOBILIÁRIO EM GERAL  - ESTAÇÃO DE TRABALHO E CADEIRA DE ESCRITÓRIO",2409,EQUIP. MATERIAL PERMANENTE,TECNO2000 INDUSTRIA E COMERCIO LTDA,null,FUNDAÇÃO UNIVERSIDADE DE BRASÍLIA,null,24050.00,global,605
RECURSOS ORDINÁRIOS,6206.72,FISCAL,PR,2021,26/11/2021,MANUTENCAO DE VEICULOS LEVES E PESADOS DA FUB,null,null,null,FUNCIONAMENTO DE INSTITUICOES FEDERAI - NO DF,23106.118279/2021-37,"C.CUSTO:PRC//  AQUISIÇÃO DE PEÇAS PARA REPARO EM VEICULOS LEVES MARCA FIATMEMO N.112/PRC/DIMEQ//  2021ND004546// PROT:110105(6206,72)",2402,MAT. CONSUMO,Gelmar Fészio Ciucci,null,FUNDAÇÃO UNIVERSIDADE DE BRASÍLIA,null,6206.72,global,605
RECURSOS ORDINÁRIOS,445.50,FISCAL,PR,2021,26/11/2021,MANUTENCAO DE VEICULOS LEVES E PESADOS DA FUB,null,null,null,FUNCIONAMENTO DE INSTITUICOES FEDERAI - NO DF,23106.118279/2021-37,"C.CUSTO:PRC//  SERVIÇO DE MANUTENÇÃO OPERACIONAL VEICULOS LEVES MARCA FIATMEMO N.112/2021/PRC/DIMEQ//  2021ND004546// PROT:110105(445,50)",2401,SERV. PESSOA JURÍDICA,Gelmar Fészio Ciucci,null,FUNDAÇÃO UNIVERSIDADE DE BRASÍLIA,null,445.50,global,605
RECURSOS ORDINÁRIOS,3954.75,FISCAL,PR,2021,26/11/2021,FUNCIONAMENTO GERAL,null,null,null,FUNCIONAMENTO DE INSTITUICOES FEDERAI - NO DF,23106.122520/2021-22,"C. CUSTO PRC PROT:110105(3954,75) PR: 305/2021VASO ORNAMENTAL, BOCA QUADRADA, EM MATERIAL CIMENTÍCIO2021ND004480 SEI: 23106.122520/2021-22",2399,MAT. CONSUMO,LICITOP COMERCIO E SERVICO EIRELI - EPP,null,FUNDAÇÃO UNIVERSIDADE DE BRASÍLIA,null,3954.75,global,605
RECURSOS ORDINÁRIOS,1895.25,FISCAL,PR,2021,26/11/2021,FUNCIONAMENTO GERAL,null,null,null,FUNCIONAMENTO DE INSTITUICOES FEDERAI - NO DF,23106.122520/2021-22,"C. CUSTO PRC PROT:110105(1895,25) PR: 305/2021SUPORTE EM MADEIRA COM RODÍZIOS PARA VASO ORNAMENTAL2021ND004480 SEI: 23106.122520/2021-22",2398,MAT. CONSUMO,Asunção Miramar Balais Blati,null,FUNDAÇÃO UNIVERSIDADE DE BRASÍLIA,null,1895.25,global,605
RECURSOS DIRETAM.ARREC FUNDAÇÃO UNIV.BRASÍLIA,5984.85,FISCAL,PR,2021,25/11/2021,MANUTENCAO DE VEICULOS LEVES E PESADOS DA FUB,null,null,null,FUNCIONAMENTO DE INSTITUICOES FEDERAI - NO DF,23106.117240/2021-01,"C.CUSTO PRC - MANUT.CORRETIVA E PREVENTIVA DE VEICULOS             SEI:23106.117240/2021-01  PAG. DE FORNEC. DE PEÇAS DE CAMINHAO - MARCA IVECO                     PROT:110105(5984,85)MEMO.115/2021/PRC/DIMEQ/CMV   2021ND004539     -  CONTRATO Nº 1015/2016             PREG:655/2015",2396,MAT. CONSUMO,Ullyanov Dasso Projante Lehnhard,null,FUNDAÇÃO UNIVERSIDADE DE BRASÍLIA,null,5984.85,estimativo,605
PRÓPRIOS -  PREST.SERVICOS FUB/FUNDO,4990.00,FISCAL,PR 206/2020 - FUB,2021,25/11/2021,CRÉDITOS DISTRIBUÍDOS PARA AS UNIDADES ACADÊMICAS,null,null,null,FUNCIONAMENTO DE INSTITUICOES FEDERAI - NO DF,23106.102135/2020-88,"C. CUSTO: IHD                                             SEI:23106.123530/2021-85 ATT:  HERIVELTO PEREIRA DE SOUZA     2021ND004545MEMO.S.N/2021/ICH                                 PROT:11010118{SM3231/2021(4990,00)}MATERIAL DE PERMANENTE - PEDIDO:3231/2021 -   PREG:206/2020  EQUIPAMENTOS TIC - NOTEBOOK  TIPO PADRÃO",2395,EQUIPAMENTOS E MATERIAL PERMANENTE,Belli Lizot Lozzi Paolis,null,FUNDAÇÃO UNIVERSIDADE DE BRASÍLIA,null,4990.00,ordinário,605
RECURSOS DIRETAM.ARREC FUNDAÇÃO UNIV.BRASÍLIA,1526.66,FISCAL,PR,2021,25/11/2021,MANUTENCAO DE VEICULOS LEVES E PESADOS DA FUB,null,null,null,FUNCIONAMENTO DE INSTITUICOES FEDERAI - NO DF,23106.117240/2021-01,"C.CUSTO PRC - MANUT.CORRETIVA E PREVENTIVA DE VEICULOS                   SEI:23106.117240/2021-01  PAG. DE MANUT.CONSERVAÇÃO DE CAMINHAO - MARCA IVECO                     PROT:110105(1526,66)MEMO.115/2021/PRC/DIMEQ/CMV   2021ND004539     -  CONTRATO Nº 1015/2016             PREG:655/2015",2394,SERV. PESSOA JURÍDICA,Ullyanov Dasso Projante Lehnhard,null,FUNDAÇÃO UNIVERSIDADE DE BRASÍLIA,null,1526.66,estimativo,605
PRÓPRIOS -  PREST.SERVICOS FUB/FUNDO,11180.00,FISCAL,PR,2021,25/11/2021,CRÉDITOS DISTRIBUÍDOS PARA AS UNIDADES ADMINISTRATIVAS,null,null,null,FUNCIONAMENTO DE INSTITUICOES FEDERAI - NO DF,23106.113814/2021-63,"C. CUSTO: ACE.     PROT:110141(11180,00)       SEI 23106.113814/2021-63.AQUISIÇÃO DE CÂMARAS TIPO DOME.2021ND004501.",2388,EQUIP. MATERIAL PERMANENTE,SEAL TELECOM COMERCIO E SERVICOS DE TELECOMUNICACOES L,null,FUNDAÇÃO UNIVERSIDADE DE BRASÍLIA,null,11180.00,ordinário,605
PRÓPRIOS -  PREST.SERVICOS FUB/FUNDO,5590.00,FISCAL,PR,2021,25/11/2021,CRÉDITOS DISTRIBUÍDOS PARA AS UNIDADES ACADÊMICAS,null,null,null,FUNCIONAMENTO DE INSTITUICOES FEDERAI - NO DF,23106.110745/2021-36,"C. CUSTO: IHD.     PROT:11010118(5590,00)       SEI 23106.110745/2021-36.AQUISIÇÃO DE CÂMARAS TIPO DOME.2021ND004517.        MEMO 35/2021/ICH/HIS.",2387,EQUIP. MATERIAL PERMANENTE,SEAL TELECOM COMERCIO E SERVICOS DE TELECOMUNICACOES L,null,FUNDAÇÃO UNIVERSIDADE DE BRASÍLIA,null,5590.00,global,605
PRÓPRIOS -  PREST.SERVICOS FUB/FUNDO,4200.38,FISCAL,PR,2021,25/11/2021,CRÉDITOS DISTRIBUÍDOS PARA AS UNIDADES ACADÊMICAS,null,null,null,FUNCIONAMENTO DE INSTITUICOES FEDERAI - NO DF,23106.093720/2021-61,"C.CUSTO FCE - MANUT.CORRETIVA E PREVENTIVA DE VEICULOS                    SEI:23106.093720/2021-61  PAGAMENTO DE PEÇAS DE VEICULO LEVES - MARCA FIAT  PROT:110105(4200,38)MEMO.014/2021/FCE/AP  2021ND004515  - CONTRATO 1017/2016       PREG:655/2015",2379,MAT. CONSUMO,Gelmar Fészio Ciucci,null,FUNDAÇÃO UNIVERSIDADE DE BRASÍLIA,null,4200.38,estimativo,605
PRÓPRIOS -  PREST.SERVICOS FUB/FUNDO,357.00,FISCAL,PR,2021,24/11/2021,CRÉDITOS DISTRIBUÍDOS PARA AS UNIDADES ACADÊMICAS,null,null,null,FUNCIONAMENTO DE INSTITUICOES FEDERAI - NO DF,23106.093720/2021-61,"C.CUSTO FCE - MANUT.CORRETIVA E PREVENTIVA DE VEICULOS                    SEI:23106.093720/2021-61  PAGAMENTO DE MANUT.CONSERVAÇÃO DE VEICULO LEVES - MARCA FIAT  PROT:110105(357,00)MEMO.014/2021/FCE/AP  2021ND004515  - CONTRATO Nº 1017/2016       PREG:655/2015",2376,SERV. PESSOA JURÍDICA,Gelmar Fészio Ciucci,null,FUNDAÇÃO UNIVERSIDADE DE BRASÍLIA,null,357.00,estimativo,605
PRÓPRIOS -  PREST.SERVICOS FUB/FUNDO,31400.00,FISCAL,PR 10/2021 - FUB,2021,24/11/2021,CRÉDITOS DISTRIBUÍDOS PARA AS UNIDADES ACADÊMICAS,null,null,null,FUNCIONAMENTO DE INSTITUICOES FEDERAI - NO DF,23106.116899/2020-51,"C. CUSTO:  FEF                                                  SEI:23106.084864/2021-26ATT:  FERNANDO MASCARENHAS ALVES     2021ND000000MEMO.039/2021/FEF/FINANCEIRO              PROT:11010108{SM3264/2021(31400,00)}MATERIAL PERMANENTE - PEDIDO:3264/2021 -   PREG: 10/2021MAQ.UTENSÍLIOS EQUIP.DIVERSOS - AR CONDICIONADO - SPLIT  PISO TETO",2374,EQUIP. MATERIAL PERMANENTE,Goeij Marenco Gascia Andrielly,null,FUNDAÇÃO UNIVERSIDADE DE BRASÍLIA,null,31400.00,ordinário,605
RECURSOS DIRETAM.ARREC FUNDAÇÃO UNIV.BRASÍLIA,1960.00,FISCAL,PR 24/2021 - FUB,2021,24/11/2021,CUSTOS INDIRETOS DAS UNIDADES - RECOMPOSICAO,null,null,null,FUNCIONAMENTO DE INSTITUICOES FEDERAI - NO DF,23106.052694/2021-11,"C.CUSTO:CET//  TOTEM TERMOMETRO DIGITAL// MEMO N.52/2021/CETSEI N.23106.127706/2021-78//  REQ. 3421/2021//  PROT:110118(1960,00)",2372,EQUIP. MATERIAL PERMANENTE,Sedenho Colnaghi Nobuo Hussar,null,FUNDAÇÃO UNIVERSIDADE DE BRASÍLIA,null,1960.00,ordinário,605
PRÓPRIOS -  PREST.SERVICOS FUB/FUNDO,5590.00,FISCAL,PR 6/2020 - FUB,2021,24/11/2021,CRÉDITOS DISTRIBUÍDOS PARA AS UNIDADES ACADÊMICAS,null,null,null,FUNCIONAMENTO DE INSTITUICOES FEDERAI - NO DF,23106.085994/2018-81,"C.CUSTO:IHD//  AQUISIÇÃO DE CÂMERAS DE SEGURANÇA// REQ.2834/2021PROT:11010118(5590,00)// 2021ND004508",2370,SERV. PESSOA JURÍDICA,SEAL TELECOM COMERCIO E SERVICOS DE TELECOMUNICACOES L,null,FUNDAÇÃO UNIVERSIDADE DE BRASÍLIA,null,5590.00,ordinário,605
RECURSOS DIRETAM.ARREC FUNDAÇÃO UNIV.BRASÍLIA,16906.52,FISCAL,PR,2021,24/11/2021,MANUTENCAO DE VEICULOS LEVES E PESADOS DA FUB,null,null,null,FUNCIONAMENTO DE INSTITUICOES FEDERAI - NO DF,23106.073377/2021-38,"C. CUSTO: PRC.     PROT:110105(16906,52)         SEI 23106.073377/2021-38.PEÇAS PARA MANUTENÇÃO DE VEÍCULO.2021ND004506.        MEMO 53/2021/FAL.",2369,MAT. CONSUMO,Ullyanov Dasso Projante Lehnhard,null,FUNDAÇÃO UNIVERSIDADE DE BRASÍLIA,null,16906.52,estimativo,605
RECURSOS DIRETAM.ARREC FUNDAÇÃO UNIV.BRASÍLIA,4459.95,FISCAL,PR,2021,24/11/2021,MANUTENCAO DE VEICULOS LEVES E PESADOS DA FUB,null,null,null,FUNCIONAMENTO DE INSTITUICOES FEDERAI - NO DF,23106.073377/2021-38,"C. CUSTO: PRC.         PROT:110105(4459,95)        SEI 23106.073377/2021-38.SERVIÇOS DE MANUTENÇÃO DE VEÍCULO.2021ND004506.        MEMO 53/2021/FAL.",2368,SERV. PESSOA JURÍDICA,Ullyanov Dasso Projante Lehnhard,null,FUNDAÇÃO UNIVERSIDADE DE BRASÍLIA,null,4459.95,estimativo,605
RECURSOS DIRETAM.ARREC FUNDAÇÃO UNIV.BRASÍLIA,29940.00,FISCAL,PR 206/2020 - FUB,2021,24/11/2021,FUNCIONAMENTO GERAL,null,null,null,FUNCIONAMENTO DE INSTITUICOES FEDERAI - NO DF,23106.102135/2020-88,"C.CUSTO:INFRA//  AQUISIÇÃO DE NOTEBOOK TIPO PADRAO// REQ.1631/2021PROT:110137(29940,00)//  2021ND002415",2367,EQUIPAMENTOS E MATERIAL PERMANENTE,Belli Lizot Lozzi Paolis,null,FUNDAÇÃO UNIVERSIDADE DE BRASÍLIA,null,29940.00,ordinário,605
RECURSOS DIRETAM.ARREC FUNDAÇÃO UNIV.BRASÍLIA,103194.00,FISCAL,PR 206/2020 - FUB,2021,24/11/2021,FUNCIONAMENTO GERAL,null,null,null,FUNCIONAMENTO DE INSTITUICOES FEDERAI - NO DF,23106.102135/2020-88,"C.CUSTO:INFRA//  AQUISIÇÃO DE MICROCOMPUTADOR TIPO AVANÇADO// REQ.1630/2021PROT:110137(103194,00)//  2021ND002415",2366,EQUIPAMENTOS E MATERIAL PERMANENTE,Ahissou Sbroggio Gongi,null,FUNDAÇÃO UNIVERSIDADE DE BRASÍLIA,null,103194.00,ordinário,605
TAXA DE ALUNO ESPECIAL -FUB,456.00,FISCAL,PR 204/2021 - FUB,2021,24/11/2021,PROGRAMA DE POS-GRADUACAO EM TRANSPORTES PPGT,null,null,null,FUNCIONAMENTO DE INSTITUICOES FEDERAI - NO DF,23106.112789/2020-10,"C.CUSTO:PPGT//  AQUISIÇÃO DE HD 2TB EXTERNO// REQ.3375/2021PROT:110101110201(456,00)//  MEMO N.053/2021/FT/ENC/PPGT",2364,MAT. CONSUMO,Sileir Hallay Zeymer,null,FUNDAÇÃO UNIVERSIDADE DE BRASÍLIA,null,456.00,ordinário,605
PRÓPRIOS -  PREST.SERVICOS FUB/FUNDO,9980.00,FISCAL,PR 206/2020 - FUB,2021,24/11/2021,CRÉDITOS DISTRIBUÍDOS PARA AS UNIDADES ADMINISTRATIVAS,null,null,null,FUNCIONAMENTO DE INSTITUICOES FEDERAI - NO DF,23106.102135/2020-88,"C.CUSTO:CIBH// AQUISIÇÃO DE NOTEBOOK TIPO PADRAO// REQ.3319/2021SEI N.23106.125548/2021-11//  PROT:110149(9980,00)",2363,EQUIPAMENTOS E MATERIAL PERMANENTE,Belli Lizot Lozzi Paolis,null,FUNDAÇÃO UNIVERSIDADE DE BRASÍLIA,null,9980.00,ordinário,605
TED SIMEC 8323 - PROAP,20250.00,FISCAL,PR 29/2021 - FUB,2021,24/11/2021,CAPES,null,null,null,TED SIMEC 8323 - PROAP,23106.074324/2021-34,"C. CUSTO DPG PROT:11010806(20250,00) TED CAPES N TRANSF: 697550 REQ: 3285MEMORANDO 250 (7409568) AQUISIÇÃO DE 100 (CEM) LITROS DE HÉLIO LÍQUIDO CRIOGÊNICO2021ND002919 SEI: 23106.123429/2021-24",2362,MAT. CONSUMO,AIR PRODUCTS BRASIL LTDA.,null,FUNDAÇÃO UNIVERSIDADE DE BRASÍLIA,null,20250.00,ordinário,605
TED SIMEC 8323 - PROAP,895.00,FISCAL,PR,2021,24/11/2021,CAPES,null,null,null,TED SIMEC 8323 - PROAP,23106.095904/2021-65,"C. CUSTO DPG PROT:11010806(895,00) TED CAPES N TRANSF: 697550FRETE AÉREO INTERNACIONAL2021ND002919 SEI: 23106.095904/2021-65",2357,SERV. PESSOA JURÍDICA,Glippel Zvolinski da Graças,null,FUNDAÇÃO UNIVERSIDADE DE BRASÍLIA,null,895.00,estimativo,605
RECURSOS DIRETAM.ARREC FUNDAÇÃO UNIV.BRASÍLIA,34398.00,FISCAL,PR 206/2020 - FUB,2021,24/11/2021,FUNCIONAMENTO GERAL,null,null,null,FUNCIONAMENTO DE INSTITUICOES FEDERAI - NO DF,23106.102135/2020-88,"C. CUSTO GRE/SECOM PROT:110111(34398,00) REQ: 3368/2021MEMORANDO 101 (7413959) AQUISIÇÃO DE COMPUTADORES E NOTEBOOKSSEI: 23106.126876/2021-35 2021ND004401 PR: 206/2020",2351,EQUIPAMENTOS E MATERIAL PERMANENTE,Ahissou Sbroggio Gongi,null,FUNDAÇÃO UNIVERSIDADE DE BRASÍLIA,null,34398.00,ordinário,605
RECURSOS DIRETAM.ARREC FUNDAÇÃO UNIV.BRASÍLIA,9980.00,FISCAL,PR 206/2020 - FUB,2021,24/11/2021,FUNCIONAMENTO GERAL,null,null,null,FUNCIONAMENTO DE INSTITUICOES FEDERAI - NO DF,23106.102135/2020-88,"C. CUSTO GRE/SECOM PROT:110111(9980,00) REQ: 3365/2021MEMORANDO 101 (7413959) AQUISIÇÃO DE COMPUTADORES E NOTEBOOKSSEI: 23106.126876/2021-35 2021ND004401 PR: 206/2020",2350,EQUIPAMENTOS E MATERIAL PERMANENTE,Belli Lizot Lozzi Paolis,null,FUNDAÇÃO UNIVERSIDADE DE BRASÍLIA,null,9980.00,ordinário,605
PRÓPRIOS -  PREST.SERVICOS FUB/FUNDO,4570.00,FISCAL,PR 10/2021 - FUB,2021,23/11/2021,CRÉDITOS DISTRIBUÍDOS PARA AS UNIDADES ACADÊMICAS,null,null,null,FUNCIONAMENTO DE INSTITUICOES FEDERAI - NO DF,23106.116899/2020-51,"C. CUSTO:  FDD                                               SEI:23106.096165/2021-29ATT:  INEZ LOPES MATOS  CARNEIRO       2021ND000000MEMO.S.N/2021/FDD/PPGD   PROT:11010106{SM3261/2021(4570,00)}MATERIAL PERMANENTE - PEDIDO:3261/2021 -   PREG: 10/2021MAQ.UTENSÍLIOS EQUIP.DIVERSOS - AR CONDICIONADO - SPLIT HIGH, WALL INVERTER",2348,EQUIP. MATERIAL PERMANENTE,Gramelich Polachini Nésiaseni' Carlivania,null,FUNDAÇÃO UNIVERSIDADE DE BRASÍLIA,null,4570.00,ordinário,605
PRÓPRIOS -  PREST.SERVICOS FUB/FUNDO,15700.00,FISCAL,PR 10/2021 - FUB,2021,23/11/2021,CRÉDITOS DISTRIBUÍDOS PARA AS UNIDADES ACADÊMICAS,null,null,null,FUNCIONAMENTO DE INSTITUICOES FEDERAI - NO DF,23106.116899/2020-51,"C. CUSTO:  FDD                                               SEI:23106.096165/2021-29ATT:  INEZ LOPES MATOS  CARNEIRO       2021ND000000MEMO.S.N/2021/FDD/PPGD   PROT:11010106{SM3260/2021(15700,00)}MATERIAL PERMANENTE - PEDIDO:3260/2021 -   PREG: 10/2021MAQ.UTENSÍLIOS EQUIP.DIVERSOS - AR CONDICIONADO - SPLIT  PISO TETO",2347,EQUIP. MATERIAL PERMANENTE,Goeij Marenco Gascia Andrielly,null,FUNDAÇÃO UNIVERSIDADE DE BRASÍLIA,null,15700.00,ordinário,605
PRÓPRIOS -  PREST.SERVICOS FUB/FUNDO,4990.00,FISCAL,PR 206/2020 - FUB,2021,23/11/2021,CRÉDITOS DISTRIBUÍDOS PARA AS UNIDADES ACADÊMICAS,null,null,null,FUNCIONAMENTO DE INSTITUICOES FEDERAI - NO DF,23106.102135/2020-88,"C. CUSTO: IDA                                              SEI:23106.127306/2021-62 ATT:  FATIMA APARECIDA DOS SANTOS  2021ND004483MEMO.S.N/2021/IDA                      PROT:11010114{SM3381/2021(4990,00)}MATERIAL DE PERMANENTE - PEDIDO:3381/2021 -   PREG:206/2020  EQUIPAMENTOS TIC - NOTEBOOK  TIPO PADRÃO",2346,EQUIPAMENTOS E MATERIAL PERMANENTE,Belli Lizot Lozzi Paolis,null,FUNDAÇÃO UNIVERSIDADE DE BRASÍLIA,null,4990.00,ordinário,605
PRÓPRIOS -  PREST.SERVICOS FUB/FUNDO,1230.00,FISCAL,PR 306/2021 - FUB,2021,23/11/2021,CRÉDITOS DISTRIBUÍDOS PARA AS UNIDADES ACADÊMICAS,null,null,null,FUNCIONAMENTO DE INSTITUICOES FEDERAI - NO DF,23106.061116/2021-75,"C. CUSTO:  IBD                                     SEI:23106.123526/2021-17ATT:  LUIZ EDUARDO BASSAY           2021ND000000MEMO.080/2021/IB/COMPRAS       PROT:11010112{SM3198/2021(1230,00)}MATERIAL PERMANENTE - PEDIDO:3198/2021 -   PREG: 306/2021VEÍCULOS DIVERSOS - CARRINHO DE MÃO - 150L",2343,EQUIP. MATERIAL PERMANENTE,Derleny Shiguedomi Serehite do Vale,null,FUNDAÇÃO UNIVERSIDADE DE BRASÍLIA,null,1230.00,ordinário,605
PRÓPRIOS -  PREST.SERVICOS FUB/FUNDO,850.00,FISCAL,PR 306/2021 - FUB,2021,23/11/2021,CRÉDITOS DISTRIBUÍDOS PARA AS UNIDADES ACADÊMICAS,null,null,null,FUNCIONAMENTO DE INSTITUICOES FEDERAI - NO DF,23106.061116/2021-75,"C. CUSTO:  IBD                                     SEI:23106.123526/2021-17ATT:  LUIZ EDUARDO BASSAY           2021ND000000MEMO.080/2021/IB/COMPRAS       PROT:11010112{SM3192/2021(850,00)}MATERIAL PERMANENTE - PEDIDO:3192/2021 -   PREG: 306/2021MÁQUINAS E EQUIP.AGRÍCOLAS - ROÇADEIRA MANUAL - TIPO MOTOR GASOLINA",2342,EQUIP. MATERIAL PERMANENTE,Madelline Carapusa Spadarotto,null,FUNDAÇÃO UNIVERSIDADE DE BRASÍLIA,null,850.00,ordinário,605
RECURSOS ORDINÁRIOS,634.36,FISCAL,null,2021,23/11/2021,PROCESSOS SELETIVOS DA UNIVERSIDADE DE BRASÍLIA - UNB.,null,null,null,FUNCIONAMENTO DE INSTITUICOES FEDERAI - NO DF,23106.093468/2021-90,"C.CUSTO:DEG// CELEBRAÇÃO DE INSTRUMENTO CONTRATUAL UNB E CEBRASPE// 2021ND004469 PROT:110106(634,36)",2340,SERV. PESSOA JURÍDICA,Derlei Berges Prera,null,FUNDAÇÃO UNIVERSIDADE DE BRASÍLIA,null,634.36,global,605
PRÓPRIOS -  PREST.SERVICOS FUB/FUNDO,14970.00,FISCAL,PR 206/2020 - FUB,2021,22/11/2021,CRÉDITOS DISTRIBUÍDOS PARA AS UNIDADES ACADÊMICAS,null,null,null,FUNCIONAMENTO DE INSTITUICOES FEDERAI - NO DF,23106.102135/2020-88,"C. CUSTO: FEF                            SEI:23106.123969/2021-16 ATT: FERNANDO MASCARENHAS ALVES    2021ND000000MEMO.071/2021/FEF/FINANCEIRO         PROT:11010108{SM3317/2021(14970,00)}MATERIAL DE PERMANENTE - PEDIDO:3317/2021 -   PREG:206/2020  EQUIPAMENTOS TIC - NOTEBOOK TIPO PADRÃO",2330,EQUIPAMENTOS E MATERIAL PERMANENTE,Belli Lizot Lozzi Paolis,null,FUNDAÇÃO UNIVERSIDADE DE BRASÍLIA,null,14970.00,ordinário,605
PRÓPRIOS -  PREST.SERVICOS FUB/FUNDO,10400.00,FISCAL,PR 206/2020 - FUB,2021,22/11/2021,CRÉDITOS DISTRIBUÍDOS PARA AS UNIDADES ACADÊMICAS,null,null,null,FUNCIONAMENTO DE INSTITUICOES FEDERAI - NO DF,23106.102135/2020-88,"C. CUSTO: FEF                            SEI:23106.123969/2021-16 ATT: FERNANDO MASCARENHAS ALVES    2021ND000000MEMO.071/2021/FEF/FINANCEIRO         PROT:11010108{SM3316/2021(10400,00)}MATERIAL DE PERMANENTE - PEDIDO:3316/2021 -   PREG:206/2020  EQUIPAMENTOS TIC - MICROCOMPUTADOR TIPO PADRÃO",2329,EQUIPAMENTOS E MATERIAL PERMANENTE,Hohlenwerger Jacunda Mezzalira Escott Alodji,null,FUNDAÇÃO UNIVERSIDADE DE BRASÍLIA,null,10400.00,ordinário,605
PRÓPRIOS -  PREST.SERVICOS FUB/FUNDO,17199.00,FISCAL,PR 206/2020 - FUB,2021,22/11/2021,CRÉDITOS DISTRIBUÍDOS PARA AS UNIDADES ACADÊMICAS,null,null,null,FUNCIONAMENTO DE INSTITUICOES FEDERAI - NO DF,23106.102135/2020-88,"C. CUSTO: FEF                            SEI:23106.123969/2021-16 ATT: FERNANDO MASCARENHAS ALVES    2021ND000000MEMO.071/2021/FEF/FINANCEIRO         PROT:11010108{SM3315/2021(17199,00)}MATERIAL DE PERMANENTE - PEDIDO:3315/2021 -   PREG:206/2020  EQUIPAMENTOS TIC - MICROCOMPUTADOR TIPO AVANÇADO",2328,EQUIPAMENTOS E MATERIAL PERMANENTE,Ahissou Sbroggio Gongi,null,FUNDAÇÃO UNIVERSIDADE DE BRASÍLIA,null,17199.00,ordinário,605
PRÓPRIOS -  PREST.SERVICOS FUB/FUNDO,850.00,FISCAL,PR 205/2021 - FUB,2021,22/11/2021,CRÉDITOS DISTRIBUÍDOS PARA AS UNIDADES ACADÊMICAS,null,null,null,FUNCIONAMENTO DE INSTITUICOES FEDERAI - NO DF,23106.112840/2020-93,"C. CUSTO:  IHD                                                    SEI:23106.121917/2021-05ATT:   NEUMA BRILHANTE RODRIGUES           2021ND004439MEMO.036/2021/ICH                           PROT:11010118{SM3125/2021(850,00)}MATERIAL PERMANENTE - PEDIDO:3125/2021 -   PREG: 205/2021EQUIPAMENTOS TIC - -MESA DIGITALIZADORA",2327,EQUIP. MATERIAL PERMANENTE,Cenimar Denes,null,FUNDAÇÃO UNIVERSIDADE DE BRASÍLIA,null,850.00,ordinário,605
RECURSOS DIRETAM.ARREC FUNDAÇÃO UNIV.BRASÍLIA,2920.00,FISCAL,PR,2021,22/11/2021,CUSTOS INDIRETOS DAS UNIDADES - RECOMPOSICAO,null,null,null,FUNCIONAMENTO DE INSTITUICOES FEDERAI - NO DF,23106.126100/2021-15,"C.CUSTO:FAV//  AQUISIÇÃO DE BEBEDOURO INDUSTRIAL//  MEMO N.10/2021/FAV/HVETPROT:11010105(2920,00)// 2021ND004423",2326,EQUIP. MATERIAL PERMANENTE,Pelluci Baldocchi Pepper,null,FUNDAÇÃO UNIVERSIDADE DE BRASÍLIA,null,2920.00,global,605
RECURSOS DIR.ARRECADADOS(PROPRIOS)-FUB -,42634.90,FISCAL,PR,2021,22/11/2021,ARRECADACOES PROVENIENTES DO SIS,null,null,null,FUNCIONAMENTO DE INSTITUICOES FEDERAI - NO DF,23106.102301/2021-27,"C.CUSTO: SIS  PROT:11010117030101(42734,90)MEMORANDO 123 / 2021 (7148074) FRETE AÉREO INTERNACIONAL2021ND004384 SEI: 23106.102301/2021-27",2321,SERV. PESSOA JURÍDICA,Glippel Zvolinski da Graças,null,FUNDAÇÃO UNIVERSIDADE DE BRASÍLIA,null,42634.90,estimativo,605
ARRECADAÇÕES DA BCE,980.00,FISCAL,PR,2021,19/11/2021,ARRECADACOES DA BCE,null,null,null,FUNCIONAMENTO DE INSTITUICOES FEDERAI - NO DF,23106.125899/2021-22,"C. CUSTO:  BCE                                           SEI:23106.125899/2021-22ATT:  ANA FLÁVIA LUCAS DE FARIA          2021ND000000MEMO.S.N/2021/BCE          PROT:110113{SM3020/2021(980,00)}MATERIAL PERMANENTE - PEDIDO:3020/2021 -   PREG: 24/2021EQUIP. DE PROTEÇÃO E SEGURANÇA - TOTEM - TERMÔMETRO DIGITAL INFRA",2319,EQUIP. MATERIAL PERMANENTE,Sedenho Colnaghi Nobuo Hussar,null,FUNDAÇÃO UNIVERSIDADE DE BRASÍLIA,null,980.00,global,605
PRÓPRIOS -  PREST.SERVICOS FUB/FUNDO,5640.00,FISCAL,PR 10/2021 - FUB,2021,19/11/2021,CRÉDITOS DISTRIBUÍDOS PARA AS UNIDADES ADMINISTRATIVAS,null,null,null,FUNCIONAMENTO DE INSTITUICOES FEDERAI - NO DF,23106.116899/2020-51,"C. CUSTO:  PRC                                                 SEI:23106.114193/2021-35ATT:  WANDERSON MENDES DA SILVA         2021ND004373MEMO.S.N/2021/PRC/DIMEQ/COF/ELETRÔNICA   PROT:110105{SM3040/2021(5640,00)}MATERIAL PERMANENTE - PEDIDO:3040/2021 -   PREG: 10/2021MAQ.UTENSÍLIOS EQUIP.DIVERSOS - AR CONDICIONADO - SPLIT  HIGH WALL INVERTER",2317,EQUIP. MATERIAL PERMANENTE,Gramelich Polachini Nésiaseni' Carlivania,null,FUNDAÇÃO UNIVERSIDADE DE BRASÍLIA,null,5640.00,ordinário,605
PRÓPRIOS -  PREST.SERVICOS FUB/FUNDO,15700.00,FISCAL,PR 10/2021 - FUB,2021,19/11/2021,CRÉDITOS DISTRIBUÍDOS PARA AS UNIDADES ADMINISTRATIVAS,null,null,null,FUNCIONAMENTO DE INSTITUICOES FEDERAI - NO DF,23106.116899/2020-51,"C. CUSTO:  PRC                                                 SEI:23106.114193/2021-35ATT:  WANDERSON MENDES DA SILVA         2021ND0043733940MEMO.S.N/2021/PRC/DIMEQ/COF/ELETRÔNICA   PROT:110105{SM3039/2021(15700,00)}MATERIAL PERMANENTE - PEDIDO:3039/2021 -   PREG: 10/2021MAQ.UTENSÍLIOS EQUIP.DIVERSOS - AR CONDICIONADO - SPLIT  PISO TETO",2316,EQUIP. MATERIAL PERMANENTE,Goeij Marenco Gascia Andrielly,null,FUNDAÇÃO UNIVERSIDADE DE BRASÍLIA,null,15700.00,ordinário,605
PRÓPRIOS -  PREST.SERVICOS FUB/FUNDO,1960.00,FISCAL,PR 24/2021 - FUB,2021,19/11/2021,CRÉDITOS DISTRIBUÍDOS PARA AS UNIDADES ADMINISTRATIVAS,null,null,null,FUNCIONAMENTO DE INSTITUICOES FEDERAI - NO DF,23106.052694/2021-11,"C. CUSTO: BCE.     PROT:110113{SM3288/2021(1960,00)}      SEI 23106.125181/2021-36.AQUISIÇÃO DE TOTEM TERMÔMETRO DIGITAL.DEMONSTRATIVO (7402276).",2314,EQUIP. MATERIAL PERMANENTE,Sedenho Colnaghi Nobuo Hussar,null,FUNDAÇÃO UNIVERSIDADE DE BRASÍLIA,null,1960.00,ordinário,605
RECURSOS DIRETAM.ARREC FUNDAÇÃO UNIV.BRASÍLIA,94810.00,FISCAL,PR 206/2020 - FUB,2021,19/11/2021,FUNCIONAMENTO GERAL,null,null,null,FUNCIONAMENTO DE INSTITUICOES FEDERAI - NO DF,23106.102135/2020-88,"C.CUSTO:CPD// AQUISIÇÃO DE NOTEBOOK TIPO PADRAO// REQ.3251PROT:110114(94810,00)// SEI N.23106.121812/2021-48",2311,EQUIPAMENTOS E MATERIAL PERMANENTE,Belli Lizot Lozzi Paolis,null,FUNDAÇÃO UNIVERSIDADE DE BRASÍLIA,null,94810.00,ordinário,605
RECURSOS DIRETAM.ARREC FUNDAÇÃO UNIV.BRASÍLIA,229320.00,FISCAL,PR 206/2020 - FUB,2021,19/11/2021,FUNCIONAMENTO GERAL,null,null,null,FUNCIONAMENTO DE INSTITUICOES FEDERAI - NO DF,23106.121812/2021-48,"C.CUSTO:CPD// AQUISIÇÃO DE MICROCOMPUTADOR TIPO AVANÇADO// SEI N.23106.121812/2021-48PROT:110114(229320,00)",2310,EQUIP. MATERIAL PERMANENTE,Ahissou Sbroggio Gongi,null,FUNDAÇÃO UNIVERSIDADE DE BRASÍLIA,null,229320.00,global,605
PRÓPRIOS -  PREST.SERVICOS FUB/FUNDO,962.23,FISCAL,PR 18/2021 - FUB,2021,18/11/2021,CRÉDITOS DISTRIBUÍDOS PARA AS UNIDADES ADMINISTRATIVAS,null,null,null,FUNCIONAMENTO DE INSTITUICOES FEDERAI - NO DF,23106.032985/2021-92,"C.CUSTO: CEAD -AT-LETICIA LOPES LEITE - PROT:110124{SM3201/2021(962,23)}         MATERIAL DE CONSUMO-PEDIDO:3201/2021 -2021ND004412 -PREG:18/2021 MATERIAL DE LIMPEZA E HIGIENE - MEMO.S.N/2021-CEAD//S.E.I 23106.100824/2021-39",2308,MAT. CONSUMO,Marcus Venoso Eulâmpio Lika Fratuce,null,FUNDAÇÃO UNIVERSIDADE DE BRASÍLIA,null,962.23,ordinário,605
CONT.IND.RURAL/ADIC.CONTRIB.PREVIDENC.-INCRA,10299.90,FISCAL,PR,2021,18/11/2021,TED INCRA - 11505,null,null,null,TED INCRA 11505,23106.108486/2021-83,"C.CUSTO:ENC//AQUISIÇÃO DE VEICULO AÉREO NÃO TRIPULADO DRONE QUADRICOPETERO//PROT:1101011102(10299,90)// MEMO N.LABRAC13/2021/FT// 2021ND002182",2307,EQUIP. MATERIAL PERMANENTE,Venga Najos Tenca Fátia,null,FUNDAÇÃO UNIVERSIDADE DE BRASÍLIA,null,10299.90,global,605
PRÓPRIOS -  PREST.SERVICOS FUB/FUNDO,4270.00,FISCAL,PR 10/2021 - FUB,2021,18/11/2021,CRÉDITOS DISTRIBUÍDOS PARA AS UNIDADES ACADÊMICAS,null,null,null,FUNCIONAMENTO DE INSTITUICOES FEDERAI - NO DF,23106.116899/2020-51,"CUSTO:  FDD                                SEI 23106.094891/2021-15ATT:  OTHON DE AZEVEDO LOPES          2021ND002985MEMO.189/2019/FDD/FIN                          PROT:11010106{SM3031/2021(4270,00)}MATERIAL PERMANENTE - PEDIDO:3031/2021 -   PREG: 10/2021MAQ.UTENSÍLIOS EQUIP.DIVERSOS - AR CONDICIONADO SPLIT HIGH",2306,EQUIP. MATERIAL PERMANENTE,Gramelich Polachini Nésiaseni' Carlivania,null,FUNDAÇÃO UNIVERSIDADE DE BRASÍLIA,null,4270.00,ordinário,605
REC.PRÓPRIOS PRIMÁRIOS DE LIVRE APLICAÇÃO,392.04,FISCAL,PR 11/2021 - FUB,2021,18/11/2021,CRÉDITOS DISTRIBUÍDOS PARA AS UNIDADES ADMINISTRATIVAS,null,null,null,FUNCIONAMENTO DE INSTITUICOES FEDERAI - NO DF,23106.004528/2021-16,"C.CUSTO: BCE -AT- FERNANDO CÉSAR LIMA LEITE - PROT:110113{SM3314/2021(392,04)}         MATERIAL DE CONSUMO-PEDIDO:3314/2021 -2021ND004407 -PREG:11/2021MAT. DE PROT. E SEG. - ADESIVO DE CHÃO DISTANCIAMENTO  - PEDESTAL,- ZEBRADOMEMO.S.N/2021/BCE/ADM/COM -  S.E.I 23106.124724/2021-06",2305,MAT. CONSUMO,Cleanny Hergesell Fargnolli Evelise Gaviano,null,FUNDAÇÃO UNIVERSIDADE DE BRASÍLIA,null,392.04,ordinário,605
CONT.IND.RURAL/ADIC.CONTRIB.PREVIDENC.-INCRA,456.00,FISCAL,PR 204/2021 - FUB,2021,18/11/2021,TED INCRA - 11505,null,null,null,TED INCRA 11505,23106.112789/2020-10,"C.CUSTO:ENC//  AQUISIÇÃO DE HD EXTERNO 2TB// REQ.3087/2021PROT:110101110208(456,00)// TED INCRA 11505// TRANSF. 1AAEKK// 2021ND002182",2302,MAT. CONSUMO,Sileir Hallay Zeymer,null,FUNDAÇÃO UNIVERSIDADE DE BRASÍLIA,null,456.00,ordinário,605
CONT.IND.RURAL/ADIC.CONTRIB.PREVIDENC.-INCRA,650.00,FISCAL,PR 204/2021 - FUB,2021,18/11/2021,TED INCRA - 11505,null,null,null,TED INCRA 11505,23106.112789/2020-10,"C.CUSTO:ENC//  AQUISIÇÃO DE HD EXTERNO 4TB// REQ.3086/2021PROT:110101110208(650,00)// TED INCRA 11505// TRANSF. 1AAEKK// 2021ND002182",2301,EXCLUSIVO PARA CONV. DNOC - MATERIAL DE CONSUMO,Estarneks Bedran Velo,null,FUNDAÇÃO UNIVERSIDADE DE BRASÍLIA,null,650.00,ordinário,605
PRÓPRIOS -  PREST.SERVICOS FUB/FUNDO,19.60,FISCAL,PR 18/2021 - FUB,2021,18/11/2021,CRÉDITOS DISTRIBUÍDOS PARA AS UNIDADES ADMINISTRATIVAS,null,null,null,FUNCIONAMENTO DE INSTITUICOES FEDERAI - NO DF,23106.032985/2021-92,"C.CUSTO:ACE -AT- HUGO DE MACEDO COUTO - PROT:110141{SM2554/2021(19,60)}         MATERIAL DE CONSUMO-PEDIDO:2554/2021 - 2021ND004374 -PREG:18/2021MATERIAL  DE LIMPEZA E HIGIENE - RESERVATÓRIO DE ÁLCCOL GEL - 800 MLMEMO.S.N/2021- ACE - S.E.I 23106.105702/2021-39",2297,MAT. CONSUMO,Nelsomar Alamo,null,FUNDAÇÃO UNIVERSIDADE DE BRASÍLIA,null,19.60,ordinário,605
RECURSOS DIRETAM.ARREC FUNDAÇÃO UNIV.BRASÍLIA,93600.00,FISCAL,PR 206/2020 - FUB,2021,17/11/2021,CUSTOS INDIRETOS DAS UNIDADES - RECOMPOSICAO,null,null,null,FUNCIONAMENTO DE INSTITUICOES FEDERAI - NO DF,23106.102135/2020-88,"C. CUSTO: FEF                    SEI 23106.124668/2021-00 ATT: FERNANDO MASCARENHAS ALVES  2021ND000000MEMO.074/2021/FEF/FINANCEIRO     PROT:11010108{SM3275/2021(93600,00)}MATERIAL DE PERMANENTE - PEDIDO:3275/2021 -   PREG:206/2020  EQUIPAMENTOS TIC - MICROCOMPUTADOR TIPO PADRÃO",2290,EQUIPAMENTOS E MATERIAL PERMANENTE,Hohlenwerger Jacunda Mezzalira Escott Alodji,null,FUNDAÇÃO UNIVERSIDADE DE BRASÍLIA,null,93600.00,ordinário,605
RECURSOS DIRETAM.ARREC FUNDAÇÃO UNIV.BRASÍLIA,9980.00,FISCAL,PR 206/2020 - FUB,2021,17/11/2021,CUSTOS INDIRETOS DAS UNIDADES - RECOMPOSICAO,null,null,null,FUNCIONAMENTO DE INSTITUICOES FEDERAI - NO DF,23106.102135/2020-88,"C. CUSTO: FEF                    SEI 23106.124668/2021-00 ATT: FERNANDO MASCARENHAS ALVES  2021ND000000MEMO.074/2021/FEF/FINANCEIRO     PROT:11010108{SM3276/2021(9980,00)}MATERIAL DE PERMANENTE - PEDIDO:3276/2021 -   PREG:206/2020  EQUIPAMENTOS TIC - NOTEBOOK TIPO PADRÃO",2289,EQUIPAMENTOS E MATERIAL PERMANENTE,Belli Lizot Lozzi Paolis,null,FUNDAÇÃO UNIVERSIDADE DE BRASÍLIA,null,9980.00,ordinário,605
RECURSOS DIRETAM.ARREC FUNDAÇÃO UNIV.BRASÍLIA,4990.00,FISCAL,PR 206/2020 - FUB,2021,17/11/2021,FUNCIONAMENTO GERAL,null,null,null,FUNCIONAMENTO DE INSTITUICOES FEDERAI - NO DF,23106.102135/2020-88,"C. CUSTO: FEF                                            SEI:23106.124663/2021-79ATT:  FERNANDO MASCARENHAAS ALVES        2021ND000000MEMO.075/2021/FEF/FINANCEIRO             PROT:110116{SM3274/2021(4990,00)}MATERIAL DE PERMANENTE - PEDIDO:3274/2021 -   PREG:206/2020  EQUIPAMENTOS TIC - NOTEBOOK - TIPO PADRÃO",2284,EQUIPAMENTOS E MATERIAL PERMANENTE,Belli Lizot Lozzi Paolis,null,FUNDAÇÃO UNIVERSIDADE DE BRASÍLIA,null,4990.00,ordinário,605
PRÓPRIOS -  PREST.SERVICOS FUB/FUNDO,45864.00,FISCAL,PR 206/2020 - FUB,2021,17/11/2021,CRÉDITOS DISTRIBUÍDOS PARA AS UNIDADES ACADÊMICAS,null,null,null,FUNCIONAMENTO DE INSTITUICOES FEDERAI - NO DF,23106.102135/2020-88,"C. CUSTO: FDD                            SEI23106.099663/2021-23 ATT: INEZ LOPES MATOS CARNEIRO     2021ND000000MEMO.044/2021/FD/PPGD                     PROT:11010106{SM2948/2021(45864,00)}MATERIAL DE PERMANENTE - PEDIDO:2948/2021 -   PREG:206/2020  EQUIPAMENTOS TIC - MICROCOMPUTADOR TIPO AVANÇADO",2283,EQUIPAMENTOS E MATERIAL PERMANENTE,Ahissou Sbroggio Gongi,null,FUNDAÇÃO UNIVERSIDADE DE BRASÍLIA,null,45864.00,ordinário,605
PRÓPRIOS -  PREST.SERVICOS FUB/FUNDO,390.00,FISCAL,PR 17/2020 - FUB,2021,17/11/2021,CRÉDITOS DISTRIBUÍDOS PARA AS UNIDADES ADMINISTRATIVAS,null,null,null,FUNCIONAMENTO DE INSTITUICOES FEDERAI - NO DF,23106.082711/2019-20,"C. CUSTO: FGA                                        SEI:23106.122189/2021-41ATT: KLEBER SEBASTIÃO RODRIGUES       2021ND004340MEMO.S.N/FGA/ADM/COMPRAS                  PROT:110132{SM3160/2021(390,00)}MATERIAL DE CONSUMO - PEDIDO:3160/2021 - PREG: 17/2020MATERIAL LABORATORIAL - BANDEJA AÇO INOXIDÁVEL",2276,MAT. CONSUMO,Jonyelson Abu-Zahra Levy,null,FUNDAÇÃO UNIVERSIDADE DE BRASÍLIA,null,390.00,ordinário,605
PRÓPRIOS -  PREST.SERVICOS FUB/FUNDO,47.97,FISCAL,PR 24/2020 - FUB,2021,17/11/2021,CRÉDITOS DISTRIBUÍDOS PARA AS UNIDADES ADMINISTRATIVAS,null,null,null,FUNCIONAMENTO DE INSTITUICOES FEDERAI - NO DF,23106.076618/2019-86,"C. CUSTO: FGA                                        SEI:23106.122189/2021-41ATT: KLEBER SEBASTIÃO RODRIGUES       2021ND004340MEMO.S.N/FGA/ADM/COMPRAS                  PROT:110132{SM3156/2021(47,97)}MATERIAL DE CONSUMO - PEDIDO:3156/2021 - PREG: 24/2020MATERIAL HOSPITALAR  - TOUCA DESCARTÁVEL TAMANHO ÚNICO",2275,MAT. CONSUMO,Jeanaina Wiira Woshington,null,FUNDAÇÃO UNIVERSIDADE DE BRASÍLIA,null,47.97,ordinário,605
PRÓPRIOS -  PREST.SERVICOS FUB/FUNDO,284.40,FISCAL,PR 11/2021 - FUB,2021,17/11/2021,CRÉDITOS DISTRIBUÍDOS PARA AS UNIDADES ADMINISTRATIVAS,null,null,null,FUNCIONAMENTO DE INSTITUICOES FEDERAI - NO DF,23106.004528/2021-16,"C. CUSTO: FGA                                        SEI:23106.122189/2021-41ATT: KLEBER SEBASTIÃO RODRIGUES       2021ND004340MEMO.S.N/FGA/ADM/COMPRAS                  PROT:110132{SM3155/2021(284,40)}MATERIAL DE CONSUMO - PEDIDO:3155/2021 - PREG: 11/2021MATERIAL DE LIMP E HIGIENE  - ÁCOOL ETÍLICO HIDRATADO GEL - GALÃO - 5L",2274,MAT. CONSUMO,Saed Dudeck Helrigle Megues Comparoni,null,FUNDAÇÃO UNIVERSIDADE DE BRASÍLIA,null,284.40,ordinário,605
PRÓPRIOS -  PREST.SERVICOS FUB/FUNDO,348.30,FISCAL,PR 24/2020 - FUB,2021,17/11/2021,CRÉDITOS DISTRIBUÍDOS PARA AS UNIDADES ADMINISTRATIVAS,null,null,null,FUNCIONAMENTO DE INSTITUICOES FEDERAI - NO DF,23106.076618/2019-86,"C. CUSTO: FGA                                        SEI:23106.122189/2021-41ATT: KLEBER SEBASTIÃO RODRIGUES       2021ND004340MEMO.S.N/FGA/ADM/COMPRAS                  PROT:110132{SM3152/2021(348,30)}MATERIAL DE CONSUMO - PEDIDO:3152/2021 - PREG: 17/2020MATERIAL HOSPITALAR  - LÂMINA BISTURI AÇO INOXIDÁVEL",2273,MAT. CONSUMO,Julimayre Devavani Salomao L Soares Andrzejevski,null,FUNDAÇÃO UNIVERSIDADE DE BRASÍLIA,null,348.30,ordinário,605
PRÓPRIOS -  PREST.SERVICOS FUB/FUNDO,78.70,FISCAL,PR 17/2020 - FUB,2021,17/11/2021,CRÉDITOS DISTRIBUÍDOS PARA AS UNIDADES ADMINISTRATIVAS,null,null,null,FUNCIONAMENTO DE INSTITUICOES FEDERAI - NO DF,23106.082711/2019-20,"C. CUSTO: FGA                                        SEI:23106.122189/2021-41ATT: KLEBER SEBASTIÃO RODRIGUES       2021ND004340MEMO.S.N/FGA/ADM/COMPRAS                  PROT:110132{SM3151/2021(78,70)}MATERIAL DE CONSUMO - PEDIDO:3151/2021 - PREG: 17/2020MATERIAL LABORATORIAL - ESTANTE TUBOS FALCON",2272,MAT. CONSUMO,Allyde Canimprata,null,FUNDAÇÃO UNIVERSIDADE DE BRASÍLIA,null,78.70,ordinário,605
PRÓPRIOS -  PREST.SERVICOS FUB/FUNDO,250.35,FISCAL,PR 17/2020 - FUB,2021,17/11/2021,CRÉDITOS DISTRIBUÍDOS PARA AS UNIDADES ADMINISTRATIVAS,null,null,null,FUNCIONAMENTO DE INSTITUICOES FEDERAI - NO DF,23106.082711/2019-20,"C. CUSTO: FGA                                        SEI:23106.122189/2021-41ATT: KLEBER SEBASTIÃO RODRIGUES       2021ND004340MEMO.S.N/FGA/ADM/COMPRAS                  PROT:110132{SM3150/2021(250,35)}MATERIAL DE CONSUMO - PEDIDO:3150/2021 - PREG: 17/2020MATERIAL LABORATORIAL - ESTANTE MICROTUBOS",2271,MAT. CONSUMO,Allyde Canimprata,null,FUNDAÇÃO UNIVERSIDADE DE BRASÍLIA,null,250.35,ordinário,605
PRÓPRIOS -  PREST.SERVICOS FUB/FUNDO,400.00,FISCAL,PR 17/2020 - FUB,2021,17/11/2021,CRÉDITOS DISTRIBUÍDOS PARA AS UNIDADES ADMINISTRATIVAS,null,null,null,FUNCIONAMENTO DE INSTITUICOES FEDERAI - NO DF,23106.082711/2019-20,"C. CUSTO: FGA                                        SEI:23106.122189/2021-41ATT: KLEBER SEBASTIÃO RODRIGUES       2021ND004340MEMO.S.N/FGA/ADM/COMPRAS                  PROT:110132{SM3148/2021(400,00)}MATERIAL DE CONSUMO - PEDIDO:3148/2021 - PREG: 17/2020MATERIAL LABORATORIAL - DESSECADOR VIDRO - 30CM",2270,MAT. CONSUMO,Curso Koti Bart Morgandi,null,FUNDAÇÃO UNIVERSIDADE DE BRASÍLIA,null,400.00,ordinário,605
PRÓPRIOS -  PREST.SERVICOS FUB/FUNDO,59880.00,FISCAL,PR 206/2020 - FUB,2021,17/11/2021,CRÉDITOS DISTRIBUÍDOS PARA AS UNIDADES ACADÊMICAS,null,null,null,FUNCIONAMENTO DE INSTITUICOES FEDERAI - NO DF,23106.102135/2020-88,"C. CUSTO: IHD.       PROT:11010118{SM3138/2021(59880,00)}     SEI 23106.122094/2021-27.AQUISIÇÃO DE NOTEBOOK.                               MEMO S/N/2021/ICH/FIL (7361940).2021ND004347.",2267,EQUIPAMENTOS E MATERIAL PERMANENTE,Belli Lizot Lozzi Paolis,null,FUNDAÇÃO UNIVERSIDADE DE BRASÍLIA,null,59880.00,ordinário,605
PRÓPRIOS -  PREST.SERVICOS FUB/FUNDO,79.60,FISCAL,PR 11/2021 - FUB,2021,17/11/2021,CRÉDITOS DISTRIBUÍDOS PARA AS UNIDADES ADMINISTRATIVAS,null,null,null,FUNCIONAMENTO DE INSTITUICOES FEDERAI - NO DF,23106.004528/2021-16,"C. CUSTO: SEMA.    PROT:110146{SM683/2021(79,60)}     SEI 23106.120460/2021-11.    AQUISIÇÃO DE PEDESTAIS PARA DEMARCAÇÃO DE AMBIENTES.         MEMO 39/2021.2021ND004352.",2266,MAT. CONSUMO,Cleanny Hergesell Fargnolli Evelise Gaviano,null,FUNDAÇÃO UNIVERSIDADE DE BRASÍLIA,null,79.60,ordinário,605
PRÓPRIOS -  PREST.SERVICOS FUB/FUNDO,3920.00,FISCAL,PR 24/2021 - FUB,2021,17/11/2021,CRÉDITOS DISTRIBUÍDOS PARA AS UNIDADES ACADÊMICAS,null,null,null,FUNCIONAMENTO DE INSTITUICOES FEDERAI - NO DF,23106.052694/2021-11,"C. CUSTO: FUP.       PROT:110129{SM3129/2021(3920,00)}       SEI  23106.123691/2021-79.       AQUISIÇÃO DE TOTEM TERMÔMETRO DIGITAL.EXTRATO SIAFI (7395399).",2265,EQUIP. MATERIAL PERMANENTE,Sedenho Colnaghi Nobuo Hussar,null,FUNDAÇÃO UNIVERSIDADE DE BRASÍLIA,null,3920.00,ordinário,605
PRÓPRIOS -  PREST.SERVICOS FUB/FUNDO,2940.00,FISCAL,PR 24/2021 - FUB,2021,17/11/2021,CRÉDITOS DISTRIBUÍDOS PARA AS UNIDADES ACADÊMICAS,null,null,null,FUNCIONAMENTO DE INSTITUICOES FEDERAI - NO DF,23106.052694/2021-11,"C. CUSTO: FCE.         PROT:110131{SM3221/2021(2940,00)}         SEI 23106.123385/2021-32.AQUISIÇÃO DE TOTEM TERMÔMETRO DIGITAL.                          MEMO 22/2021/FCE/LICICON.EXTRATO SIAFI (7395411).",2264,EQUIP. MATERIAL PERMANENTE,Sedenho Colnaghi Nobuo Hussar,null,FUNDAÇÃO UNIVERSIDADE DE BRASÍLIA,null,2940.00,ordinário,605
PRÓPRIOS -  PREST.SERVICOS FUB/FUNDO,3530.00,FISCAL,PR 315/2020 - FUB,2021,17/11/2021,CRÉDITOS DISTRIBUÍDOS PARA AS UNIDADES ACADÊMICAS,null,null,null,FUNCIONAMENTO DE INSTITUICOES FEDERAI - NO DF,23106.033435/2020-18,"C. CUSTO:  FACE                            SEI:23106.106257/2021-24ATT:  JOSÉ MARCIO CARVALHO                 2021ND004332MEMO.S.N/2021/FACE                         PROT:11010102{SM2430/2021(3530,00)}MATERIAL PERMANENTE - PEDIDO:2430/2021 -   PREG: 315/2020MAQ.UTENSÍLIOS EQUIP.DIVERSOS - BEBEDOURO INDUSTRIAL  PISO - 50L E 200L",2258,EQUIP. MATERIAL PERMANENTE,Pelluci Baldocchi Pepper,null,FUNDAÇÃO UNIVERSIDADE DE BRASÍLIA,null,3530.00,ordinário,605
RECEITA DA INDUSTRIA EDITORIA E GRAFICA/FUB -,237.00,FISCAL,PR,2021,16/11/2021,ARRECADACOES DA EDITORA UNB,null,null,null,20RK - PO COVID19,23106.017871/2021-12,"C. CUSTO: EDU                                                  SEI:23106.017871/2021-12 ATT: PERSIO SAVIO ROMUALDO DA SILVA      2021ND004340MEMO.002/EDU/ADM                     PROT:11010126{SM639/2021(237,00)}MATERIAL DE CONSUMO - PEDIDO:639/2021 -   PREG: 11/2021MAT. DE LIMPEZA E HIGIENE - ÁLCOOL ETÍLICO -GALÃO - 5L",2257,MAT. CONSUMO,Saed Dudeck Helrigle Megues Comparoni,null,FUNDAÇÃO UNIVERSIDADE DE BRASÍLIA,null,237.00,global,605
RECEITA DA INDUSTRIA EDITORIA E GRAFICA/FUB -,22.44,FISCAL,PR,2021,16/11/2021,ARRECADACOES DA EDITORA UNB,null,null,null,20RK - PO COVID19,23106.017871/2021-12,"C. CUSTO: EDU                                                  SEI:23106.017871/2021-12 ATT: PERSIO SAVIO ROMUALDO DA SILVA      2021ND004340MEMO.002/EDU/ADM                     PROT:11010126{SM640/2021(22,44)}MATERIAL DE CONSUMO - PEDIDO:640/2021 -   PREG: 11/2021MAT. DE PROTEÇÃO E SEGURANÇA - ADESIVO CHÃO DISTANCIAMENTO",2253,MAT. CONSUMO,Felts Jadir Foratto,null,FUNDAÇÃO UNIVERSIDADE DE BRASÍLIA,null,22.44,global,605
RECEITA DA INDUSTRIA EDITORIA E GRAFICA/FUB -,180.00,FISCAL,PR 11/2021 - FUB,2021,16/11/2021,ARRECADACOES DA EDITORA UNB,null,null,null,20RK - PO COVID19,23106.004528/2021-16,"C. CUSTO: EDU                                                  SEI:23106.017871/2021-12 ATT: KLEBER SEBASTIÃO RODRIGUES          2021ND004340MEMO.002/EDU/ADM                     PROT:11010126{SM641/2021(180,00)}MATERIAL DE CONSUMO - PEDIDO:641/2021 -   PREG: 11/2021MATERIAL DE LIMPEZA E HIGIENE - CAIXA - LIXEIRA PLÁSTICA PEDAL - RETANGULAR - 20L",2252,MAT. CONSUMO,Ronchi Kollross Cassanelli Ermelina,null,FUNDAÇÃO UNIVERSIDADE DE BRASÍLIA,null,180.00,ordinário,605
PRÓPRIOS -  PREST.SERVICOS FUB/FUNDO,632.50,FISCAL,PR 18/2021 - FUB,2021,16/11/2021,CRÉDITOS DISTRIBUÍDOS PARA AS UNIDADES ADMINISTRATIVAS,null,null,null,FUNCIONAMENTO DE INSTITUICOES FEDERAI - NO DF,23106.032985/2021-92,"C. CUSTO: FGA                                                   SEI:23106.123813/2021-27 ATT: KLEBER SEBASTIÃO RODRIGUES          2021ND004344MEMO.S.N/FGA/ADM/COMPRAS                     PROT:110132{SM3111/2021(632,50)}MATERIAL DE CONSUMO - PEDIDO:3111/2021 -   PREG: 18/2020MATERIAL LABORATORIAL - TAPETE VINIL 90X130 - SANITIZANTE",2251,MAT. CONSUMO,Shirly Caiuby Ilambwetsi Kiosz,null,FUNDAÇÃO UNIVERSIDADE DE BRASÍLIA,null,632.50,ordinário,605
PRÓPRIOS -  PREST.SERVICOS FUB/FUNDO,45.00,FISCAL,PR 17/2020 - FUB,2021,16/11/2021,CRÉDITOS DISTRIBUÍDOS PARA AS UNIDADES ADMINISTRATIVAS,null,null,null,FUNCIONAMENTO DE INSTITUICOES FEDERAI - NO DF,23106.082711/2019-20,"C. CUSTO: FGA                                                   SEI:23106.122189/2021-41 ATT: KLEBER SEBASTIÃO RODRIGUES          2021ND004340MEMO.S.N/FGA/ADM/COMPRAS                     PROT:110132{SM3147/2021(45,00)}MATERIAL DE CONSUMO - PEDIDO:3147/2021 -   PREG: 17/2020MATERIAL LABORATORIAL - CAIXA - PORTA LÂMINA",2250,MAT. CONSUMO,Curso Koti Bart Morgandi,null,FUNDAÇÃO UNIVERSIDADE DE BRASÍLIA,null,45.00,ordinário,605
PRÓPRIOS -  PREST.SERVICOS FUB/FUNDO,912.00,FISCAL,PR 204/2021 - FUB,2021,16/11/2021,CRÉDITOS DISTRIBUÍDOS PARA AS UNIDADES ACADÊMICAS,null,null,null,FUNCIONAMENTO DE INSTITUICOES FEDERAI - NO DF,23106.112789/2020-10,"C. CUSTO: IHD                          SEI:23106.122115/2021-12 ATT: ANDRÉ LECLERC             2021ND004343MEMO.S.N/2021/ICH/FIL         PROT:11010118{SM3145/2021(912,00)}MATERIAL DE PERMANENTE - PEDIDO:3145/2021 -   PREG:204/2021  EQUIPAMENTOS TIC - HD EXTERNO 2TB",2249,EXCLUSIVO PARA CONV. DNOC - MATERIAL DE CONSUMO,Sileir Hallay Zeymer,null,FUNDAÇÃO UNIVERSIDADE DE BRASÍLIA,null,912.00,ordinário,605
PRÓPRIOS -  PREST.SERVICOS FUB/FUNDO,980.00,FISCAL,PR 24/2021 - FUB,2021,16/11/2021,CRÉDITOS DISTRIBUÍDOS PARA AS UNIDADES ACADÊMICAS,null,null,null,FUNCIONAMENTO DE INSTITUICOES FEDERAI - NO DF,23106.052694/2021-11,"C. CUSTO: IQD                     SEI:23106.124166/2021-71 ATT: MARCOS JULIANO PRAUCHNER     2021ND004315MEMO.168/2021/IQ/SECADM  PROT:11010122{SM3259/2021(980,00)}MATERIAL DE PERMANENTE - PEDIDO:3259/2021 -   PREG:24/2021  EQUIP.DE PROTEÇÃO SEG.E SOCORRO - TOTEM TERMOMETRO DIGITAL",2244,EQUIP. MATERIAL PERMANENTE,Sedenho Colnaghi Nobuo Hussar,null,FUNDAÇÃO UNIVERSIDADE DE BRASÍLIA,null,980.00,ordinário,605
PRÓPRIOS -  PREST.SERVICOS FUB/FUNDO,20800.00,FISCAL,PR 206/2020 - FUB,2021,16/11/2021,CRÉDITOS DISTRIBUÍDOS PARA AS UNIDADES ADMINISTRATIVAS,null,null,null,FUNCIONAMENTO DE INSTITUICOES FEDERAI - NO DF,23106.102135/2020-88,"C. CUSTO: FGA                            SEI:23106.122744/2021-34 ATT:  SANDRO AUGUSTO PAVLIK       2021ND000000MEMO.S.N/2021/FGA/ADM/COMPRAS  PROT:110132{SM3181/2021(20800,00)}MATERIAL DE PERMANENTE - PEDIDO:3181/2021 -   PREG:206/2020  EQUIPAMENTOS TIC - MICROCOMPUTADOR TIPO PADRÃO",2243,EQUIPAMENTOS E MATERIAL PERMANENTE,Hohlenwerger Jacunda Mezzalira Escott Alodji,null,FUNDAÇÃO UNIVERSIDADE DE BRASÍLIA,null,20800.00,ordinário,605
TAXA DE ALUNO ESPECIAL -FUB,14970.00,FISCAL,PR 206/2020 - FUB,2021,16/11/2021,PROGRAMA DE POS-GRADUACAO EM ARTES CENICAS,null,null,null,FUNCIONAMENTO DE INSTITUICOES FEDERAI - NO DF,23106.102135/2020-88,"C. CUSTO: CEN                              SEI:23106.114440/2021-01 ATT:  ALICE STEFANIA CURI        2021ND003891MEMO.093/2021//IDA/CEN/PPG   PROT:(1101011405{SM3248/2021(14970,00)}MATERIAL DE PERMANENTE - PEDIDO:3248/2021 -   PREG:206/2020  EQUIPAMENTOS TIC - NOTEBOOK  TIPO PADRÃO",2242,EQUIPAMENTOS E MATERIAL PERMANENTE,Belli Lizot Lozzi Paolis,null,FUNDAÇÃO UNIVERSIDADE DE BRASÍLIA,null,14970.00,ordinário,605
PRÓPRIOS -  PREST.SERVICOS FUB/FUNDO,114660.00,FISCAL,PR 206/2020 - FUB,2021,16/11/2021,CRÉDITOS DISTRIBUÍDOS PARA AS UNIDADES ACADÊMICAS,null,null,null,FUNCIONAMENTO DE INSTITUICOES FEDERAI - NO DF,23106.102135/2020-88,"C. CUSTO FAU PROT:11010104(114660,00) REQ: 3170/2021AQUISIÇÃO DE 20 (VINTE) MICROCOMPUTADORESSEI: 23106.122262/2021-84 2021ND004240",2239,EQUIPAMENTOS E MATERIAL PERMANENTE,Ahissou Sbroggio Gongi,null,FUNDAÇÃO UNIVERSIDADE DE BRASÍLIA,null,114660.00,ordinário,605
PRÓPRIOS -  PREST.SERVICOS FUB/FUNDO,214.50,FISCAL,PR 17/2020 - FUB,2021,16/11/2021,CRÉDITOS DISTRIBUÍDOS PARA AS UNIDADES ADMINISTRATIVAS,null,null,null,FUNCIONAMENTO DE INSTITUICOES FEDERAI - NO DF,23106.082711/2019-20,"C. CUSTO: FGA.      PROT:110132{SM3215/2021(214,50)}        SEI 23106.123324/2021-75.AQUISIÇÃO DE MATERIAL DE LABORATÓRIO.2021ND004317.",2237,MAT. CONSUMO,Acelmo Knetsiki Arado Prachthauser,null,FUNDAÇÃO UNIVERSIDADE DE BRASÍLIA,null,214.50,ordinário,605
PRÓPRIOS -  PREST.SERVICOS FUB/FUNDO,25.50,FISCAL,PR 17/2020 - FUB,2021,16/11/2021,CRÉDITOS DISTRIBUÍDOS PARA AS UNIDADES ADMINISTRATIVAS,null,null,null,FUNCIONAMENTO DE INSTITUICOES FEDERAI - NO DF,23106.082711/2019-20,"C. CUSTO: FGA.      PROT:110132{SM3214/2021(25,50)}        SEI 23106.123324/2021-75.AQUISIÇÃO DE MATERIAL DE LABORATÓRIO.2021ND004317.",2236,MAT. CONSUMO,FARED COMERCIAL LTDA - EPP,null,FUNDAÇÃO UNIVERSIDADE DE BRASÍLIA,null,25.50,ordinário,605
PRÓPRIOS -  PREST.SERVICOS FUB/FUNDO,47.25,FISCAL,PR 17/2020 - FUB,2021,16/11/2021,CRÉDITOS DISTRIBUÍDOS PARA AS UNIDADES ADMINISTRATIVAS,null,null,null,FUNCIONAMENTO DE INSTITUICOES FEDERAI - NO DF,23106.082711/2019-20,"C. CUSTO: FGA.      PROT:110132{SM3213/2021(47,25)}        SEI 23106.123324/2021-75.AQUISIÇÃO DE MATERIAL DE LABORATÓRIO.2021ND004317.",2235,MAT. CONSUMO,Acelmo Knetsiki Arado Prachthauser,null,FUNDAÇÃO UNIVERSIDADE DE BRASÍLIA,null,47.25,ordinário,605
PRÓPRIOS -  PREST.SERVICOS FUB/FUNDO,187.00,FISCAL,PR 17/2020 - FUB,2021,16/11/2021,CRÉDITOS DISTRIBUÍDOS PARA AS UNIDADES ADMINISTRATIVAS,null,null,null,FUNCIONAMENTO DE INSTITUICOES FEDERAI - NO DF,23106.082711/2019-20,"C. CUSTO: FGA.      PROT:110132{SM3211/2021(187,00)}        SEI 23106.123324/2021-75.AQUISIÇÃO DE MATERIAL DE LABORATÓRIO.2021ND004317.",2234,MAT. CONSUMO,Ribero Hali Nessi Nepumoceno Stiller,null,FUNDAÇÃO UNIVERSIDADE DE BRASÍLIA,null,187.00,ordinário,605
PRÓPRIOS -  PREST.SERVICOS FUB/FUNDO,275.00,FISCAL,PR 17/2020 - FUB,2021,16/11/2021,CRÉDITOS DISTRIBUÍDOS PARA AS UNIDADES ADMINISTRATIVAS,null,null,null,FUNCIONAMENTO DE INSTITUICOES FEDERAI - NO DF,23106.082711/2019-20,"C. CUSTO: FGA.      PROT:110132{SM3210/2021(275,00)}        SEI 23106.123324/2021-75.AQUISIÇÃO DE MATERIAL DE LABORATÓRIO.2021ND004317.",2233,MAT. CONSUMO,LAB-BRAN COMERCIO DE PRODUTOS DE LABORATORIO LTDA - ME,null,FUNDAÇÃO UNIVERSIDADE DE BRASÍLIA,null,275.00,ordinário,605
PRÓPRIOS -  PREST.SERVICOS FUB/FUNDO,195.00,FISCAL,PR 17/2020 - FUB,2021,16/11/2021,CRÉDITOS DISTRIBUÍDOS PARA AS UNIDADES ADMINISTRATIVAS,null,null,null,FUNCIONAMENTO DE INSTITUICOES FEDERAI - NO DF,23106.082711/2019-20,"C. CUSTO: FGA.      PROT:110132{SM3209/2021(195,00)}        SEI 23106.123324/2021-75.AQUISIÇÃO DE MATERIAL DE LABORATÓRIO.2021ND004317.",2232,MAT. CONSUMO,LAB-BRAN COMERCIO DE PRODUTOS DE LABORATORIO LTDA - ME,null,FUNDAÇÃO UNIVERSIDADE DE BRASÍLIA,null,195.00,ordinário,605
PRÓPRIOS -  PREST.SERVICOS FUB/FUNDO,15.60,FISCAL,PR 17/2020 - FUB,2021,16/11/2021,CRÉDITOS DISTRIBUÍDOS PARA AS UNIDADES ADMINISTRATIVAS,null,null,null,FUNCIONAMENTO DE INSTITUICOES FEDERAI - NO DF,23106.082711/2019-20,"C. CUSTO: FGA.      PROT:110132{SM3208/2021(15,60)}        SEI 23106.123324/2021-75.AQUISIÇÃO DE MATERIAL DE LABORATÓRIO.2021ND004317.",2231,MAT. CONSUMO,Allyde Canimprata,null,FUNDAÇÃO UNIVERSIDADE DE BRASÍLIA,null,15.60,ordinário,605
PRÓPRIOS -  PREST.SERVICOS FUB/FUNDO,398.88,FISCAL,PR 17/2020 - FUB,2021,16/11/2021,CRÉDITOS DISTRIBUÍDOS PARA AS UNIDADES ADMINISTRATIVAS,null,null,null,FUNCIONAMENTO DE INSTITUICOES FEDERAI - NO DF,23106.082711/2019-20,"C. CUSTO: FGA.      PROT:110132{SM3206/2021(398,88)}        SEI 23106.123324/2021-75.AQUISIÇÃO DE MATERIAL DE LABORATÓRIO.2021ND004317.",2230,MAT. CONSUMO,Martegani Mandes Aprígio Akimi Carollyne,null,FUNDAÇÃO UNIVERSIDADE DE BRASÍLIA,null,398.88,ordinário,605
PRÓPRIOS -  PREST.SERVICOS FUB/FUNDO,13.49,FISCAL,PR 17/2020 - FUB,2021,16/11/2021,CRÉDITOS DISTRIBUÍDOS PARA AS UNIDADES ADMINISTRATIVAS,null,null,null,FUNCIONAMENTO DE INSTITUICOES FEDERAI - NO DF,23106.082711/2019-20,"C. CUSTO: FGA.      PROT:110132{SM3205/2021(13,49)}        SEI 23106.123324/2021-75.AQUISIÇÃO DE MATERIAL DE LABORATÓRIO.2021ND004317.",2229,MAT. CONSUMO,LAB-BRAN COMERCIO DE PRODUTOS DE LABORATORIO LTDA - ME,null,FUNDAÇÃO UNIVERSIDADE DE BRASÍLIA,null,13.49,ordinário,605
PRÓPRIOS -  PREST.SERVICOS FUB/FUNDO,1960.00,FISCAL,PR 24/2021 - FUB,2021,16/11/2021,CRÉDITOS DISTRIBUÍDOS PARA AS UNIDADES ACADÊMICAS,null,null,null,FUNCIONAMENTO DE INSTITUICOES FEDERAI - NO DF,23106.052694/2021-11,"C. CUSTO: FEF.      PROT:11010108{SM3255/2021(1960,00)}       SEI 23106.124004/2021-32.AQUISIÇÃO DE TOTEM TERMÔMETRO DIGITAL.                          MEMO 073/2021/FEF/FINANCEIRO.DEMONSTRATIVO (7388478).",2228,EQUIP. MATERIAL PERMANENTE,Sedenho Colnaghi Nobuo Hussar,null,FUNDAÇÃO UNIVERSIDADE DE BRASÍLIA,null,1960.00,ordinário,605
RECURSOS DIRETAM.ARREC FUNDAÇÃO UNIV.BRASÍLIA,2940.00,FISCAL,PR 24/2021 - FUB,2021,16/11/2021,CUSTOS INDIRETOS DAS UNIDADES - RECOMPOSICAO,null,null,null,FUNCIONAMENTO DE INSTITUICOES FEDERAI - NO DF,23106.052694/2021-11,"C. CUSTO: DEG                 SEI:23106.123239/2021-52ATT: DIEGO MADUREIRA DE OLIVEIRA   2021ND004293OFÍCIO.264/2021/DEG/SGO       PROT:110106{SM3226/2021(2940,00)}MATERIAL DE PERMANENTE - PEDIDO:3226/2021 -   PREG:24/2021  EQUIP.PROTEÇÃO E SEG.E SOCORRO- TOTEM - TERMOMETRO",2225,EQUIP. MATERIAL PERMANENTE,Sedenho Colnaghi Nobuo Hussar,null,FUNDAÇÃO UNIVERSIDADE DE BRASÍLIA,null,2940.00,ordinário,605
PRÓPRIOS -  PREST.SERVICOS FUB/FUNDO,57330.00,FISCAL,PR 206/2020 - FUB,2021,16/11/2021,CRÉDITOS DISTRIBUÍDOS PARA AS UNIDADES ACADÊMICAS,null,null,null,FUNCIONAMENTO DE INSTITUICOES FEDERAI - NO DF,23106.102135/2020-88,"C. CUSTO ICB PROT:11010112(57330,00) REQ: 3080 E 3081MEMORANDO 72 (7347938) AQUISIÇÃO DE MICROCOMPUTADORES.SEI: 23106.120494/2021-06 2021ND004305",2224,EQUIPAMENTOS E MATERIAL PERMANENTE,Ahissou Sbroggio Gongi,null,FUNDAÇÃO UNIVERSIDADE DE BRASÍLIA,null,57330.00,ordinário,605
PRÓPRIOS -  PREST.SERVICOS FUB/FUNDO,24950.00,FISCAL,PR 206/2020 - FUB,2021,16/11/2021,CRÉDITOS DISTRIBUÍDOS PARA AS UNIDADES ACADÊMICAS,null,null,null,FUNCIONAMENTO DE INSTITUICOES FEDERAI - NO DF,23106.102135/2020-88,"C. CUSTO ICB PROT:11010112(24950,00) REQ: 3079MEMORANDO 72 (7347938) AQUISIÇÃO DE MICROCOMPUTADORES.SEI: 23106.120494/2021-06 2021ND004305",2223,EQUIPAMENTOS E MATERIAL PERMANENTE,Belli Lizot Lozzi Paolis,null,FUNDAÇÃO UNIVERSIDADE DE BRASÍLIA,null,24950.00,ordinário,605
PRÓPRIOS -  PREST.SERVICOS FUB/FUNDO,52000.00,FISCAL,PR 206/2020 - FUB,2021,16/11/2021,CRÉDITOS DISTRIBUÍDOS PARA AS UNIDADES ACADÊMICAS,null,null,null,FUNCIONAMENTO DE INSTITUICOES FEDERAI - NO DF,23106.102135/2020-88,"C. CUSTO ICB PROT:11010112(52000,00) REQ: 3078MEMORANDO 72 (7347938) AQUISIÇÃO DE MICROCOMPUTADORES.SEI: 23106.120494/2021-06 2021ND004305",2222,EQUIPAMENTOS E MATERIAL PERMANENTE,Hohlenwerger Jacunda Mezzalira Escott Alodji,null,FUNDAÇÃO UNIVERSIDADE DE BRASÍLIA,null,52000.00,ordinário,605
PRÓPRIOS -  PREST.SERVICOS FUB/FUNDO,2799.93,FISCAL,null,2021,12/11/2021,CRÉDITOS DISTRIBUÍDOS PARA AS UNIDADES ACADÊMICAS,null,null,null,FUNCIONAMENTO DE INSTITUICOES FEDERAI - NO DF,23106.084679/2021-31,"C. CUSTO: FAV SEI: 23106.039875/2021-51 PAGAMENTO DE MATERIAL PERMANENTE PROT:11010105(2799,93) APA.DE UTENS. DOMESTICOS - TRITURADOR ORGÂNICO DISPENSA: 12005/2021 MEMO.057/2021/PRC/DIRAD/CPJ 2021ND003424",2217,EQUIP. MATERIAL PERMANENTE,Shelen Santisima Celestine,null,FUNDAÇÃO UNIVERSIDADE DE BRASÍLIA,null,2799.93,global,605
RECURSOS DIRETAM.ARREC FUNDAÇÃO UNIV.BRASÍLIA,1960.00,FISCAL,PR 24/2021 - FUB,2021,12/11/2021,CUSTOS INDIRETOS DAS UNIDADES - RECOMPOSICAO,null,null,null,FUNCIONAMENTO DE INSTITUICOES FEDERAI - NO DF,23106.052694/2021-11,"C. CUSTO: FCI                          SEI:23106.123247/2021-53ATT: RENATO TARCISO BARBOSA      2021ND000000MEMO.112/2021/FCI/FI       PROT:110133{SM3203/2021(1960,00)}MATERIAL DE PERMANENTE - PEDIDO:3203/2021 -   PREG:24/2021  EQUIP.PROTEÇÃO E SEG.E SOCORRO- TOTEM - TERMOMETRO",2216,EQUIP. MATERIAL PERMANENTE,Sedenho Colnaghi Nobuo Hussar,null,FUNDAÇÃO UNIVERSIDADE DE BRASÍLIA,null,1960.00,ordinário,605
PRÓPRIOS -  PREST.SERVICOS FUB/FUNDO,47.97,FISCAL,PR 24/2020 - FUB,2021,12/11/2021,CRÉDITOS DISTRIBUÍDOS PARA AS UNIDADES ACADÊMICAS,null,null,null,FUNCIONAMENTO DE INSTITUICOES FEDERAI - NO DF,23106.076618/2019-86,"C.CUSTO:FEF -AT- FERNANDO MASCARENHAS  - PROT:11010108{SM3185/2021(47,97)}         MATERIAL DE CONSUMO - PEDIDO:3185/2021 -2021ND004264 -PREG:24/2020MATERIAL LABORATORIAL - TOUCA DESCARTÁVEL MEMO.070/2021/FEF/FINANCEIRO -  S.E.I 23106.122831/2021-91",2215,MAT. CONSUMO,Jeanaina Wiira Woshington,null,FUNDAÇÃO UNIVERSIDADE DE BRASÍLIA,null,47.97,ordinário,605
PRÓPRIOS -  PREST.SERVICOS FUB/FUNDO,81.91,FISCAL,PR 24/2020 - FUB,2021,12/11/2021,CRÉDITOS DISTRIBUÍDOS PARA AS UNIDADES ACADÊMICAS,null,null,null,FUNCIONAMENTO DE INSTITUICOES FEDERAI - NO DF,23106.076618/2019-86,"C.CUSTO:FEF -AT- FERNANDO MASCARENHAS  - PROT:110129{SM3184/2021(93,50)}         MATERIAL DE CONSUMO - PEDIDO:3184/2021 -2021ND004264 -PREG:24/2020MATERIAL LABORATORIAL - AVENTAL DESCARTÁVEL - MANGA LONGAMEMO.070/2021/FEF/FINANCEIRO -  S.E.I 23106.122831/2021-91",2214,MAT. CONSUMO,Glaucimary Caroca,null,FUNDAÇÃO UNIVERSIDADE DE BRASÍLIA,null,81.91,ordinário,605
PRÓPRIOS -  PREST.SERVICOS FUB/FUNDO,912.00,FISCAL,PR 204/2021 - FUB,2021,12/11/2021,CRÉDITOS DISTRIBUÍDOS PARA AS UNIDADES ACADÊMICAS,null,null,null,FUNCIONAMENTO DE INSTITUICOES FEDERAI - NO DF,23106.112789/2020-10,"C. CUSTO: IHD                          SEI:23106.121919/2021-96ATT: NEUMA BRILHANTE RODRIGUES      2021ND004274MEMO.037/2021/IHD/ICH      PROT:11010118{SM3126/2021(912,00)}MATERIAL DE PERMANENTE - PEDIDO:3126/2021 -   PREG:204/2021  EQUIPAMENTOS TIC - HD EXTERNO 2TB",2213,EXCLUSIVO PARA CONV. DNOC - MATERIAL DE CONSUMO,Sileir Hallay Zeymer,null,FUNDAÇÃO UNIVERSIDADE DE BRASÍLIA,null,912.00,ordinário,605
PRÓPRIOS -  PREST.SERVICOS FUB/FUNDO,336.86,FISCAL,PR,2021,12/11/2021,CRÉDITOS DISTRIBUÍDOS PARA AS UNIDADES ACADÊMICAS,null,113.14,null,FUNCIONAMENTO DE INSTITUICOES FEDERAI - NO DF,23106.117776/2021-18,"C. CUSTO: IDA                                                 SEI:23106.117776/2021-18PAGAMENTO DE SEGURO VIAGEM             PROT:11010114(450,00)MEMO.023/2021//IDA / MUS / SADM        2021ND004267 - CONTRATO: 125/2018",2212,SERV. PESSOA JURÍDICA,Ferrareze Gomi Pixaque Bonecini,null,FUNDAÇÃO UNIVERSIDADE DE BRASÍLIA,null,450.00,estimativo,605
PRÓPRIOS -  PREST.SERVICOS FUB/FUNDO,500.00,FISCAL,PR,2021,12/11/2021,CRÉDITOS DISTRIBUÍDOS PARA AS UNIDADES ADMINISTRATIVAS,null,null,null,FUNCIONAMENTO DE INSTITUICOES FEDERAI - NO DF,23106.120695/2021-03,"C. CUSTO: GRE.      PROT:1101(500,00)     SEI 23106.120695/2021-03.SEGURO VIAGEM.2021ND004270.    MEMO 59/2021/GRE.",2209,SERV. PESSOA JURÍDICA,Ferrareze Gomi Pixaque Bonecini,null,FUNDAÇÃO UNIVERSIDADE DE BRASÍLIA,null,500.00,estimativo,605
TAXA DE ALUNO ESPECIAL -FUB,0.00,FISCAL,PR,2021,12/11/2021,PROG DE POS GRADUACAO EM EDUCACAO - PPGE/FE,null,10000.00,null,FUNCIONAMENTO DE INSTITUICOES FEDERAI - NO DF,23106.117977/2021-15,"C. CUSTO: FED.     PROT:1101010704(10000,00)    SEI 23106.117977/2021-15.PASSAGENS INTERNACIONAIS.                          DESPACHO FE/SFIN 7374619.2021ND004157.",2208,PASSAGENS,Ferrareze Gomi Pixaque Bonecini,null,FUNDAÇÃO UNIVERSIDADE DE BRASÍLIA,null,10000.00,estimativo,605
TAXA DE ALUNO ESPECIAL -FUB,0.00,FISCAL,PR,2021,12/11/2021,PROG DE POS GRADUACAO EM EDUCACAO - PPGE/FE,null,10000.00,null,FUNCIONAMENTO DE INSTITUICOES FEDERAI - NO DF,23106.117977/2021-15,"C. CUSTO: FED.     PROT:1101010704(10000,00)    SEI 23106.117977/2021-15.PASSAGENS NACIONAIS.                          DESPACHO FE/SFIN 7374619.2021ND004157.",2207,PASSAGENS,Ferrareze Gomi Pixaque Bonecini,null,FUNDAÇÃO UNIVERSIDADE DE BRASÍLIA,null,10000.00,estimativo,605
PRÓPRIOS -  PREST.SERVICOS FUB/FUNDO,2940.00,FISCAL,PR 24/2021 - FUB,2021,12/11/2021,CRÉDITOS DISTRIBUÍDOS PARA AS UNIDADES ACADÊMICAS,null,null,null,FUNCIONAMENTO DE INSTITUICOES FEDERAI - NO DF,23106.052694/2021-11,"C. CUSTO: IDA.      PROT:11010114{SM3142/2021(2940,00)}       SEI 23106.122110/2021-81.AQUISIÇÃO DE TOTEM, TERMÔMETRO DIGITAL.               MEMO 69/2021/IDA/VIS.  2021ND004272.",2206,EQUIP. MATERIAL PERMANENTE,Sedenho Colnaghi Nobuo Hussar,null,FUNDAÇÃO UNIVERSIDADE DE BRASÍLIA,null,2940.00,ordinário,605
PRÓPRIOS -  PREST.SERVICOS FUB/FUNDO,5733.00,FISCAL,PR 206/2020 - FUB,2021,12/11/2021,CRÉDITOS DISTRIBUÍDOS PARA AS UNIDADES ACADÊMICAS,null,null,null,FUNCIONAMENTO DE INSTITUICOES FEDERAI - NO DF,23106.102135/2020-88,"C. CUSTO: FTD.      PROT:11010111{SM3135/2021(5733,00)}       SEI 23106.122096/2021-16.AQUISIÇÃO DE MICROCOMPUTADOR.                 MEMO 87/2021/FT/EPR.      EXTRATO SIAFI (7381083).",2205,EQUIPAMENTOS E MATERIAL PERMANENTE,Ahissou Sbroggio Gongi,null,FUNDAÇÃO UNIVERSIDADE DE BRASÍLIA,null,5733.00,ordinário,605
PRÓPRIOS -  PREST.SERVICOS FUB/FUNDO,1470.00,FISCAL,null,2021,12/11/2021,CRÉDITOS DISTRIBUÍDOS PARA AS UNIDADES ACADÊMICAS,null,null,null,FUNCIONAMENTO DE INSTITUICOES FEDERAI - NO DF,23106.101855/2021-15,"C.CUSTO:FAV// MATERIAL DE CONSUMO LABORATORIAL// SEI N.23106.101855/2021-15PROT:11010105(1470,00)// 2021ND004246",2202,MAT. CONSUMO,Drizana Fujimura,null,FUNDAÇÃO UNIVERSIDADE DE BRASÍLIA,null,1470.00,global,605
PRÓPRIOS -  PREST.SERVICOS FUB/FUNDO,1960.00,FISCAL,PR,2021,12/11/2021,CRÉDITOS DISTRIBUÍDOS PARA AS UNIDADES ACADÊMICAS,null,null,null,FUNCIONAMENTO DE INSTITUICOES FEDERAI - NO DF,23106.122317/2021-56,"C.CUSTO:IHD// AQUISIÇÃO DE DOIS TERMOMETRO DIGITAL// DESPACHO ICH/HIS 7364754PROT:11010118(1960,00)// 2021ND004286//",2200,EQUIP. MATERIAL PERMANENTE,Sedenho Colnaghi Nobuo Hussar,null,FUNDAÇÃO UNIVERSIDADE DE BRASÍLIA,null,1960.00,global,605
